Workbook

Sheet gestione ordine
C1: progressivo ordinante ---> | D1: 1 | E1: 2 | F1: 3 | G1: 4 | H1: 5 | I1: 6 | J1: 7 | K1: 8 | L1: 9 | M1: 10 | N1: 11 | O1: 12 | P1: 13 | Q1: 14 | R1: 15 | S1: 16 | T1: 17 | U1: 18 | V1: 19 | W1: 20 | X1: 21 | Y1: 22 | Z1: 23 | AA1: 24 | AB1: 25 | AC1: 26 | AD1: 27 | AE1: 28 | AF1: 29 | AG1: 30
A2: totale spesa (importo indicativo) escluso sconto | B2: =SUM(B5:B261) -> 0
A3: totale confezioni per prodotto | B3: DETTAGLIO COSTI (importi indicativi) TOTALI PER PRODOTTO | C3: totale confezioni per ordinante | X3: =SUM(X5:X224) -> 0 | Y3: 0 | Z3: 0 | AA3: 0 | AB3: 0 | AC3: 0 | AD3: 0 | AE3: 0 | AF3: 0 | AG3: 0 | AH3: € a porzione (per i prodotti a peso il prezzo è indicativo)
C4: =matrice2!C8 -> RICOTTA DI PECORA
A5: =SUM(D5:AG5) -> 0 | B5: =AH5*A5*matrice2!D9 -> 0 | C5: =matrice2!C9 -> Ricottina - cestino da 300 gr | AH5: =matrice2!I9 -> 6.552
A6: =SUM(D6:AG6) -> 0 | B6: =AH6*A6*matrice2!D10 -> 0 | C6: =matrice2!C10 -> Ricottina - cestino da 350 gr | AH6: =matrice2!I10 -> 6.552
A7: 0 | B7: =AH7*A7*matrice2!D11 -> 0 | C7: =matrice2!C11 -> Ricotta Grande - cesto da 1,7 kg | AH7: =matrice2!I11 -> 6.552
A8: 0 | B8: =AH8*A8*matrice2!D12 -> 0 | C8: =matrice2!C12 -> Ricotta 100 gr | AH8: =matrice2!I12 -> 6.552
A9: 0 | B9: =AH9*A9*matrice2!D13 -> 0 | C9: =matrice2!C13 -> 0 | AH9: =matrice2!I13 -> 0
A10: =SUM(D10:AG10) -> 0 | B10: =AH10*A10*matrice2!D14 -> 0 | C10: =matrice2!C14 -> 0 | AH10: =matrice2!I14 -> 0
A11: 0 | B11: =AH11*A11*matrice2!D15 -> 0 | C11: =matrice2!C15 -> 0 | AH11: =matrice2!I15 -> 0
A12: 0 | B12: =AH12*A12*matrice2!D16 -> 0 | C12: =matrice2!C16 -> 0 | AH12: =matrice2!I16 -> 0
A13: 0 | B13: =AH13*A13*matrice2!D17 -> 0 | C13: =matrice2!C17 -> 0 | AH13: =matrice2!I17 -> 0
A14: 0 | B14: =AH14*A14*matrice2!D18 -> 0 | C14: =matrice2!C18 -> 0 | AH14: =matrice2!I18 -> 0
A15: 0 | B15: =AH15*A15*matrice2!D19 -> 0 | C15: =matrice2!C19 -> 0 | AH15: =matrice2!I19 -> 0
A16: 0 | B16: =AH16*A16*matrice2!D20 -> 0 | C16: =matrice2!C20 -> FORMAGGI DI PECORA A LATTE CRUDO CON CAGLIO ANIMALE | AH16: =matrice2!I20 -> 0
A17: 0 | B17: =AH17*A17*matrice2!D21 -> 0 | C17: =matrice2!C21 -> primo sale 100 gr | AH17: =matrice2!I21 -> 9.0688
A18: 0 | B18: =AH18*A18*matrice2!D22 -> 0 | C18: =matrice2!C22 -> Primo sale piccolo - porzione da 300 gr | AH18: =matrice2!I22 -> 9.0688
A19: 0 | B19: =AH19*A19*matrice2!D23 -> 0 | C19: =matrice2!C23 -> Primo sale - porzione da 350 gr | AH19: =matrice2!I23 -> 9.0688
A20: 0 | B20: =AH20*A20*matrice2!D24 -> 0 | C20: =matrice2!C24 -> Primo sale grande - forma da 2,5 kg | AH20: =matrice2!I24 -> 9.0688
A21: 0 | B21: =AH21*A21*matrice2!D25 -> 0 | C21: =matrice2!C25 -> Primo sale - A PESO | AH21: =matrice2!I25 -> 9.0688
A22: 0 | B22: =AH22*A22*matrice2!D26 -> 0 | C22: =matrice2!C26 -> Caciotta - porzione da 200 gr | AH22: =matrice2!I26 -> 12.012
A23: 0 | B23: =AH23*A23*matrice2!D27 -> 0 | C23: =matrice2!C27 -> Caciotta - porzione da 250 gr | AH23: =matrice2!I27 -> 12.012
A24: 0 | B24: =AH24*A24*matrice2!D28 -> 0 | C24: =matrice2!C28 -> Caciotta - porzione da 300 gr | AH24: =matrice2!I28 -> 12.012
A25: 0 | B25: =AH25*A25*matrice2!D29 -> 0 | C25: =matrice2!C29 -> Caciotta - porzione da 500 gr | AH25: =matrice2!I29 -> 12.012
A26: 0 | B26: =AH26*A26*matrice2!D30 -> 0 | C26: =matrice2!C30 -> Caciotta - A PESO | AH26: =matrice2!I30 -> 12.012
A27: 0 | B27: =AH27*A27*matrice2!D31 -> 0 | C27: =matrice2!C31 -> Caciotta speziata al peperoncino - 300 gr | AH27: =matrice2!I31 -> 12.012
A28: 0 | B28: =AH28*A28*matrice2!D32 -> 0 | C28: =matrice2!C32 -> Caciotta speziata al pepe rosa - 300 gr | AH28: =matrice2!I32 -> 12.012
A29: 0 | B29: =AH29*A29*matrice2!D33 -> 0 | C29: =matrice2!C33 -> 0 | AH29: =matrice2!I33 -> 0
A30: 0 | B30: =AH30*A30*matrice2!D34 -> 0 | C30: =matrice2!C34 -> 0 | AH30: =matrice2!I34 -> 0
A31: 0 | B31: =AH31*A31*matrice2!D35 -> 0 | C31: =matrice2!C35 -> Cacio Martino - porzione da 400 gr | AH31: =matrice2!I35 -> 15.288
A32: 0 | B32: =AH32*A32*matrice2!D36 -> 0 | C32: =matrice2!C36 -> 0 | AH32: =matrice2!I36 -> 0
A33: 0 | B33: =AH33*A33*matrice2!D37 -> 0 | C33: =matrice2!C37 -> Cacio Martino - forma intera da 800 gr | AH33: =matrice2!I37 -> 15.288
A34: 0 | B34: =AH34*A34*matrice2!D38 -> 0 | C34: =matrice2!C38 -> 0 | AH34: =matrice2!I38 -> 0
A35: 0 | B35: =AH35*A35*matrice2!D39 -> 0 | C35: =matrice2!C39 -> 0 | AH35: =matrice2!I39 -> 0
A36: 0 | B36: =AH36*A36*matrice2!D40 -> 0 | C36: =matrice2!C40 -> Majio - Pecorino stagionato (5 mesi +) - porzione da 220 gr | AH36: =matrice2!I40 -> 19.1152
A37: 0 | B37: =AH37*A37*matrice2!D41 -> 0 | C37: =matrice2!C41 -> Majio - Pecorino stagionato (5 mesi +) - porzione da 300 gr | AH37: =matrice2!I41 -> 19.1152
A38: 0 | B38: =AH38*A38*matrice2!D42 -> 0 | C38: =matrice2!C42 -> 0 | AH38: =matrice2!I42 -> 0
A39: 0 | B39: =AH39*A39*matrice2!D43 -> 0 | C39: =matrice2!C43 -> Majio - Pecorino stagionato (5 mesi +) - A PESO | AH39: =matrice2!I43 -> 18.2
A40: 0 | B40: =AH40*A40*matrice2!D44 -> 0 | C40: =matrice2!C44 -> 0 | AH40: =matrice2!I44 -> 0
A41: 0 | B41: =AH41*A41*matrice2!D45 -> 0 | C41: =matrice2!C45 -> 0 | AH41: =matrice2!I45 -> 0
A42: 0 | B42: =AH42*A42*matrice2!D46 -> 0 | C42: =matrice2!C46 -> 0 | AH42: =matrice2!I46 -> 0
A43: 0 | B43: =AH43*A43*matrice2!D47 -> 0 | C43: =matrice2!C47 -> FORMAGGIO SPALMABILE | AH43: =matrice2!I47 -> 0
A44: 0 | B44: =AH44*A44*matrice2!D48 -> 0 | C44: =matrice2!C48 -> Crema di Majio - barattolo da 180 gr | AH44: =matrice2!I48 -> 4.51
A45: 0 | B45: =AH45*A45*matrice2!D49 -> 0 | C45: =matrice2!C49 -> Crema di Majio delattosato - barattolo da 180 gr | AH45: =matrice2!I49 -> 4.62
A46: 0 | B46: =AH46*A46*matrice2!D50 -> 0 | C46: =matrice2!C50 -> 0 | AH46: =matrice2!I50 -> 0
A47: 0 | B47: =AH47*A47*matrice2!D51 -> 0 | C47: =matrice2!C51 -> 0 | AH47: =matrice2!I51 -> 0
A48: 0 | B48: =AH48*A48*matrice2!D52 -> 0 | C48: =matrice2!C52 -> 0 | AH48: =matrice2!I52 -> 0
A49: 0 | B49: =AH49*A49*matrice2!D53 -> 0 | C49: =matrice2!C53 -> 0 | AH49: =matrice2!I53 -> 0
A50: 0 | B50: =AH50*A50*matrice2!D54 -> 0 | C50: =matrice2!C54 -> 0 | AH50: =matrice2!I54 -> 0
A51: 0 | B51: =AH51*A51*matrice2!D55 -> 0 | C51: =matrice2!C55 -> FORMAGGI DI PECORA A LATTE CRUDO CON CAGLIO VEGETALE | AH51: =matrice2!I55 -> 0
A52: 0 | B52: =AH52*A52*matrice2!D56 -> 0 | C52: =matrice2!C56 -> Cardo di Martignano | AH52: =matrice2!I56 -> 16.38
A53: 0 | B53: =AH53*A53*matrice2!D57 -> 0 | C53: =matrice2!C57 -> Caciofiore di Columella | AH53: =matrice2!I57 -> 23.0984
A54: 0 | B54: =AH54*A54*matrice2!D58 -> 0 | C54: =matrice2!C58 -> 0 | AH54: =matrice2!I58 -> 0
A55: 0 | B55: =AH55*A55*matrice2!D59 -> 0 | C55: =matrice2!C59 -> 0 | AH55: =matrice2!I59 -> 0
A56: 0 | B56: =AH56*A56*matrice2!D60 -> 0 | C56: =matrice2!C60 -> 0 | AH56: =matrice2!I60 -> 0
A57: 0 | B57: =AH57*A57*matrice2!D61 -> 0 | C57: =matrice2!C61 -> 0 | AH57: =matrice2!I61 -> 0
A58: 0 | B58: =AH58*A58*matrice2!D62 -> 0 | C58: =matrice2!C62 -> 0 | AH58: =matrice2!I62 -> 0
A59: 0 | B59: =AH59*A59*matrice2!D63 -> 0 | C59: =matrice2!C63 -> CARNI OVINE | AH59: =matrice2!I63 -> 0
A60: 0 | B60: =AH60*A60*matrice2!D64 -> 0 | C60: =matrice2!C64 -> Abbacchio romano IGP - intero (7-9 kg) - ordinare con una settimana di anticipo | AH60: =matrice2!I64 -> 11.319
A61: 0 | B61: =AH61*A61*matrice2!D65 -> 0 | C61: =matrice2!C65 -> Abbacchio romano IGP - mezzo (3-4 kg) - ordinare con una settimana di anticipo | AH61: =matrice2!I65 -> 12.87
A62: 0 | B62: =AH62*A62*matrice2!D66 -> 0 | C62: =matrice2!C66 -> Arrosticini - 1 kg (circa 50) | AH62: =matrice2!I66 -> 13.167
A63: 0 | B63: =AH63*A63*matrice2!D67 -> 0 | C63: =matrice2!C67 -> Arrosticini - 500 gr (circa 25) | AH63: =matrice2!I67 -> 13.167
A64: 0 | B64: =AH64*A64*matrice2!D68 -> 0 | C64: =matrice2!C68 -> Castrato - Coscio con osso (circa 1,5 kg) | AH64: =matrice2!I68 -> 11.55
A65: 0 | B65: =AH65*A65*matrice2!D69 -> 0 | C65: =matrice2!C69 -> Castrato intero | AH65: =matrice2!I69 -> 11.55
A66: 0 | B66: =AH66*A66*matrice2!D70 -> 0 | C66: =matrice2!C70 -> Coscio di Abbacchio romano IGP (circa 1 kg) - ordinare con una settimana di anticipo | AH66: =matrice2!I70 -> 13.2
A67: 0 | B67: =AH67*A67*matrice2!D71 -> 0 | C67: =matrice2!C71 -> Hamburger di castrato (220 gr) | AH67: =matrice2!I71 -> 11.319
A68: 0 | B68: =AH68*A68*matrice2!D72 -> 0 | C68: =matrice2!C72 -> Macinato di pecora 300gr. | AH68: =matrice2!I72 -> 7.513
A69: 0 | B69: =AH69*A69*matrice2!D73 -> 0 | C69: =matrice2!C73 -> Pecora Intera | AH69: =matrice2!I73 -> 5.775
A70: 0 | B70: =AH70*A70*matrice2!D74 -> 0 | C70: =matrice2!C74 -> 0 | AH70: =matrice2!I74 -> 0
A71: 0 | B71: =AH71*A71*matrice2!D75 -> 0 | C71: =matrice2!C75 -> 0 | AH71: =matrice2!I75 -> 0
A72: 0 | B72: =AH72*A72*matrice2!D76 -> 0 | C72: =matrice2!C76 -> 0 | AH72: =matrice2!I76 -> 0
A73: 0 | B73: =AH73*A73*matrice2!D77 -> 0 | C73: =matrice2!C77 -> 0 | AH73: =matrice2!I77 -> 0
A74: =SUM(D74:AG74) -> 0 | B74: =AH74*A74*matrice2!D78 -> 0 | C74: =matrice2!C78 -> 0 | AH74: =matrice2!I78 -> 0
A75: 0 | B75: =AH75*A75*matrice2!D79 -> 0 | C75: =matrice2!C79 -> CARNI SUINE FRESCHE: MAIALE ALLEVATO ALLO STATO BRADO | AH75: =matrice2!I79 -> 0
A76: 0 | B76: =AH76*A76*matrice2!D80 -> 0 | C76: =matrice2!C80 -> Maialino allevato allo stato brado - intero (8-10 kg) - ordinare con una settimana di anticipo | AH76: =matrice2!I80 -> 10.78
A77: 0 | B77: =AH77*A77*matrice2!D81 -> 0 | C77: =matrice2!C81 -> Maialino allevato allo stato brado - mezzo sezionato (4-5 kg) - ordinare con una settimana di anticipo | AH77: =matrice2!I81 -> 12.98
A78: 0 | B78: =AH78*A78*matrice2!D82 -> 0 | C78: =matrice2!C82 -> Maialino disossato condito (6 kg) - ordinare con una settimana di anticipo | AH78: =matrice2!I82 -> 17.6
A79: 0 | B79: =AH79*A79*matrice2!D83 -> 0 | C79: =matrice2!C83 -> Maialino fatto a porchetta (8 kg) - ordinare con una settimana di anticipo | AH79: =matrice2!I83 -> 15.4
A80: 0 | B80: =AH80*A80*matrice2!D84 -> 0 | C80: =matrice2!C84 -> Maiale intero | AH80: =matrice2!I84 -> 5.39
A81: 0 | B81: =AH81*A81*matrice2!D85 -> 0 | C81: =matrice2!C85 -> Mezzo maiale | AH81: =matrice2!I85 -> 6.6
A82: 0 | B82: =AH82*A82*matrice2!D86 -> 0 | C82: =matrice2!C86 -> 0 | AH82: =matrice2!I86 -> 0
A83: 0 | B83: =AH83*A83*matrice2!D87 -> 0 | C83: =matrice2!C87 -> capocollo intero con osso | AH83: =matrice2!I87 -> 8.8
A84: 0 | B84: =AH84*A84*matrice2!D88 -> 0 | C84: =matrice2!C88 -> capocollo intero senza osso | AH84: =matrice2!I88 -> 10.34
A85: 0 | B85: =AH85*A85*matrice2!D89 -> 0 | C85: =matrice2!C89 -> carre intero | AH85: =matrice2!I89 -> 5.5
A86: 0 | B86: =AH86*A86*matrice2!D90 -> 0 | C86: =matrice2!C90 -> Lombo intero | AH86: =matrice2!I90 -> 8.8
A87: 0 | B87: =AH87*A87*matrice2!D91 -> 0 | C87: =matrice2!C91 -> Lombo intero maiale piccolo | AH87: =matrice2!I91 -> 10.45
A88: 0 | B88: =AH88*A88*matrice2!D92 -> 0 | C88: =matrice2!C92 -> Prosciutto intero maiale piccolo | AH88: =matrice2!I92 -> 10.45
A89: 0 | B89: =AH89*A89*matrice2!D93 -> 0 | C89: =matrice2!C93 -> Prosciutto intero maiale con osso | AH89: =matrice2!I93 -> 7.7
A90: 0 | B90: =AH90*A90*matrice2!D94 -> 0 | C90: =matrice2!C94 -> Prosciutto intero maiale senza osso | AH90: =matrice2!I94 -> 10.01
A91: 0 | B91: =AH91*A91*matrice2!D95 -> 0 | C91: =matrice2!C95 -> Spalla intera maiale con osso | AH91: =matrice2!I95 -> 7.7
A92: 0 | B92: =AH92*A92*matrice2!D96 -> 0 | C92: =matrice2!C96 -> arista intera | AH92: =matrice2!I96 -> 12.496
A93: 0 | B93: =AH93*A93*matrice2!D97 -> 0 | C93: =matrice2!C97 -> Spalla intera maiale senza osso | AH93: =matrice2!I97 -> 10.45
A94: 0 | B94: =AH94*A94*matrice2!D98 -> 0 | C94: =matrice2!C98 -> 0 | AH94: =matrice2!I98 -> 0
A95: 0 | B95: =AH95*A95*matrice2!D99 -> 0 | C95: =matrice2!C99 -> Salsicce - vaschetta da 1,3 kg | AH95: =matrice2!I99 -> 8.25
A96: 0 | B96: =AH96*A96*matrice2!D100 -> 0 | C96: =matrice2!C100 -> Salsicce - vaschetta da 1 kg | AH96: =matrice2!I100 -> 8.25
A97: 0 | B97: =AH97*A97*matrice2!D101 -> 0 | C97: =matrice2!C101 -> Salsicce - vaschetta da 500 gr | AH97: =matrice2!I101 -> 8.25
A98: 0 | B98: =AH98*A98*matrice2!D102 -> 0 | C98: =matrice2!C102 -> Salsicce - vaschetta da 400 gr | AH98: =matrice2!I102 -> 8.25
A99: 0 | B99: =AH99*A99*matrice2!D103 -> 0 | C99: =matrice2!C103 -> Carne macinata (500 gr.) | AH99: =matrice2!I103 -> 7.7
A100: 0 | B100: =AH100*A100*matrice2!D104 -> 0 | C100: =matrice2!C104 -> Braciole di lombo (con osso) - 1,6 kg | AH100: =matrice2!I104 -> 9.87
A101: 0 | B101: =AH101*A101*matrice2!D105 -> 0 | C101: =matrice2!C105 -> Braciole di lombo (con osso) - 1 kg | AH101: =matrice2!I105 -> 10.857
A102: 0 | B102: =AH102*A102*matrice2!D106 -> 0 | C102: =matrice2!C106 -> Braciole di lombo (con osso) - vaschetta da 700 gr | AH102: =matrice2!I106 -> 10.967
A103: 0 | B103: =AH103*A103*matrice2!D107 -> 0 | C103: =matrice2!C107 -> Braciole di lombo (con osso) - vaschetta da 500 gr | AH103: =matrice2!I107 -> 10.857
A104: 0 | B104: =AH104*A104*matrice2!D108 -> 0 | C104: =matrice2!C108 -> Braciole di lombo (con osso) - vaschetta da 400 gr | AH104: =matrice2!I108 -> 10.857
A105: 0 | B105: =AH105*A105*matrice2!D109 -> 0 | C105: =matrice2!C109 -> Braciole di lombo (con osso) - vaschetta da 200 gr | AH105: =matrice2!I109 -> 10.857
A106: 0 | B106: =AH106*A106*matrice2!D110 -> 0 | C106: =matrice2!C110 -> Braciole di collo (senza osso) - a peso | AH106: =matrice2!I110 -> 9.87
A107: 0 | B107: =AH107*A107*matrice2!D111 -> 0 | C107: =matrice2!C111 -> Braciole di collo (senza osso) - 1 kg | AH107: =matrice2!I111 -> 11.319
A108: 0 | B108: =AH108*A108*matrice2!D112 -> 0 | C108: =matrice2!C112 -> Braciole di collo (senza osso) - 500 gr | AH108: =matrice2!I112 -> 11.319
A109: 0 | B109: =AH109*A109*matrice2!D113 -> 0 | C109: =matrice2!C113 -> 0 | AH109: =matrice2!I113 -> 0
A110: 0 | B110: =AH110*A110*matrice2!D114 -> 0 | C110: =matrice2!C114 -> 0 | AH110: =matrice2!I114 -> 0
A111: 0 | B111: =AH111*A111*matrice2!D115 -> 0 | C111: =matrice2!C115 -> Pancetta fresca a kg | AH111: =matrice2!I115 -> 5.775
A112: 0 | B112: =AH112*A112*matrice2!D116 -> 0 | C112: =matrice2!C116 -> Spuntature - 700 gr | AH112: =matrice2!I116 -> 5.775
A113: 0 | B113: =AH113*A113*matrice2!D117 -> 0 | C113: =matrice2!C117 -> Pancetta fresca - 700 gr | AH113: =matrice2!I117 -> 5.775
A114: 0 | B114: =AH114*A114*matrice2!D118 -> 0 | C114: =matrice2!C118 -> Pancetta fresca intera | AH114: =matrice2!I118 -> 5.775
A115: 0 | B115: =AH115*A115*matrice2!D119 -> 0 | C115: =matrice2!C119 -> Cotiche - 300 gr | AH115: =matrice2!I119 -> 3.465
A116: 0 | B116: =AH116*A116*matrice2!D120 -> 0 | C116: =matrice2!C120 -> 0 | AH116: =matrice2!I120 -> 0
A117: 0 | B117: =AH117*A117*matrice2!D121 -> 0 | C117: =matrice2!C121 -> Wurstel -1 kg | AH117: =matrice2!I121 -> 8.668
A118: 0 | B118: =AH118*A118*matrice2!D122 -> 0 | C118: =matrice2!C122 -> Wurstel - 600 gr | AH118: =matrice2!I122 -> 8.668
A119: 0 | B119: =AH119*A119*matrice2!D123 -> 0 | C119: =matrice2!C123 -> Wurstel - 400 gr | AH119: =matrice2!I123 -> 8.668
A120: 0 | B120: =AH120*A120*matrice2!D124 -> 0 | C120: =matrice2!C124 -> Wurstel - 200 gr | AH120: =matrice2!I124 -> 8.668
A121: 0 | B121: =AH121*A121*matrice2!D125 -> 0 | C121: =matrice2!C125 -> Guanciale fresco | AH121: =matrice2!I125 -> 6.93
A122: 0 | B122: =AH122*A122*matrice2!D126 -> 0 | C122: =matrice2!C126 -> 0 | AH122: =matrice2!I126 -> 0
A123: 0 | B123: =AH123*A123*matrice2!D127 -> 0 | C123: =matrice2!C127 -> 0 | AH123: =matrice2!I127 -> 0
A124: 0 | B124: =AH124*A124*matrice2!D128 -> 0 | C124: =matrice2!C128 -> 0 | AH124: =matrice2!I128 -> 0
A125: 0 | B125: =AH125*A125*matrice2!D129 -> 0 | C125: =matrice2!C129 -> Hamburger - vaschetta da 220 gr | AH125: =matrice2!I129 -> 11.319
A126: 0 | B126: =AH126*A126*matrice2!D130 -> 0 | C126: =matrice2!C130 -> Hamburger - singolo da 150 gr | AH126: =matrice2!I130 -> 11.319
A127: 0 | B127: =AH127*A127*matrice2!D131 -> 0 | C127: =matrice2!C131 -> 0 | AH127: =matrice2!I131 -> 0
A128: 0 | B128: =AH128*A128*matrice2!D132 -> 0 | C128: =matrice2!C132 -> Stinco (400 gr) | AH128: =matrice2!I132 -> 6.93
A129: 0 | B129: =AH129*A129*matrice2!D133 -> 0 | C129: =matrice2!C133 -> Spezzatino di maiale (500 gr) | AH129: =matrice2!I133 -> 10.978
A130: 0 | B130: =AH130*A130*matrice2!D134 -> 0 | C130: =matrice2!C134 -> 0 | AH130: =matrice2!I134 -> 0
B131: =AH131*A131*matrice2!D135 -> 0 | C131: =matrice2!C135 -> Vaschetta mista - 200 gr braciole + 200 gr salsicce | AH131: =matrice2!I135 -> 9.757
A132: 0 | B132: =AH132*A132*matrice2!D136 -> 0 | C132: =matrice2!C136 -> Vaschetta mista - 300 gr braciole + 300 gr salsicce | AH132: =matrice2!I136 -> 9.757
A133: 0 | B133: =AH133*A133*matrice2!D137 -> 0 | C133: =matrice2!C137 -> Vaschetta mista - 700 gr braciole + 400 gr salsicce | AH133: =matrice2!I137 -> 9.757
A134: 0 | B134: =AH134*A134*matrice2!D138 -> 0 | C134: =matrice2!C138 -> 0 | AH134: =matrice2!I138 -> 0
A135: 0 | B135: =AH135*A135*matrice2!D139 -> 0 | C135: =matrice2!C139 -> 0 | AH135: =matrice2!I139 -> 0
A136: 0 | B136: =AH136*A136*matrice2!D140 -> 0 | C136: =matrice2!C140 -> 0 | AH136: =matrice2!I140 -> 0
A137: 0 | B137: =AH137*A137*matrice2!D141 -> 0 | C137: =matrice2!C141 -> 0 | AH137: =matrice2!I141 -> 0
A138: =SUM(D138:AG138) -> 0 | B138: =AH138*A138*matrice2!D142 -> 0 | C138: =matrice2!C142 -> 0 | AH138: =matrice2!I142 -> 0
A139: 0 | B139: =AH139*A139*matrice2!D143 -> 0 | C139: =matrice2!C143 -> 0 | AH139: =matrice2!I143 -> 0
A140: 0 | B140: =AH140*A140*matrice2!D144 -> 0 | C140: =matrice2!C144 -> 0 | AH140: =matrice2!I144 -> 0
A141: 0 | B141: =AH141*A141*matrice2!D145 -> 0 | C141: =matrice2!C145 -> CARNI SUINE INSACCATE: MAIALE ALLEVATO ALLO STATO BRADO | AH141: =matrice2!I145 -> 0
A142: 0 | B142: =AH142*A142*matrice2!D146 -> 0 | C142: =matrice2!C146 -> Coppa di testa - trancio da 400 gr | AH142: =matrice2!I146 -> 10.857
A143: 0 | B143: =AH143*A143*matrice2!D147 -> 0 | C143: =matrice2!C147 -> Coppa di testa intera | AH143: =matrice2!I147 -> 10.857
A144: 0 | B144: =AH144*A144*matrice2!D148 -> 0 | C144: =matrice2!C148 -> Corallina - TRANCIO (300 gr) | AH144: =matrice2!I148 -> 18.139
A145: 0 | B145: =AH145*A145*matrice2!D149 -> 0 | C145: =matrice2!C149 -> Corallina intera (700 gr) | AH145: =matrice2!I149 -> 18.139
A146: 0 | B146: =AH146*A146*matrice2!D150 -> 0 | C146: =matrice2!C150 -> Cotechino (700 gr) | AH146: =matrice2!I150 -> 11.55
A147: 0 | B147: =AH147*A147*matrice2!D151 -> 0 | C147: =matrice2!C151 -> Fiore di prosciutto | AH147: =matrice2!I151 -> 36.96
A148: 0 | B148: =AH148*A148*matrice2!D152 -> 0 | C148: =matrice2!C152 -> guanciale | AH148: =matrice2!I152 -> 15.015
A149: 0 | B149: =AH149*A149*matrice2!D153 -> 0 | C149: =matrice2!C153 -> Lardo stagionato | AH149: =matrice2!I153 -> 11.55
A150: 0 | B150: =AH150*A150*matrice2!D154 -> 0 | C150: =matrice2!C154 -> Lonza | AH150: =matrice2!I154 -> 14.696
A151: 0 | B151: =AH151*A151*matrice2!D155 -> 0 | C151: =matrice2!C155 -> Mortadella (350 gr) | AH151: =matrice2!I155 -> 13.86
A152: 0 | B152: =AH152*A152*matrice2!D156 -> 0 | C152: =matrice2!C156 -> Mortadella affettata (100 gr) | AH152: =matrice2!I156 -> 23.1
A153: 0 | B153: =AH153*A153*matrice2!D157 -> 0 | C153: =matrice2!C157 -> pancetta arr.affettata (100 gr) | AH153: =matrice2!I157 -> 25.696
A154: 0 | B154: =AH154*A154*matrice2!D158 -> 0 | C154: =matrice2!C158 -> pancetta arrotolata (350 gr) | AH154: =matrice2!I158 -> 19.954
A155: 0 | B155: =AH155*A155*matrice2!D159 -> 0 | C155: =matrice2!C159 -> pancetta tesa (350 gr) | AH155: =matrice2!I159 -> 19.954
A156: 0 | B156: =AH156*A156*matrice2!D160 -> 0 | C156: =matrice2!C160 -> pancetta tesa affettata fina (100 gr) | AH156: =matrice2!I160 -> 26.246
A157: 0 | B157: =AH157*A157*matrice2!D161 -> 0 | C157: =matrice2!C161 -> pancetta tesa affettata spessa(0,5 cm) ( (200 gr) | AH157: =matrice2!I161 -> 18.997
A158: 0 | B158: =AH158*A158*matrice2!D162 -> 0 | C158: =matrice2!C162 -> Panciotto (500 gr) | AH158: =matrice2!I162 -> 15.598
A159: 0 | B159: =AH159*A159*matrice2!D163 -> 0 | C159: =matrice2!C163 -> Prosciutto cotto (a peso) | AH159: =matrice2!I163 -> 21.945
A160: 0 | B160: =AH160*A160*matrice2!D164 -> 0 | C160: =matrice2!C164 -> Prosciutto cotto affettato (100 gr) | AH160: =matrice2!I164 -> 28.534
A161: 0 | B161: =AH161*A161*matrice2!D165 -> 0 | C161: =matrice2!C165 -> Prosciutto cotto trancio (350 gr) | AH161: =matrice2!I165 -> 21.945
A162: 0 | B162: =AH162*A162*matrice2!D166 -> 0 | C162: =matrice2!C166 -> Salame di fegato (120 gr) | AH162: =matrice2!I166 -> 15.95
A163: 0 | B163: =AH163*A163*matrice2!D167 -> 0 | C163: =matrice2!C167 -> Salame dolce (150 gr) | AH163: =matrice2!I167 -> 15.95
A164: 0 | B164: =AH164*A164*matrice2!D168 -> 0 | C164: =matrice2!C168 -> Salame Martignano | AH164: =matrice2!I168 -> 20.79
A165: 0 | B165: =AH165*A165*matrice2!D169 -> 0 | C165: =matrice2!C169 -> Salame piccante (150 gr) | AH165: =matrice2!I169 -> 16.753
A166: 0 | B166: =AH166*A166*matrice2!D170 -> 0 | C166: =matrice2!C170 -> 0 | AH166: =matrice2!I170 -> 0
A167: 0 | B167: =AH167*A167*matrice2!D171 -> 0 | C167: =matrice2!C171 -> 0 | AH167: =matrice2!I171 -> 0
A168: 0 | B168: =AH168*A168*matrice2!D172 -> 0 | C168: =matrice2!C172 -> 0 | AH168: =matrice2!I172 -> 0
A169: 0 | B169: =AH169*A169*matrice2!D173 -> 0 | C169: =matrice2!C173 -> 0 | AH169: =matrice2!I173 -> 0
A170: 0 | B170: =AH170*A170*matrice2!D174 -> 0 | C170: =matrice2!C174 -> 0 | AH170: =matrice2!I174 -> 0
A171: 0 | B171: =AH171*A171*matrice2!D175 -> 0 | C171: =matrice2!C175 -> 0 | AH171: =matrice2!I175 -> 0
A172: 0 | B172: =AH172*A172*matrice2!D176 -> 0 | C172: =matrice2!C176 -> 0 | AH172: =matrice2!I176 -> 0
A173: 0 | B173: =AH173*A173*matrice2!D177 -> 0 | C173: =matrice2!C177 -> 0 | AH173: =matrice2!I177 -> 22
A174: 0 | B174: =AH174*A174*matrice2!D178 -> 0 | C174: =matrice2!C178 -> 0 | AH174: =matrice2!I178 -> 0
A175: 0 | B175: =AH175*A175*matrice2!D179 -> 0 | C175: =matrice2!C179 -> 0 | AH175: =matrice2!I179 -> 0
A176: 0 | B176: =AH176*A176*matrice2!D180 -> 0 | C176: =matrice2!C180 -> 0 | AH176: =matrice2!I180 -> 0
A177: 0 | B177: =AH177*A177*matrice2!D181 -> 0 | C177: =matrice2!C181 -> 0 | AH177: =matrice2!I181 -> 0
A178: 0 | B178: =AH178*A178*matrice2!D182 -> 0 | C178: =matrice2!C182 -> 0 | AH178: =matrice2!I182 -> 0
A179: 0 | B179: =AH179*A179*matrice2!D183 -> 0 | C179: =matrice2!C183 -> 0 | AH179: =matrice2!I183 -> 0
A180: 0 | B180: =AH180*A180*matrice2!D184 -> 0 | C180: =matrice2!C184 -> 0 | AH180: =matrice2!I184 -> 0
A181: 0 | B181: =AH181*A181*matrice2!D185 -> 0 | C181: =matrice2!C185 -> CONFETTURE | AH181: =matrice2!I185 -> 0
A182: 0 | B182: =AH182*A182*matrice2!D186 -> 0 | C182: =matrice2!C186 -> Confettura di peperoni - in barattolo da 106 gr | AH182: =matrice2!I186 -> 3.52
A183: 0 | B183: =AH183*A183*matrice2!D187 -> 0 | C183: =matrice2!C187 -> 0 | AH183: =matrice2!I187 -> 0
A184: 0 | B184: =AH184*A184*matrice2!D188 -> 0 | C184: =matrice2!C188 -> 0 | AH184: =matrice2!I188 -> 0
A185: 0 | B185: =AH185*A185*matrice2!D189 -> 0 | C185: =matrice2!C189 -> Confettura albicocche - in barattolo da 320 gr | AH185: =matrice2!I189 -> 3.85
A186: 0 | B186: =AH186*A186*matrice2!D190 -> 0 | C186: =matrice2!C190 -> 0 | AH186: =matrice2!I190 -> 0
A187: 0 | B187: =AH187*A187*matrice2!D191 -> 0 | C187: =matrice2!C191 -> 0 | AH187: =matrice2!I191 -> 0
A188: 0 | B188: =AH188*A188*matrice2!D192 -> 0 | C188: =matrice2!C192 -> Confettura pere e cannella - in barattolo da 320 gr | AH188: =matrice2!I192 -> 3.85
A189: 0 | B189: =AH189*A189*matrice2!D193 -> 0 | C189: =matrice2!C193 -> 0 | AH189: =matrice2!I193 -> 0
A190: 0 | B190: =AH190*A190*matrice2!D194 -> 0 | C190: =matrice2!C194 -> 0 | AH190: =matrice2!I194 -> 0
A191: 0 | B191: =AH191*A191*matrice2!D195 -> 0 | C191: =matrice2!C195 -> 0 | AH191: =matrice2!I195 -> 0
A192: 0 | B192: =AH192*A192*matrice2!D196 -> 0 | C192: =matrice2!C196 -> 0 | AH192: =matrice2!I196 -> 0
A193: 0 | B193: =AH193*A193*matrice2!D197 -> 0 | C193: =matrice2!C197 -> PANE | AH193: =matrice2!I197 -> 0
A194: 0 | B194: =AH194*A194*matrice2!D198 -> 0 | C194: =matrice2!C198 -> Pane con lievito madre cotto a legna - 500 gr | AH194: =matrice2!I198 -> 3.795
A195: 0 | B195: =AH195*A195*matrice2!D199 -> 0 | C195: =matrice2!C199 -> Pane con lievito madre cotto a legna - 500 gr - integrale | AH195: =matrice2!I199 -> 5.5
A196: 0 | B196: =AH196*A196*matrice2!D200 -> 0 | C196: =matrice2!C200 -> Pane con lievito madre cotto a legna - 500 gr - con le noci | AH196: =matrice2!I200 -> 7.59
A197: 0 | B197: =AH197*A197*matrice2!D201 -> 0 | C197: =matrice2!C201 -> Pane con lievito madre cotto a legna - 500 gr - con pomodorini secchi | AH197: =matrice2!I201 -> 7.59
A198: 0 | B198: =AH198*A198*matrice2!D202 -> 0 | C198: =matrice2!C202 -> Pane con lievito madre cotto a legna - 500 gr - ai 5 cereali con farina macinata a pietra | AH198: =matrice2!I202 -> 7.975
A199: 0 | B199: =AH199*A199*matrice2!D203 -> 0 | C199: =matrice2!C203 -> 0 | AH199: =matrice2!I203 -> 0
A200: 0 | B200: =AH200*A200*matrice2!D204 -> 0 | C200: =matrice2!C204 -> 0 | AH200: =matrice2!I204 -> 0
... 78 more rows

Sheet matrice2 (hidden)
E1: cod-listino | F1: dal 24/27novembre-2015
C2: info
C3: www.casaledimartignano.it - labottega@casaledimartignano.it - 334.888.31.55
F5: prezzo netto/uds | I5: prezzo lordo/uds | K5: prezzo lordo indicativo | N5: =E9 -> kg
A6: id categoria | B6: id prodotto | C6: referenza -nome e descrizione completa (porzione, peso, varie, …) | D6: porzione (peso indicativo) | E6: udm | F6: ingrosso | G6: dettaglio | H6: iva | I6: ingrosso | J6: dettaglio | K6: ingrosso | L6: dettaglio | M6: incremento prezzo listini | N6: se= | O6: bio | P6: km 0 | Q6: prodotto sociale | R6: produttore
N7: prodotto a prezzo fisso
A8: * | B8: * | C8: RICOTTA DI PECORA | N8: prodotto a peso - prezzo indicativo
A9: * | B9: 1 | C9: Ricottina - cestino da 300 gr | D9: 0.3 | E9: kg | F9: 6.3 | G9: 7.69 | H9: 0.04 | I9: =F9*(1+H9) -> 6.552 | J9: 7.9976 | K9: =I9*D9 -> 1.9656 | L9: 2.79916 | M9: 1.281666667 | N9: prodotto a peso - prezzo indicativo | O9: x | P9: x | Q9: x | R9: Casale di Martignano
A10: * | B10: 1 | C10: Ricottina - cestino da 350 gr | D10: 0.35 | E10: kg | F10: 6.3 | G10: 7.69 | H10: 0.04 | I10: =F10*(1+H10) -> 6.552 | J10: 7.9976 | K10: =I10*D10 -> 2.2932 | L10: 3.9988 | M10: 1.281666667 | N10: prodotto a peso - prezzo indicativo | O10: x | P10: x | Q10: x | R10: Casale di Martignano
A11: * | B11: 1 | C11: Ricotta Grande - cesto da 1,7 kg | D11: 1.7 | E11: kg | F11: 6.3 | G11: 7.69 | H11: 0.04 | I11: =F11*(1+H11) -> 6.552 | J11: 7.9976 | K11: =I11*D11 -> 11.1384 | L11: 11.9964 | M11: 1.281666667 | N11: prodotto a peso - prezzo indicativo | O11: x | P11: x | Q11: x | R11: Casale di Martignano
A12: * | B12: 149 | C12: Ricotta 100 gr | D12: 0.1 | E12: kg | F12: 6.3 | G12: 7.69 | H12: 0.04 | I12: =F12*(1+H12) -> 6.552 | K12: =I12*D12 -> 0.6552
F13: 0 | I13: =F13*(1+H13) -> 0 | J13: 0 | K13: =I13*D13 -> 0 | L13: 0 | M13: --- | N13: prodotto a prezzo fisso
F14: 0 | I14: 0 | J14: 0 | K14: 0 | L14: 0 | M14: --- | N14: prodotto a prezzo fisso
F15: 0 | I15: 0 | J15: 0 | K15: 0 | L15: 0 | M15: --- | N15: prodotto a prezzo fisso
F16: 0 | I16: 0 | J16: 0 | K16: 0 | L16: 0 | M16: --- | N16: prodotto a prezzo fisso
F17: 0 | I17: 0 | J17: 0 | K17: 0 | L17: 0 | M17: --- | N17: prodotto a prezzo fisso
F18: 0 | I18: 0 | J18: 0 | K18: 0 | L18: 0 | M18: --- | N18: prodotto a prezzo fisso
F19: 0 | I19: 0 | J19: 0 | K19: 0 | L19: 0 | M19: --- | N19: prodotto a prezzo fisso
A20: * | B20: * | C20: FORMAGGI DI PECORA A LATTE CRUDO CON CAGLIO ANIMALE | F20: 0 | I20: 0 | J20: 0 | K20: 0
A21: * | B21: 150 | C21: primo sale 100 gr | D21: 0.1 | E21: kg | F21: 8.72 | G21: 14 | H21: 0.04 | I21: 9.0688 | J21: 10 | K21: 0.90688 | L21: 0 | M21: --- | N21: prodotto a prezzo fisso
A22: * | B22: 3 | C22: Primo sale piccolo - porzione da 300 gr | D22: 0.3 | E22: kg | F22: 8.72 | G22: 9.62 | H22: 0.04 | I22: =F22*(1+H22) -> 9.0688 | J22: 10.0048 | K22: =I22*D22 -> 2.72064 | L22: 2.5012 | M22: 1.159036145 | N22: prodotto a peso - prezzo indicativo | O22: x | P22: x | Q22: x | R22: Casale di Martignano
A23: * | B23: 3 | C23: Primo sale - porzione da 350 gr | D23: 0.35 | E23: kg | F23: 8.72 | G23: 9.62 | H23: 0.04 | I23: 9.0688 | J23: 10.0048 | K23: 3.17408 | L23: 3.50168 | M23: 1.159036145 | N23: prodotto a peso - prezzo indicativo | O23: x | P23: x | Q23: x | R23: Casale di Martignano
A24: * | B24: 3 | C24: Primo sale grande - forma da 2,5 kg | D24: 1 | E24: kg | F24: 8.72 | G24: 9.164 | H24: 0.04 | I24: 9.0688 | J24: 10 | K24: 9.0688 | L24: 9.53056 | M24: 1.16 | N24: prodotto a peso - prezzo indicativo | O24: x | P24: x | Q24: x | R24: Casale di Martignano
A25: * | B25: 3 | C25: Primo sale - A PESO | D25: 1 | E25: kg | F25: 8.72 | G25: 9.62 | H25: 0.04 | I25: 9.0688 | J25: 10.0048 | K25: 9.0688 | L25: 10.0048 | M25: 1.159036145 | N25: prodotto a peso - prezzo indicativo
A26: * | B26: 4 | C26: Caciotta - porzione da 200 gr | D26: 0.2 | E26: KG | F26: 11.55 | G26: 12.5 | H26: 0.04 | I26: 12.012 | J26: 0 | K26: 2.4024 | L26: 0 | M26: --- | N26: prodotto a prezzo fisso
A27: * | B27: 4 | C27: Caciotta - porzione da 250 gr | D27: 0.25 | E27: KG | F27: 11.55 | G27: 12.5 | H27: 0.04 | I27: 12.012 | J27: 13 | K27: 3.003 | L27: 2.6 | M27: 1.136363636 | N27: prodotto a peso - prezzo indicativo
A28: * | B28: 4 | C28: Caciotta - porzione da 300 gr | D28: 0.3 | E28: kg | F28: 11.55 | G28: 12.5 | H28: 0.04 | I28: 12.012 | J28: 13 | K28: 3.6036 | L28: 4.55 | M28: 1.136363636 | N28: prodotto a peso - prezzo indicativo | O28: x | P28: x | Q28: x | R28: Casale di Martignano
A29: * | B29: 4 | C29: Caciotta - porzione da 500 gr | D29: 0.5 | E29: kg | F29: 11.55 | G29: 12.5 | H29: 0.04 | I29: 12.012 | J29: 13 | K29: 6.006 | L29: 6.5 | M29: 1.136363636 | N29: prodotto a peso - prezzo indicativo | O29: x | P29: x | Q29: x | R29: Casale di Martignano
A30: * | B30: 4 | C30: Caciotta - A PESO | D30: 1 | E30: kg | F30: 11.55 | G30: 12.5 | H30: 0.04 | I30: 12.012 | J30: 13 | K30: 12.012 | L30: 13 | M30: 1.136363636 | N30: prodotto a peso - prezzo indicativo
A31: 2 | B31: 97 | C31: Caciotta speziata al peperoncino - 300 gr | D31: 0.35 | E31: kg | F31: 11.55 | G31: 10.58 | H31: 0.04 | I31: 12.012 | J31: 11.0032 | K31: 4.2042 | L31: 3.85112 | M31: 1.162637363 | N31: prodotto a peso - prezzo indicativo | O31: x | P31: x | Q31: x | R31: Casale di Martignano
A32: 2 | B32: 97 | C32: Caciotta speziata al pepe rosa - 300 gr | D32: 0.35 | E32: kg | F32: 11.55 | G32: 10.58 | H32: 0.04 | I32: 12.012 | J32: 11.0032 | K32: 4.2042 | L32: 3.85112 | M32: 1.162637363 | N32: prodotto a peso - prezzo indicativo | O32: x | P32: x | Q32: x | R32: Casale di Martignano
A34: 2 | I34: 0 | J34: 0 | K34: 0 | L34: 0 | M34: --- | N34: prodotto a prezzo fisso
A35: * | B35: 5 | C35: Cacio Martino - porzione da 400 gr | D35: 0.4 | E35: kg | F35: 14.7 | G35: 16.35 | H35: 0.04 | I35: 15.288 | J35: 17.004 | K35: 6.1152 | L35: 6.8016 | M35: 1.167857143 | N35: prodotto a peso - prezzo indicativo
I36: 0 | K36: 0
A37: * | B37: 5 | C37: Cacio Martino - forma intera da 800 gr | D37: 0.8 | E37: kg | F37: 14.7 | G37: 16.35 | H37: 0.04 | I37: 15.288 | J37: 17.004 | K37: 12.2304 | L37: 13.6032 | M37: 1.167857143 | N37: prodotto a peso - prezzo indicativo | O37: x | P37: x | Q37: x | R37: Casale di Martignano
A38: 2 | I38: 0 | J38: 0 | K38: 0 | L38: 0 | M38: --- | N38: prodotto a prezzo fisso
A39: 2 | I39: 0 | J39: 0 | K39: 0 | L39: 0 | M39: --- | N39: prodotto a prezzo fisso
A40: * | B40: 6 | C40: Majio - Pecorino stagionato (5 mesi +) - porzione da 220 gr | D40: 0.22 | E40: kg | F40: 18.38 | G40: 20.19 | H40: 0.04 | I40: 19.1152 | J40: 20.9976 | K40: 4.205344 | L40: 4.619472 | M40: 1.153714286 | N40: prodotto a peso - prezzo indicativo | O40: x | P40: x | Q40: x | R40: Casale di Martignano
A41: * | B41: 6 | C41: Majio - Pecorino stagionato (5 mesi +) - porzione da 300 gr | D41: 0.3 | E41: kg | F41: 18.38 | G41: 20.19 | H41: 0.04 | I41: 19.1152 | J41: 20.9976 | K41: 5.73456 | L41: 6.29928 | M41: 1.153714286 | N41: prodotto a peso - prezzo indicativo
A42: 2 | I42: 0 | J42: 0 | K42: 0 | L42: 0 | M42: --- | N42: prodotto a prezzo fisso
A43: * | B43: 6 | C43: Majio - Pecorino stagionato (5 mesi +) - A PESO | D43: 1 | E43: kg | F43: 17.5 | G43: 20.19 | H43: 0.04 | I43: 18.2 | J43: 20.9976 | K43: 18.2 | L43: 20.9976 | M43: 1.153714286 | N43: prodotto a peso - prezzo indicativo
A44: 2 | I44: 0 | J44: 0 | K44: 0 | L44: 0 | M44: --- | N44: prodotto a prezzo fisso
A45: 2 | I45: 0 | J45: 0 | K45: 0 | L45: 0 | M45: --- | N45: prodotto a prezzo fisso
A46: 2 | I46: 0 | J46: 0 | K46: 0 | L46: 0 | M46: --- | N46: prodotto a prezzo fisso
A47: * | B47: * | C47: FORMAGGIO SPALMABILE | I47: 0 | J47: 0 | K47: 0
A48: * | B48: 41 | C48: Crema di Majio - barattolo da 180 gr | D48: 1 | E48: barattolo | F48: 4.1 | G48: 4.55 | H48: 0.1 | I48: 4.51 | J48: 5.005 | K48: 4.51 | L48: 5.005 | M48: 1.166666667 | N48: prodotto a prezzo fisso
A49: 3 | B49: 42 | C49: Crema di Majio delattosato - barattolo da 180 gr | D49: 1 | E49: barattolo | F49: 4.2 | G49: 4.64 | H49: 0.1 | I49: 4.62 | J49: 5.104 | K49: 4.62 | L49: 5.104 | M49: 1.16 | N49: prodotto a prezzo fisso
A50: 3 | I50: 0 | J50: 0 | K50: 0 | L50: 0 | M50: --- | N50: prodotto a prezzo fisso
A51: 3 | I51: 0 | J51: 0 | K51: 0 | L51: 0 | M51: --- | N51: prodotto a prezzo fisso
A52: 3 | I52: 0 | J52: 0 | K52: 0 | L52: 0 | M52: --- | N52: prodotto a prezzo fisso
A53: 3 | I53: 0 | J53: 0 | K53: 0 | L53: 0 | M53: --- | N53: prodotto a prezzo fisso
A54: 3 | I54: 0 | J54: 0 | K54: 0 | L54: 0 | M54: --- | N54: prodotto a prezzo fisso
A55: * | B55: * | C55: FORMAGGI DI PECORA A LATTE CRUDO CON CAGLIO VEGETALE | I55: 0 | J55: 0 | K55: 0
A56: * | B56: 7 | C56: Cardo di Martignano | D56: 0.3 | E56: kg | F56: 15.75 | G56: 17.31 | H56: 0.04 | I56: 16.38 | J56: 18.0024 | K56: 4.914 | L56: 5.40072 | M56: 1.154 | N56: prodotto a peso - prezzo indicativo | O56: x | P56: x | Q56: x | R56: Casale di Martignano
A57: 4 | B57: 8 | C57: Caciofiore di Columella | D57: 0.3 | E57: kg | F57: 22.21 | G57: 24.04 | H57: 0.04 | I57: 23.0984 | J57: 25.0016 | K57: 6.92952 | L57: 7.50048 | M57: 1.136643026 | N57: prodotto a peso - prezzo indicativo | O57: x | P57: x | Q57: x | R57: Casale di Martignano
A58: 4 | I58: 0 | J58: 0 | K58: 0 | L58: 0 | M58: --- | N58: prodotto a prezzo fisso
A59: 4 | I59: 0 | J59: 0 | K59: 0 | L59: 0 | M59: --- | N59: prodotto a prezzo fisso
A60: 4 | I60: 0 | J60: 0 | K60: 0 | L60: 0 | M60: --- | N60: prodotto a prezzo fisso
A61: 4 | I61: 0 | J61: 0 | K61: 0 | L61: 0 | M61: --- | N61: prodotto a prezzo fisso
A62: 4 | I62: 0 | J62: 0 | K62: 0 | L62: 0 | M62: --- | N62: prodotto a prezzo fisso
A63: * | B63: * | C63: CARNI OVINE | I63: 0 | J63: 0 | K63: 0
A64: * | B64: 39 | C64: Abbacchio romano IGP - intero (7-9 kg) - ordinare con una settimana di anticipo | D64: 8 | E64: kg | F64: 10.29 | G64: 11.36 | H64: 0.1 | I64: =F64*(1+H64) -> 11.319 | J64: 12.496 | K64: =I64*D64 -> 90.552 | L64: 99.968 | M64: 1.159183673 | N64: prodotto a peso - prezzo indicativo | O64: x | P64: x | Q64: x | R64: Casale di Martignano
A65: * | B65: 99 | C65: Abbacchio romano IGP - mezzo (3-4 kg) - ordinare con una settimana di anticipo | D65: 3.5 | E65: kg | F65: 11.7 | G65: 13.64 | H65: 0.1 | I65: 12.87 | J65: 15.004 | K65: 45.045 | L65: 52.514 | M65: 1.165811966 | N65: prodotto a peso - prezzo indicativo | O65: x | P65: x | Q65: x | R65: Casale di Martignano
A66: * | B66: 87 | C66: Arrosticini - 1 kg (circa 50) | D66: 1 | E66: kg | F66: 11.97 | G66: 13.64 | H66: 0.1 | I66: 13.167 | J66: 15.004 | K66: 13.167 | L66: 15.004 | M66: 1.186086957 | N66: prodotto a peso - prezzo indicativo | O66: x | P66: x | Q66: x | R66: Casale di Martignano
A67: * | B67: 87 | C67: Arrosticini - 500 gr (circa 25) | D67: 0.5 | E67: kg | F67: 11.97 | G67: 13.64 | H67: 0.1 | I67: 13.167 | J67: 15.004 | K67: 6.5835 | L67: 7.502 | M67: 1.186086957 | N67: prodotto a peso - prezzo indicativo | O67: x | P67: x | Q67: x | R67: Casale di Martignano
A68: 5 | B68: 40 | C68: Castrato - Coscio con osso (circa 1,5 kg) | D68: 1.5 | E68: kg | F68: 10.5 | G68: 10.91 | H68: 0.1 | I68: 11.55 | J68: 12.001 | K68: 17.325 | L68: 18.0015 | M68: 1.091 | N68: prodotto a peso - prezzo indicativo | O68: x | P68: x | Q68: x | R68: Casale di Martignano
A69: 5 | B69: 134 | C69: Castrato intero | D69: 20 | E69: kg | F69: 10.5 | G69: 11.36 | H69: 0.1 | I69: 11.55 | J69: 12.496 | K69: 231 | L69: 99.968 | M69: 1.159183673 | N69: prodotto a peso - prezzo indicativo | O69: x | P69: x | Q69: x | R69: Casale di Martignano
A70: * | B70: 98 | C70: Coscio di Abbacchio romano IGP (circa 1 kg) - ordinare con una settimana di anticipo | D70: 1 | E70: kg | F70: 12 | G70: 13.64 | H70: 0.1 | I70: 13.2 | J70: 15.004 | K70: 13.2 | L70: 15.004 | M70: 1.165811966 | N70: prodotto a peso - prezzo indicativo | O70: x | P70: x | Q70: x | R70: Casale di Martignano
A71: 5 | B71: 100 | C71: Hamburger di castrato (220 gr) | D71: 0.22 | E71: kg | F71: 10.29 | G71: 11.36 | H71: 0.1 | I71: 11.319 | J71: 12.496 | K71: 2.49018 | L71: 2.74912 | M71: 1.159183673 | N71: prodotto a peso - prezzo indicativo | O71: x | P71: x | Q71: x | R71: Casale di Martignano
A72: 5 | B72: 101 | C72: Macinato di pecora 300gr. | D72: 0.22 | E72: kg | F72: 6.83 | G72: =9.9/1.1 -> 9 | H72: 0.1 | I72: 7.513 | J72: 12.496 | K72: 1.65286 | L72: 2.74912 | M72: 1.159183673 | N72: prodotto a peso - prezzo indicativo | O72: x | P72: x | Q72: x | R72: Casale di Martignano
A73: 5 | B73: 89 | C73: Pecora Intera | D73: 20 | E73: kg | F73: 5.25 | G73: 11.36 | H73: 0.1 | I73: 5.775 | J73: 12.496 | K73: 115.5 | L73: 99.968 | M73: 1.159183673 | N73: prodotto a peso - prezzo indicativo | O73: x | P73: x | Q73: x | R73: Casale di Martignano
A74: 5 | I74: 0 | J74: 0 | K74: 0 | L74: 0 | M74: --- | N74: prodotto a prezzo fisso
A75: 5 | I75: =F75*(1+H75) -> 0 | J75: 0 | K75: =I75*D75 -> 0 | L75: 0 | M75: --- | N75: prodotto a prezzo fisso
A76: 5 | I76: 0 | J76: 0 | K76: 0 | L76: 0 | M76: --- | N76: prodotto a prezzo fisso
A77: 5 | I77: 0 | J77: 0 | K77: 0 | L77: 0 | M77: --- | N77: prodotto a prezzo fisso
A78: 5 | I78: 0 | J78: 0 | K78: 0 | L78: 0 | M78: --- | N78: prodotto a prezzo fisso
A79: * | B79: * | C79: CARNI SUINE FRESCHE: MAIALE ALLEVATO ALLO STATO BRADO | I79: 0 | J79: 0 | K79: 0
A80: * | B80: 1002 | C80: Maialino allevato allo stato brado - intero (8-10 kg) - ordinare con una settimana di anticipo | D80: 9 | E80: kg | F80: 9.8 | G80: 11.36 | H80: 0.1 | I80: 10.78 | J80: 12.496 | K80: 97.02 | L80: 112.464 | M80: 1.159183673 | N80: prodotto a peso - prezzo indicativo | O80: x | P80: x | Q80: x | R80: Casale di Martignano
A81: * | B81: 102 | C81: Maialino allevato allo stato brado - mezzo sezionato (4-5 kg) - ordinare con una settimana di anticipo | D81: 4.5 | E81: kg | F81: 11.8 | G81: 13.64 | H81: 0.1 | I81: 12.98 | J81: 15.004 | K81: 58.41 | L81: 67.518 | M81: 1.155932203 | N81: prodotto a peso - prezzo indicativo | O81: x | P81: x | Q81: x | R81: Casale di Martignano
A82: * | B82: 37 | C82: Maialino disossato condito (6 kg) - ordinare con una settimana di anticipo | D82: 6 | E82: kg | F82: 16 | G82: 18.18 | H82: 0.1 | I82: 17.6 | J82: 19.998 | K82: 105.6 | L82: 59.994 | M82: 1.13625 | N82: prodotto a peso - prezzo indicativo
A83: * | B83: 38 | C83: Maialino fatto a porchetta (8 kg) - ordinare con una settimana di anticipo | D83: 8 | E83: kg | F83: 14 | G83: 18.18 | H83: 0.1 | I83: 15.4 | J83: 19.998 | K83: 123.2 | L83: 59.994 | M83: 1.13625 | N83: prodotto a peso - prezzo indicativo
A84: 6 | B84: 1001 | C84: Maiale intero | D84: 110 | E84: kg | F84: 4.9 | G84: 18.18 | H84: 0.1 | I84: 5.39 | J84: 19.998 | K84: 592.9 | L84: 59.994 | M84: 1.13625 | N84: prodotto a peso - prezzo indicativo
A85: 6 | B85: 35 | C85: Mezzo maiale | D85: 50 | E85: kg | F85: 6 | G85: 18.18 | H85: 0.1 | I85: 6.6 | J85: 19.998 | K85: 330 | L85: 59.994 | M85: 1.13625 | N85: prodotto a peso - prezzo indicativo
A86: 6 | I86: 0 | J86: 0 | K86: 0 | L86: 0 | M86: --- | N86: prodotto a prezzo fisso
A87: 6 | B87: 83 | C87: capocollo intero con osso | D87: 4 | E87: kg | F87: 8 | H87: 0.1 | I87: 8.8 | J87: 0 | K87: 35.2 | L87: 0 | M87: --- | N87: prodotto a prezzo fisso
A88: 6 | B88: 84 | C88: capocollo intero senza osso | D88: 3 | E88: kg | F88: 9.4 | H88: 0.1 | I88: 10.34 | J88: 0 | K88: 31.02 | L88: 0 | M88: --- | N88: prodotto a prezzo fisso
A89: 6 | B89: 17 | C89: carre intero | D89: 3 | E89: kg | F89: 5 | G89: 5.45 | H89: 0.1 | I89: =F89*(1+H89) -> 5.5 | J89: 5.995 | K89: =I89*D89 -> 16.5 | L89: 4.1965 | M89: 1.09 | N89: prodotto a peso - prezzo indicativo | O89: x | P89: x | Q89: x | R89: Casale di Martignano
A90: 6 | B90: 13 | C90: Lombo intero | D90: 6 | E90: kg | F90: 8 | G90: 10 | H90: 0.1 | I90: 8.8 | J90: 11 | K90: 52.8 | L90: 0 | M90: --- | N90: prodotto a prezzo fisso
A91: 6 | B91: 104 | C91: Lombo intero maiale piccolo | D91: 4 | E91: kg | F91: 9.5 | G91: 10.91 | H91: 0.1 | I91: 10.45 | J91: 12.001 | K91: 41.8 | L91: 0 | M91: --- | N91: prodotto a prezzo fisso
A92: 6 | B92: 105 | C92: Prosciutto intero maiale piccolo | D92: 3 | E92: kg | F92: 9.5 | G92: 10.91 | H92: 0.1 | I92: 10.45 | J92: 12.001 | K92: 31.35 | L92: 0 | M92: --- | N92: prodotto a prezzo fisso
A93: 6 | B93: 14 | C93: Prosciutto intero maiale con osso | D93: 15 | E93: kg | F93: 7 | H93: 0.1 | I93: 7.7 | J93: 12.001 | K93: 115.5 | L93: 0 | M93: --- | N93: prodotto a prezzo fisso
A94: 6 | B94: 88 | C94: Prosciutto intero maiale senza osso | D94: 9 | E94: kg | F94: 9.1 | H94: 0.1 | I94: 10.01 | J94: 12.001 | K94: 90.09 | L94: 0 | M94: --- | N94: prodotto a prezzo fisso
A95: 6 | B95: 108 | C95: Spalla intera maiale con osso | D95: 10 | E95: kg | F95: 7 | H95: 0.1 | I95: 7.7 | J95: 12.001 | K95: 77 | L95: 0 | M95: --- | N95: prodotto a prezzo fisso
A96: 6 | B96: 9 | C96: arista intera | D96: 3 | E96: kg | F96: 11.36 | G96: 12.55 | H96: 0.1 | I96: 12.496 | J96: 13.805 | K96: 37.488 | L96: 13.805 | M96: 1.159889094 | N96: prodotto a peso - prezzo indicativo | O96: x | P96: x | Q96: x | R96: Casale di Martignano
A97: 6 | B97: 96 | C97: Spalla intera maiale senza osso | D97: 10 | E97: kg | F97: 9.5 | H97: 0.1 | I97: =F97*(1+H97) -> 10.45 | J97: 12.001 | K97: =I97*D97 -> 104.5 | L97: 0 | M97: --- | N97: prodotto a prezzo fisso
A98: 6 | E98: kg | H98: 0.1 | I98: =F98*(1+H98) -> 0 | J98: 0 | K98: 0 | L98: 0 | M98: --- | N98: prodotto a peso - prezzo indicativo | O98: x | P98: x | Q98: x | R98: Casale di Martignano
A99: * | B99: 12 | C99: Salsicce - vaschetta da 1,3 kg | D99: 1.3 | E99: kg | F99: 7.5 | G99: 8.64 | H99: 0.1 | I99: 8.25 | J99: 9.504 | K99: =I99*D99 -> 10.725 | L99: 12.3552 | M99: 1.152 | N99: prodotto a peso - prezzo indicativo | O99: x | P99: x | Q99: x | R99: Casale di Martignano
A100: * | B100: 12 | C100: Salsicce - vaschetta da 1 kg | D100: 1 | E100: kg | F100: 7.5 | G100: 8.64 | H100: 0.1 | I100: 8.25 | J100: 9.504 | K100: =I100*D100 -> 8.25 | L100: 9.504 | M100: 1.152 | N100: prodotto a peso - prezzo indicativo | O100: x | P100: x | Q100: x | R100: Casale di Martignano
A101: * | B101: 12 | C101: Salsicce - vaschetta da 500 gr | D101: 0.5 | E101: kg | F101: 7.5 | G101: 8.64 | H101: 0.1 | I101: 8.25 | J101: 9.504 | K101: =I101*D101 -> 4.125 | L101: 4.752 | M101: 1.152 | N101: prodotto a peso - prezzo indicativo | O101: x | P101: x | Q101: x | R101: Casale di Martignano
A102: * | B102: 12 | C102: Salsicce - vaschetta da 400 gr | D102: 0.4 | E102: kg | F102: 7.5 | G102: 8.64 | H102: 0.1 | I102: 8.25 | J102: 9.504 | K102: =I102*D102 -> 3.3 | L102: 3.8016 | M102: 1.152 | N102: prodotto a peso - prezzo indicativo | O102: x | P102: x | Q102: x | R102: Casale di Martignano
A103: * | B103: 136 | C103: Carne macinata (500 gr.) | D103: 0.5 | E103: kg | F103: 7 | G103: =7*1.2 -> 8.4 | H103: 0.1 | I103: 7.7 | J103: 7.5 | K103: =I103*D103 -> 3.85 | L103: 0 | M103: --- | N103: prodotto a prezzo fisso
A104: * | B104: 11 | C104: Braciole di lombo (con osso) - 1,6 kg | F104: 9.87 | I104: 9.87 | J104: 0 | K104: 0 | L104: 0 | M104: --- | N104: prodotto a prezzo fisso
A105: * | B105: 11 | C105: Braciole di lombo (con osso) - 1 kg | D105: 1 | E105: kg | F105: 9.87 | G105: 10.91 | H105: 0.1 | I105: 10.857 | J105: 12.001 | K105: 10.857 | L105: 12.001 | M105: 1.160638298 | N105: prodotto a peso - prezzo indicativo | O105: x | P105: x | Q105: x | R105: Casale di Martignano
A106: * | B106: 11 | C106: Braciole di lombo (con osso) - vaschetta da 700 gr | D106: 0.7 | E106: kg | F106: 9.97 | G106: 10.91 | H106: 0.1 | I106: 10.967 | J106: 12.001 | K106: 7.6769 | L106: 8.4007 | M106: 1.160638298 | N106: prodotto a peso - prezzo indicativo | O106: x | P106: x | Q106: x | R106: Casale di Martignano
A107: * | B107: 11 | C107: Braciole di lombo (con osso) - vaschetta da 500 gr | D107: 0.5 | E107: kg | F107: 9.87 | G107: 10.91 | H107: 0.1 | I107: 10.857 | J107: 12.001 | K107: 5.4285 | L107: 6.0005 | M107: 1.160638298 | N107: prodotto a peso - prezzo indicativo | O107: x | P107: x | Q107: x | R107: Casale di Martignano
A108: * | B108: 11 | C108: Braciole di lombo (con osso) - vaschetta da 400 gr | D108: 0.4 | E108: kg | F108: 9.87 | G108: 10.91 | H108: 0.1 | I108: 10.857 | J108: 12.001 | K108: 4.3428 | L108: 4.8004 | M108: 1.160638298 | N108: prodotto a peso - prezzo indicativo | O108: x | P108: x | Q108: x | R108: Casale di Martignano
A109: * | B109: 11 | C109: Braciole di lombo (con osso) - vaschetta da 200 gr | D109: 0.2 | E109: kg | F109: 9.87 | G109: 10.91 | H109: 0.1 | I109: 10.857 | J109: 12.001 | K109: 2.1714 | L109: 2.4002 | M109: 1.160638298 | N109: prodotto a peso - prezzo indicativo | O109: x | P109: x | Q109: x | R109: Casale di Martignano
A110: 6 | B110: 15 | C110: Braciole di collo (senza osso) - a peso | E110: kg | F110: 9.87 | I110: 9.87 | K110: 0
A111: * | B111: 15 | C111: Braciole di collo (senza osso) - 1 kg | D111: 1 | E111: kg | F111: 10.29 | G111: 10.91 | H111: 0.1 | I111: 11.319 | J111: 12.001 | K111: 11.319 | L111: 12.001 | M111: 1.160638298 | N111: prodotto a peso - prezzo indicativo | O111: x | P111: x | Q111: x | R111: Casale di Martignano
A112: * | B112: 15 | C112: Braciole di collo (senza osso) - 500 gr | D112: 0.5 | E112: kg | F112: 10.29 | G112: 10.91 | H112: 0.1 | I112: 11.319 | J112: 12.001 | K112: 5.6595 | L112: 6.0005 | M112: 1.160638298 | N112: prodotto a peso - prezzo indicativo
A113: 6 | I113: 0 | J113: 0 | K113: 0 | L113: 0 | M113: --- | N113: prodotto a prezzo fisso
A114: 6 | I114: 0 | J114: 0 | K114: 0 | L114: 0 | M114: --- | N114: prodotto a prezzo fisso
A115: 6 | B115: 18 | C115: Pancetta fresca a kg | D115: 1 | E115: kg | F115: 5.25 | G115: 5.45 | H115: 0.1 | I115: =F115*(1+H115) -> 5.775 | J115: 5.995 | K115: =I115*D115 -> 5.775 | L115: 4.1965 | M115: 1.09 | N115: prodotto a peso - prezzo indicativo | O115: x | P115: x | Q115: x | R115: Casale di Martignano
A116: * | B116: 17 | C116: Spuntature - 700 gr | D116: 0.7 | E116: kg | F116: 5.25 | G116: 5.45 | H116: 0.1 | I116: 5.775 | J116: 5.995 | K116: 4.0425 | L116: 4.1965 | M116: 1.09 | N116: prodotto a peso - prezzo indicativo | O116: x | P116: x | Q116: x | R116: Casale di Martignano
A117: * | B117: 18 | C117: Pancetta fresca - 700 gr | D117: 0.7 | E117: kg | F117: 5.25 | G117: 5.45 | H117: 0.1 | I117: 5.775 | J117: 5.995 | K117: 4.0425 | L117: 4.1965 | M117: 1.09 | N117: prodotto a peso - prezzo indicativo | O117: x | P117: x | Q117: x | R117: Casale di Martignano
A118: 6 | B118: 18 | C118: Pancetta fresca intera | D118: 3 | E118: kg | F118: 5.25 | G118: 5.45 | H118: 0.1 | I118: 5.775 | J118: 5.995 | K118: 17.325 | L118: 4.1965 | M118: 1.09 | N118: prodotto a peso - prezzo indicativo | O118: x | P118: x | Q118: x | R118: Casale di Martignano
B119: 106 | C119: Cotiche - 300 gr | D119: 0.3 | E119: kg | F119: 3.15 | G119: 2.32 | H119: 0.1 | I119: 3.465 | J119: 2.552 | K119: 1.0395 | L119: 0.7656 | M119: 1.16 | N119: prodotto a peso - prezzo indicativo
A120: 6 | I120: 0 | J120: 0 | K120: 0 | L120: 0 | M120: --- | N120: prodotto a prezzo fisso
A121: * | B121: 27 | C121: Wurstel -1 kg | D121: 1 | E121: kg | F121: 7.88 | G121: 8.64 | H121: 0.1 | I121: 8.668 | J121: 9.504 | K121: 8.668 | L121: 9.504 | M121: 1.152 | N121: prodotto a peso - prezzo indicativo | O121: x | P121: x | Q121: x | R121: Casale di Martignano
A122: * | B122: 27 | C122: Wurstel - 600 gr | D122: 0.6 | E122: kg | F122: 7.88 | G122: 8.64 | H122: 0.1 | I122: 8.668 | J122: 9.504 | K122: 5.2008 | L122: 5.7024 | M122: 1.152 | N122: prodotto a peso - prezzo indicativo | O122: x | P122: x | Q122: x | R122: Casale di Martignano
A123: * | B123: 27 | C123: Wurstel - 400 gr | D123: 0.4 | E123: kg | F123: 7.88 | G123: 8.64 | H123: 0.1 | I123: 8.668 | J123: 9.504 | K123: 3.4672 | L123: 3.8016 | M123: 1.152 | N123: prodotto a peso - prezzo indicativo | O123: x | P123: x | Q123: x | R123: Casale di Martignano
A124: * | B124: 27 | C124: Wurstel - 200 gr | D124: 0.2 | E124: kg | F124: 7.88 | G124: 8.64 | H124: 0.1 | I124: 8.668 | J124: 9.504 | K124: 1.7336 | L124: 1.9008 | M124: 1.152 | N124: prodotto a peso - prezzo indicativo | O124: x | P124: x | Q124: x | R124: Casale di Martignano
B125: 135 | C125: Guanciale fresco | D125: 0.6 | E125: kg | F125: 6.3 | G125: 7 | H125: 0.1 | I125: =F125*(1+H125) -> 6.93 | J125: 2.552 | K125: =I125*D125 -> 4.158 | L125: 0.7656 | M125: 1.16 | N125: prodotto a peso - prezzo indicativo
A126: 6 | I126: 0 | J126: 0 | K126: 0 | L126: 0 | M126: --- | N126: prodotto a prezzo fisso
A127: 6 | I127: 0 | J127: 0 | K127: 0 | L127: 0 | M127: --- | N127: prodotto a prezzo fisso
A128: 6 | I128: 0 | J128: 0 | K128: 0 | L128: 0 | M128: --- | N128: prodotto a prezzo fisso
A129: * | B129: 28 | C129: Hamburger - vaschetta da 220 gr | D129: 0.22 | E129: kg | F129: 10.29 | G129: 11.36 | H129: 0.1 | I129: 11.319 | J129: 12.496 | K129: 2.49018 | L129: =D129*J129 -> 2.74912 | M129: 1.159183673 | N129: prodotto a peso - prezzo indicativo | O129: x | P129: x | Q129: x | R129: Casale di Martignano
A130: 6 | B130: 28 | C130: Hamburger - singolo da 150 gr | D130: 0.15 | E130: kg | F130: 10.29 | G130: 11.36 | H130: 0.1 | I130: 11.319 | J130: 12.496 | K130: 1.69785 | L130: =D130*J130 -> 1.8744 | M130: 1.159183673 | N130: prodotto a peso - prezzo indicativo | O130: x | P130: x | Q130: x | R130: Casale di Martignano
A131: 6 | I131: 0 | J131: 0 | K131: 0 | L131: =D131*J131 -> 0 | M131: --- | N131: prodotto a prezzo fisso
A132: 6 | B132: 16 | C132: Stinco (400 gr) | D132: 0.4 | E132: kg | F132: 6.3 | G132: 7.2 | H132: 0.1 | I132: 6.93 | J132: =G132*(1+H132) -> 7.92 | K132: 2.772 | L132: =D132*J132 -> 3.168
A133: * | B133: 137 | C133: Spezzatino di maiale (500 gr) | D133: 0.5 | E133: kg | F133: 9.98 | G133: 11.4 | H133: 0.1 | I133: =F133*(1+H133) -> 10.978 | J133: =G133*(1+H133) -> 12.54 | K133: =I133*D133 -> 5.489 | L133: 12.496 | M133: 1.159183673 | N133: prodotto a peso - prezzo indicativo | O133: x | P133: x | Q133: x | R133: Casale di Martignano
A134: 6 | I134: 0 | J134: =G134*(1+H134) -> 0 | K134: 0 | L134: 0 | M134: --- | N134: prodotto a prezzo fisso
A135: * | B135: 131 | C135: Vaschetta mista - 200 gr braciole + 200 gr salsicce | D135: 0.4 | E135: kg | F135: 8.87 | G135: 9.802 | H135: 0.1 | I135: 9.757 | J135: 10.7822 | K135: 3.9028 | L135: 4.31288 | M135: 1.16 | N135: prodotto a peso - prezzo indicativo | O135: x | P135: x | Q135: x | R135: Casale di Martignano
A136: * | B136: 132 | C136: Vaschetta mista - 300 gr braciole + 300 gr salsicce | D136: 0.6 | E136: kg | F136: 8.87 | G136: 9.802 | H136: 0.1 | I136: 9.757 | J136: 10.7822 | K136: 5.8542 | L136: 6.46932 | M136: 1.16 | N136: prodotto a peso - prezzo indicativo | O136: x | P136: x | Q136: x | R136: Casale di Martignano
A137: * | B137: 133 | C137: Vaschetta mista - 700 gr braciole + 400 gr salsicce | D137: 1.1 | E137: kg | F137: 8.87 | G137: 10.1036 | H137: 0.1 | I137: 9.757 | J137: 11.11396 | K137: 10.7327 | L137: 12.225356 | M137: 1.16 | N137: prodotto a peso - prezzo indicativo | O137: x | P137: x | Q137: x | R137: Casale di Martignano
A138: 6 | I138: =F138*(1+H138) -> 0 | J138: 0 | K138: 0 | L138: 0 | M138: --- | N138: prodotto a prezzo fisso
A139: 6 | I139: =F139*(1+H139) -> 0 | J139: 0 | K139: =I139*D139 -> 0 | L139: 0 | M139: --- | N139: prodotto a prezzo fisso
A140: 6 | I140: 0 | J140: 0 | K140: 0 | L140: 0 | M140: --- | N140: prodotto a prezzo fisso
A141: 6 | I141: 0 | J141: 0 | K141: 0 | L141: 0 | M141: --- | N141: prodotto a prezzo fisso
A142: 6 | I142: 0 | J142: 0 | K142: 0 | L142: 0 | M142: --- | N142: prodotto a prezzo fisso
A143: 6 | I143: 0 | J143: 0 | K143: 0 | L143: 0 | M143: --- | N143: prodotto a prezzo fisso
A144: 6 | I144: 0 | J144: 0 | K144: 0 | L144: 0 | M144: --- | N144: prodotto a prezzo fisso
A145: * | B145: * | C145: CARNI SUINE INSACCATE: MAIALE ALLEVATO ALLO STATO BRADO | I145: 0 | J145: 0 | K145: 0
A146: * | B146: 19 | C146: Coppa di testa - trancio da 400 gr | D146: 0.4 | E146: kg | F146: 9.87 | G146: 10.91 | H146: 0.1 | I146: =F146*(1+H146) -> 10.857 | J146: 12.001 | K146: =I146*D146 -> 4.3428 | L146: 4.8004 | M146: 1.160638298 | N146: prodotto a peso - prezzo indicativo | O146: x | P146: x | Q146: x | R146: Casale di Martignano
A147: 7 | B147: 19 | C147: Coppa di testa intera | D147: 0.4 | E147: kg | F147: 9.87 | G147: 10.91 | H147: 0.1 | I147: 10.857 | J147: 12.001 | K147: 4.3428 | L147: 4.8004 | M147: 1.160638298 | N147: prodotto a peso - prezzo indicativo | O147: x | P147: x | Q147: x | R147: Casale di Martignano
A148: 7 | B148: 138 | C148: Corallina - TRANCIO (300 gr) | D148: 0.3 | E148: kg | F148: 16.49 | G148: 18.18 | H148: 0.1 | I148: 18.139 | J148: 19.998 | K148: 5.4417 | L148: 5.9994 | M148: 1.157961783 | N148: prodotto a peso - prezzo indicativo | O148: x | P148: x | Q148: x | R148: Casale di Martignano
A149: 7 | B149: 138 | C149: Corallina intera (700 gr) | D149: 0.7 | E149: kg | F149: 16.49 | G149: 18.18 | H149: 0.1 | I149: 18.139 | J149: 19.998 | K149: 12.6973 | L149: 13.9986 | M149: 1.157961783 | N149: prodotto a peso - prezzo indicativo | O149: x | P149: x | Q149: x | R149: Casale di Martignano
A150: 7 | B150: 25 | C150: Cotechino (700 gr) | D150: 0.7 | E150: kg | F150: 10.5 | G150: 11.82 | H150: 0.1 | I150: 11.55 | J150: 13.002 | K150: 8.085 | L150: 9.1014 | M150: 1.182 | N150: prodotto a peso - prezzo indicativo | O150: x | P150: x | Q150: x | R150: Casale di Martignano
A151: * | B151: 33 | C151: Fiore di prosciutto | D151: 0.8 | E151: kg | F151: 33.6 | G151: 21 | H151: 0.1 | I151: 36.96 | J151: 23.1 | K151: 29.568 | L151: 10.395 | M151: 1.105263158 | N151: prodotto a peso - prezzo indicativo | O151: x | P151: x | Q151: x
A152: 7 | B152: 74 | C152: guanciale | E152: kg | F152: 13.65 | H152: 0.1 | I152: 15.015 | J152: 0 | K152: 0 | L152: 0 | M152: --- | N152: prodotto a peso - prezzo indicativo | O152: x | P152: x | Q152: x | R152: Casale di Martignano
A153: 7 | B153: 110 | C153: Lardo stagionato | D153: 0.45 | E153: kg | F153: 10.5 | G153: 21 | H153: 0.1 | I153: 11.55 | J153: 23.1 | K153: 5.1975 | L153: 10.395 | M153: 1.105263158 | N153: prodotto a peso - prezzo indicativo | O153: x | P153: x | Q153: x
B154: 141 | C154: Lonza | D154: 1.7 | E154: kg | F154: 13.36 | G154: 21 | H154: 0.1 | I154: 14.696 | J154: 23.1 | K154: 24.9832 | L154: 10.395 | M154: 1.105263158 | N154: prodotto a peso - prezzo indicativo | O154: x | P154: x | Q154: x
A155: * | B155: 23 | C155: Mortadella (350 gr) | D155: 0.35 | E155: kg | F155: 12.6 | G155: 12.73 | H155: 0.1 | I155: 13.86 | J155: 14.003 | K155: 4.851 | L155: 4.90105 | M155: 1.060833333 | N155: prodotto a peso - prezzo indicativo | O155: x | P155: x | Q155: x | R155: Casale di Martignano
A156: * | B156: 24 | C156: Mortadella affettata (100 gr) | D156: 0.1 | E156: kg | F156: 21 | G156: 22 | H156: 0.1 | I156: 23.1 | J156: 22 | K156: 2.31 | L156: 0 | M156: --- | N156: prodotto a prezzo fisso
B157: 32 | C157: pancetta arr.affettata (100 gr) | D157: 0.1 | E157: kg | F157: 23.36 | H157: 0.1 | I157: 25.696 | J157: 0 | K157: 2.5696 | L157: 0 | M157: --- | N157: prodotto a prezzo fisso
B158: 31 | C158: pancetta arrotolata (350 gr) | E158: kg | F158: 18.14 | H158: 0.1 | I158: 19.954 | J158: 0 | K158: 0 | L158: 0 | M158: --- | N158: prodotto a peso - prezzo indicativo | O158: x | P158: x | Q158: x | R158: Casale di Martignano
A159: * | B159: 143 | C159: pancetta tesa (350 gr) | E159: kg | F159: 18.14 | H159: 0.1 | I159: 19.954 | J159: 0 | K159: 0 | L159: 0 | M159: --- | N159: prodotto a peso - prezzo indicativo | O159: x | P159: x | Q159: x | R159: Casale di Martignano
A160: * | B160: 144 | C160: pancetta tesa affettata fina (100 gr) | D160: 0.1 | E160: kg | F160: 23.86 | H160: 0.1 | I160: 26.246 | J160: 0 | K160: 2.6246 | L160: 0 | M160: --- | N160: prodotto a prezzo fisso
A161: * | B161: 143 | C161: pancetta tesa affettata spessa(0,5 cm) ( (200 gr) | E161: kg | F161: 17.27 | H161: 0.1 | I161: 18.997 | J161: 0 | K161: 0 | L161: 0 | M161: --- | N161: prodotto a peso - prezzo indicativo | O161: x | P161: x | Q161: x | R161: Casale di Martignano
A162: * | B162: 26 | C162: Panciotto (500 gr) | D162: 0.5 | E162: kg | F162: 14.18 | G162: 16.36 | H162: 0.1 | I162: 15.598 | J162: 17.996 | K162: 7.799 | L162: 8.998 | M162: 1.211851852 | N162: prodotto a peso - prezzo indicativo | O162: x | P162: x | Q162: x | R162: Casale di Martignano
A163: 7 | B163: 29 | C163: Prosciutto cotto (a peso) | D163: 0.45 | E163: kg | F163: 19.95 | G163: 19 | H163: 0.1 | I163: 21.945 | J163: 23.1 | K163: 9.87525 | L163: 10.395 | M163: 1.105263158 | N163: prodotto a peso - prezzo indicativo | O163: x | P163: x | Q163: x
A164: * | B164: 30 | C164: Prosciutto cotto affettato (100 gr) | D164: 0.1 | E164: kg | F164: 25.94 | G164: 24.7 | H164: 0.1 | I164: 28.534 | J164: 27.5 | K164: 2.8534 | N164: prodotto a peso - prezzo indicativo | O164: x | P164: x | Q164: x
A165: * | B165: 29 | C165: Prosciutto cotto trancio (350 gr) | D165: 0.45 | E165: kg | F165: 19.95 | G165: 19 | H165: 0.1 | I165: 21.945 | J165: 23.1 | K165: 9.87525 | L165: 10.395 | M165: 1.105263158 | N165: prodotto a peso - prezzo indicativo | O165: x | P165: x | Q165: x
A166: 7 | C166: Salame di fegato (120 gr) | D166: 0.12 | E166: kg | F166: 14.5 | G166: 16.36 | H166: 0.1 | I166: 15.95 | J166: 17.996 | K166: 1.914 | L166: 2.15952 | M166: 1.128275862 | N166: prodotto a peso - prezzo indicativo | O166: x | P166: x | Q166: x | R166: Casale di Martignano
A167: * | B167: 20 | C167: Salame dolce (150 gr) | D167: 0.15 | E167: kg | F167: 14.5 | G167: 16.36 | H167: 0.1 | I167: 15.95 | J167: 17.996 | K167: 2.3925 | L167: 2.6994 | M167: 1.128275862 | N167: prodotto a peso - prezzo indicativo | O167: x | P167: x | Q167: x | R167: Casale di Martignano
A168: * | B168: 109 | C168: Salame Martignano | D168: 0.25 | E168: kg | F168: 18.9 | G168: 16.36 | H168: 0.1 | I168: 20.79 | J168: 17.996 | K168: 5.1975 | L168: 2.6994 | M168: 1.128275862 | N168: prodotto a peso - prezzo indicativo | O168: x | P168: x | Q168: x | R168: Casale di Martignano
A169: 7 | B169: 22 | C169: Salame piccante (150 gr) | D169: 0.15 | E169: kg | F169: 15.23 | G169: 16.36 | H169: 0.1 | I169: 16.753 | J169: 17.996 | K169: 2.51295 | L169: 2.6994 | M169: 1.128275862 | N169: prodotto a peso - prezzo indicativo | O169: x | P169: x | Q169: x | R169: Casale di Martignano
A170: 7 | I170: 0 | J170: 0 | K170: 0 | L170: 0 | M170: --- | N170: prodotto a prezzo fisso
A171: 7 | I171: 0 | J171: 0 | K171: 0 | L171: 0 | M171: --- | N171: prodotto a prezzo fisso
A172: 7 | I172: 0 | J172: 0 | K172: 0 | L172: 0 | M172: --- | N172: prodotto a prezzo fisso
A173: 7 | I173: 0 | J173: 0 | K173: 0 | L173: 0 | M173: --- | N173: prodotto a prezzo fisso
A174: 7 | I174: 0 | J174: 0 | K174: 0 | L174: 0 | M174: --- | N174: prodotto a prezzo fisso
A175: 7 | I175: 0 | J175: 0 | K175: 0 | L175: 0 | M175: --- | N175: prodotto a prezzo fisso
A176: 7 | I176: 0 | J176: 0 | K176: 0 | L176: 0 | M176: --- | N176: prodotto a prezzo fisso
A177: 7 | D177: 0.5 | E177: kh | F177: 20 | G177: 22 | H177: 0.1 | I177: 22 | J177: 0 | K177: 11 | L177: 0 | M177: --- | N177: prodotto a prezzo fisso
A178: 7 | I178: 0 | J178: 0 | K178: 0 | L178: 0 | M178: --- | N178: prodotto a prezzo fisso
A179: 7 | I179: 0 | J179: 0 | K179: 0 | L179: 0 | M179: --- | N179: prodotto a prezzo fisso
A180: 7 | I180: 0 | J180: 0 | K180: 0 | L180: 0 | M180: --- | N180: prodotto a prezzo fisso
I181: 0 | J181: 0 | K181: 0 | L181: 0 | M181: --- | N181: prodotto a prezzo fisso
I182: 0 | J182: 0 | K182: 0 | L182: 0 | M182: --- | N182: prodotto a prezzo fisso
I183: 0 | J183: 0 | K183: 0 | L183: 0 | M183: --- | N183: prodotto a prezzo fisso
I184: 0 | J184: 0 | K184: 0 | L184: 0 | M184: --- | N184: prodotto a prezzo fisso
A185: * | B185: * | C185: CONFETTURE | I185: 0 | J185: 0 | K185: 0
A186: * | B186: 95 | C186: Confettura di peperoni - in barattolo da 106 gr | D186: 1 | E186: barattolo | F186: 3.2 | G186: 4 | H186: 0.1 | I186: 3.52 | J186: 4.4 | K186: 3.52 | L186: 4.4 | M186: 1.25 | N186: prodotto a prezzo fisso | O186: x | P186: x | Q186: x | R186: Casale di Martignano
A187: 8 | I187: 0 | J187: 0 | K187: 0 | L187: 0 | M187: --- | N187: prodotto a prezzo fisso
A188: 8 | I188: 0 | J188: 0 | K188: 0 | L188: 0 | M188: --- | N188: prodotto a prezzo fisso
A189: 8 | C189: Confettura albicocche - in barattolo da 320 gr | D189: 1 | E189: barattolo | F189: 3.5 | G189: 4.5 | H189: 0.1 | I189: 3.85 | J189: 4.95 | K189: 3.85 | L189: 4.95 | M189: 1.285714286 | N189: prodotto a prezzo fisso | O189: x | P189: x | Q189: x | R189: Casale di Martignano
A190: 8 | I190: 0 | J190: 0 | K190: 0 | L190: 0 | M190: --- | N190: prodotto a prezzo fisso
A191: 8 | I191: 0 | J191: 0 | K191: 0 | L191: 0 | M191: --- | N191: prodotto a prezzo fisso
A192: 8 | C192: Confettura pere e cannella - in barattolo da 320 gr | D192: 1 | E192: barattolo | F192: 3.5 | G192: 4.5 | H192: 0.1 | I192: 3.85 | J192: 4.95 | K192: 3.85 | L192: 4.95 | M192: 1.285714286 | N192: prodotto a prezzo fisso | O192: x | P192: x | Q192: x | R192: Casale di Martignano
A193: 8 | I193: 0 | J193: 0 | K193: 0 | L193: 0 | M193: --- | N193: prodotto a prezzo fisso
A194: 8 | I194: 0 | J194: 0 | K194: 0 | L194: 0 | M194: --- | N194: prodotto a prezzo fisso
I195: 0 | J195: 0 | K195: 0 | L195: 0 | M195: --- | N195: prodotto a prezzo fisso
I196: 0 | J196: 0 | K196: 0 | L196: 0 | M196: --- | N196: prodotto a prezzo fisso
A197: 9 | B197: * | C197: PANE | I197: 0 | J197: 0 | K197: 0
A198: 9 | B198: 90 | C198: Pane con lievito madre cotto a legna - 500 gr | D198: 0.5 | E198: kg | F198: 3.45 | G198: 4.002 | H198: 0.1 | I198: 3.795 | J198: 4.4022 | K198: 1.8975 | L198: 2.2011 | M198: 1.16 | N198: prodotto a peso - prezzo indicativo
A199: 9 | B199: 91 | C199: Pane con lievito madre cotto a legna - 500 gr - integrale | D199: 0.5 | E199: kg | F199: 5 | G199: 5.8 | H199: 0.1 | I199: 5.5 | J199: 6.38 | K199: 2.75 | L199: 3.19 | M199: 1.16 | N199: prodotto a peso - prezzo indicativo
A200: 9 | B200: 92 | C200: Pane con lievito madre cotto a legna - 500 gr - con le noci | D200: 0.5 | E200: kg | F200: 6.9 | G200: 8.004 | H200: 0.1 | I200: 7.59 | J200: 8.8044 | K200: 3.795 | L200: 4.4022 | M200: 1.16 | N200: prodotto a peso - prezzo indicativo
A201: 9 | B201: 93 | C201: Pane con lievito madre cotto a legna - 500 gr - con pomodorini secchi | D201: 0.5 | E201: kg | F201: 6.9 | G201: 8.004 | H201: 0.1 | I201: 7.59 | J201: 8.8044 | K201: 3.795 | L201: 4.4022 | M201: 1.16 | N201: prodotto a peso - prezzo indicativo
A202: 9 | B202: 94 | C202: Pane con lievito madre cotto a legna - 500 gr - ai 5 cereali con farina macinata a pietra | D202: 0.5 | E202: kg | F202: 7.25 | G202: 8.41 | H202: 0.1 | I202: 7.975 | J202: 9.251 | K202: 3.9875 | L202: 4.6255 | M202: 1.16 | N202: prodotto a peso - prezzo indicativo
... 103 more rows

Sheet GAS (ordine+griglia) (hidden)
A1: totale spesa (importo indicativo) | B1: =SUM(B5:B299) ->  | C1: =matrice2!$F$1 -> dal 24/27novembre-2015 | D1: =matrice2!$C$3 -> www.casaledimartignano.it - labottega@casaledimartignano.it - 334.888.31.55 | E1: 1 | F1: 2 | G1: 3 | H1: 4 | I1: 5 | J1: 6 | K1: 7 | L1: 8 | M1: 9 | N1: 10 | O1: 11 | P1: 12 | Q1: 13 | R1: 14 | S1: 15 | T1: 16 | U1: 17 | V1: 18 | W1: 19 | X1: 20 | Y1: 21 | Z1: 22 | AA1: 23 | AB1: 24 | AC1: 25 | AD1: 26 | AE1: 27 | AF1: 28 | AG1: 29 | AH1: 30
D2: Nome:
A3: totale confezioni per prodotto | B3: TOT PER PRODOTTO (importi indicativi - molti prezzi sono calcolati sul peso reale!!) | C3: € a porzione (per i prodotti a peso il prezzo è indicativo) | D3: totale confezioni per ordinante: Se si desidera ricevere un unico ordine complessivo per il GAS è sufficiente compilare solo la colonna "E" | E3: =SUM(E5:E255) -> 0 | F3: =SUM(F5:F255) -> 0 | G3: 0 | H3: 0 | I3: 0 | J3: 0 | K3: 0 | L3: 0 | M3: 0 | N3: 0 | O3: 0 | P3: =SUM(P5:P299) -> 0 | Q3: 0 | R3: 0 | S3: 0 | T3: 0 | U3: 0 | V3: 0 | W3: 0 | X3: 0 | Y3: 0 | Z3: 0 | AA3: 0 | AB3: 0 | AC3: 0 | AD3: 0 | AE3: 0 | AF3: 0 | AG3: 0 | AH3: 0 | AI3: NOTE | AJ3: =#REF! ->  | AK3: =#REF! ->  | AL3: =#REF! ->  | AM3: produttore
D4: =matrice2!C8 -> RICOTTA DI PECORA
A5: =SUM(E5:AH5) -> 0 | B5: =C5*A5 -> 0 | C5: =matrice2!K9 -> 1.9656 | D5: =matrice2!C9 -> Ricottina - cestino da 300 gr | AI5: =matrice2!N9 -> prodotto a peso - prezzo indicativo | AJ5: =#REF! ->  | AK5: =#REF! ->  | AL5: =#REF! ->  | AM5: =#REF! -> 
A6: =SUM(E6:AH6) -> 0 | B6: =C6*A6 -> 0 | C6: =matrice2!K10 -> 2.2932 | D6: =matrice2!C10 -> Ricottina - cestino da 350 gr | AI6: =matrice2!N10 -> prodotto a peso - prezzo indicativo | AJ6: =#REF! ->  | AK6: =#REF! ->  | AL6: =#REF! ->  | AM6: =#REF! -> 
A7: 0 | B7: 0 | C7: =matrice2!K11 -> 11.1384 | D7: =matrice2!C11 -> Ricotta Grande - cesto da 1,7 kg | AI7: =matrice2!N11 -> prodotto a peso - prezzo indicativo | AJ7: =#REF! ->  | AK7: =#REF! ->  | AL7: =#REF! ->  | AM7: =#REF! -> 
A8: 0 | B8: 0 | C8: =matrice2!K12 -> 0.6552 | D8: =matrice2!C12 -> Ricotta 100 gr | AI8: =matrice2!N12 -> 0 | AJ8: =#REF! ->  | AK8: =#REF! ->  | AL8: =#REF! ->  | AM8: =#REF! -> 
A9: 0 | B9: 0 | C9: =matrice2!K13 -> 0 | D9: =matrice2!C13 -> 0 | AI9: =matrice2!N13 -> prodotto a prezzo fisso | AJ9: =#REF! ->  | AK9: =#REF! ->  | AL9: =#REF! ->  | AM9: =#REF! -> 
A10: 0 | B10: 0 | C10: =matrice2!K14 -> 0 | D10: =matrice2!C14 -> 0 | AI10: =matrice2!N14 -> prodotto a prezzo fisso | AJ10: =#REF! ->  | AK10: =#REF! ->  | AL10: =#REF! ->  | AM10: =#REF! -> 
A11: 0 | B11: 0 | C11: =matrice2!K15 -> 0 | D11: =matrice2!C15 -> 0 | AI11: =matrice2!N15 -> prodotto a prezzo fisso | AJ11: =#REF! ->  | AK11: =#REF! ->  | AL11: =#REF! ->  | AM11: =#REF! -> 
A12: 0 | B12: 0 | C12: =matrice2!K16 -> 0 | D12: =matrice2!C16 -> 0 | AI12: =matrice2!N16 -> prodotto a prezzo fisso | AJ12: =#REF! ->  | AK12: =#REF! ->  | AL12: =#REF! ->  | AM12: =#REF! -> 
A13: 0 | B13: 0 | C13: =matrice2!K17 -> 0 | D13: =matrice2!C17 -> 0 | AI13: =matrice2!N17 -> prodotto a prezzo fisso | AJ13: =#REF! ->  | AK13: =#REF! ->  | AL13: =#REF! ->  | AM13: =#REF! -> 
A14: 0 | B14: 0 | C14: =matrice2!K18 -> 0 | D14: =matrice2!C18 -> 0 | AI14: =matrice2!N18 -> prodotto a prezzo fisso | AJ14: =#REF! ->  | AK14: =#REF! ->  | AL14: =#REF! ->  | AM14: =#REF! -> 
A15: 0 | B15: 0 | C15: =matrice2!K19 -> 0 | D15: =matrice2!C19 -> 0 | AI15: =matrice2!N19 -> prodotto a prezzo fisso | AJ15: =#REF! ->  | AK15: =#REF! ->  | AL15: =#REF! ->  | AM15: =#REF! -> 
A16: 0 | B16: 0 | C16: =matrice2!K20 -> 0 | D16: =matrice2!C20 -> FORMAGGI DI PECORA A LATTE CRUDO CON CAGLIO ANIMALE | AI16: =matrice2!N20 -> 0 | AJ16: =#REF! ->  | AK16: =#REF! ->  | AL16: =#REF! ->  | AM16: =#REF! -> 
A17: 0 | C17: =matrice2!#REF! ->  | D17: =matrice2!#REF! ->  | AI17: =matrice2!#REF! ->  | AJ17: =#REF! ->  | AK17: =#REF! ->  | AL17: =#REF! ->  | AM17: =#REF! -> 
A18: 0 | B18: 0 | C18: =matrice2!K22 -> 2.72064 | D18: =matrice2!C22 -> Primo sale piccolo - porzione da 300 gr | AI18: =matrice2!N22 -> prodotto a peso - prezzo indicativo | AJ18: =#REF! ->  | AK18: =#REF! ->  | AL18: =#REF! ->  | AM18: =#REF! -> 
A19: 0 | B19: 0 | C19: =matrice2!K23 -> 3.17408 | D19: =matrice2!C23 -> Primo sale - porzione da 350 gr | AI19: =matrice2!N23 -> prodotto a peso - prezzo indicativo | AJ19: =#REF! ->  | AK19: =#REF! ->  | AL19: =#REF! ->  | AM19: =#REF! -> 
A20: 0 | B20: 0 | C20: =matrice2!K24 -> 9.0688 | D20: =matrice2!C24 -> Primo sale grande - forma da 2,5 kg | AI20: =matrice2!N24 -> prodotto a peso - prezzo indicativo | AJ20: =#REF! ->  | AK20: =#REF! ->  | AL20: =#REF! ->  | AM20: =#REF! -> 
A21: 0 | B21: 0 | C21: =matrice2!K25 -> 9.0688 | D21: =matrice2!C25 -> Primo sale - A PESO | AI21: =matrice2!N25 -> prodotto a peso - prezzo indicativo | AJ21: =#REF! ->  | AK21: =#REF! ->  | AL21: =#REF! ->  | AM21: =#REF! -> 
A22: 0 | B22: 0 | C22: =matrice2!K26 -> 2.4024 | D22: =matrice2!C26 -> Caciotta - porzione da 200 gr | AI22: =matrice2!N26 -> prodotto a prezzo fisso | AJ22: =#REF! ->  | AK22: =#REF! ->  | AL22: =#REF! ->  | AM22: =#REF! -> 
A23: 0 | B23: 0 | C23: =matrice2!K27 -> 3.003 | D23: =matrice2!C27 -> Caciotta - porzione da 250 gr | AI23: =matrice2!N27 -> prodotto a peso - prezzo indicativo | AJ23: =#REF! ->  | AK23: =#REF! ->  | AL23: =#REF! ->  | AM23: =#REF! -> 
A24: 0 | B24: 0 | C24: =matrice2!K28 -> 3.6036 | D24: =matrice2!C28 -> Caciotta - porzione da 300 gr | AI24: =matrice2!N28 -> prodotto a peso - prezzo indicativo | AJ24: =#REF! ->  | AK24: =#REF! ->  | AL24: =#REF! ->  | AM24: =#REF! -> 
A25: 0 | B25: 0 | C25: =matrice2!K29 -> 6.006 | D25: =matrice2!C29 -> Caciotta - porzione da 500 gr | AI25: =matrice2!N29 -> prodotto a peso - prezzo indicativo | AJ25: =#REF! ->  | AK25: =#REF! ->  | AL25: =#REF! ->  | AM25: =#REF! -> 
A26: 0 | B26: 0 | C26: =matrice2!K30 -> 12.012 | D26: =matrice2!C30 -> Caciotta - A PESO | AI26: =matrice2!N30 -> prodotto a peso - prezzo indicativo | AJ26: =#REF! ->  | AK26: =#REF! ->  | AL26: =#REF! ->  | AM26: =#REF! -> 
A27: 0 | B27: 0 | C27: =matrice2!K31 -> 4.2042 | D27: =matrice2!C31 -> Caciotta speziata al peperoncino - 300 gr | AI27: =matrice2!N31 -> prodotto a peso - prezzo indicativo | AJ27: =#REF! ->  | AK27: =#REF! ->  | AL27: =#REF! ->  | AM27: =#REF! -> 
A28: 0 | B28: 0 | C28: =matrice2!K32 -> 4.2042 | D28: =matrice2!C32 -> Caciotta speziata al pepe rosa - 300 gr | AI28: =matrice2!N32 -> prodotto a peso - prezzo indicativo | AJ28: =#REF! ->  | AK28: =#REF! ->  | AL28: =#REF! ->  | AM28: =#REF! -> 
A29: 0 | B29: 0 | C29: =matrice2!K21 -> 0.90688 | D29: =matrice2!C21 -> primo sale 100 gr | AI29: =matrice2!N21 -> prodotto a prezzo fisso | AJ29: =#REF! ->  | AK29: =#REF! ->  | AL29: =#REF! ->  | AM29: =#REF! -> 
A30: 0 | B30: 0 | C30: =matrice2!K34 -> 0 | D30: =matrice2!C34 -> 0 | AI30: =matrice2!N34 -> prodotto a prezzo fisso | AJ30: =#REF! ->  | AK30: =#REF! ->  | AL30: =#REF! ->  | AM30: =#REF! -> 
A31: 0 | B31: 0 | C31: =matrice2!K35 -> 6.1152 | D31: =matrice2!C35 -> Cacio Martino - porzione da 400 gr | AI31: =matrice2!N35 -> prodotto a peso - prezzo indicativo | AJ31: =#REF! ->  | AK31: =#REF! ->  | AL31: =#REF! ->  | AM31: =#REF! -> 
A32: 0 | B32: 0 | C32: =matrice2!K36 -> 0 | D32: =matrice2!C36 -> 0 | AI32: =matrice2!N36 -> 0 | AJ32: =#REF! ->  | AK32: =#REF! ->  | AL32: =#REF! ->  | AM32: =#REF! -> 
A33: 0 | B33: 0 | C33: =matrice2!K37 -> 12.2304 | D33: =matrice2!C37 -> Cacio Martino - forma intera da 800 gr | AI33: =matrice2!N37 -> prodotto a peso - prezzo indicativo | AJ33: =#REF! ->  | AK33: =#REF! ->  | AL33: =#REF! ->  | AM33: =#REF! -> 
A34: 0 | B34: 0 | C34: =matrice2!K38 -> 0 | D34: =matrice2!C38 -> 0 | AI34: =matrice2!N38 -> prodotto a prezzo fisso | AJ34: =#REF! ->  | AK34: =#REF! ->  | AL34: =#REF! ->  | AM34: =#REF! -> 
A35: 0 | B35: 0 | C35: =matrice2!K39 -> 0 | D35: =matrice2!C39 -> 0 | AI35: =matrice2!N39 -> prodotto a prezzo fisso | AJ35: =#REF! ->  | AK35: =#REF! ->  | AL35: =#REF! ->  | AM35: =#REF! -> 
A36: 0 | B36: 0 | C36: =matrice2!K40 -> 4.205344 | D36: =matrice2!C40 -> Majio - Pecorino stagionato (5 mesi +) - porzione da 220 gr | AI36: =matrice2!N40 -> prodotto a peso - prezzo indicativo | AJ36: =#REF! ->  | AK36: =#REF! ->  | AL36: =#REF! ->  | AM36: =#REF! -> 
A37: 0 | B37: 0 | C37: =matrice2!K41 -> 5.73456 | D37: =matrice2!C41 -> Majio - Pecorino stagionato (5 mesi +) - porzione da 300 gr | AI37: =matrice2!N41 -> prodotto a peso - prezzo indicativo | AJ37: =#REF! ->  | AK37: =#REF! ->  | AL37: =#REF! ->  | AM37: =#REF! -> 
A38: 0 | B38: 0 | C38: =matrice2!K42 -> 0 | D38: =matrice2!C42 -> 0 | AI38: =matrice2!N42 -> prodotto a prezzo fisso | AJ38: =#REF! ->  | AK38: =#REF! ->  | AL38: =#REF! ->  | AM38: =#REF! -> 
A39: 0 | B39: 0 | C39: =matrice2!K43 -> 18.2 | D39: =matrice2!C43 -> Majio - Pecorino stagionato (5 mesi +) - A PESO | AI39: =matrice2!N43 -> prodotto a peso - prezzo indicativo | AJ39: =#REF! ->  | AK39: =#REF! ->  | AL39: =#REF! ->  | AM39: =#REF! -> 
A40: 0 | B40: 0 | C40: =matrice2!K44 -> 0 | D40: =matrice2!C44 -> 0 | AI40: =matrice2!N44 -> prodotto a prezzo fisso | AJ40: =#REF! ->  | AK40: =#REF! ->  | AL40: =#REF! ->  | AM40: =#REF! -> 
A41: 0 | B41: 0 | C41: =matrice2!K45 -> 0 | D41: =matrice2!C45 -> 0 | AI41: =matrice2!N45 -> prodotto a prezzo fisso | AJ41: =#REF! ->  | AK41: =#REF! ->  | AL41: =#REF! ->  | AM41: =#REF! -> 
A42: 0 | B42: 0 | C42: =matrice2!K46 -> 0 | D42: =matrice2!C46 -> 0 | AI42: =matrice2!N46 -> prodotto a prezzo fisso | AJ42: =#REF! ->  | AK42: =#REF! ->  | AL42: =#REF! ->  | AM42: =#REF! -> 
A43: 0 | B43: 0 | C43: =matrice2!K47 -> 0 | D43: =matrice2!C47 -> FORMAGGIO SPALMABILE | AI43: =matrice2!N47 -> 0 | AJ43: =#REF! ->  | AK43: =#REF! ->  | AL43: =#REF! ->  | AM43: =#REF! -> 
A44: 0 | B44: 0 | C44: =matrice2!K48 -> 4.51 | D44: =matrice2!C48 -> Crema di Majio - barattolo da 180 gr | AI44: =matrice2!N48 -> prodotto a prezzo fisso | AJ44: =#REF! ->  | AK44: =#REF! ->  | AL44: =#REF! ->  | AM44: =#REF! -> 
A45: 0 | B45: 0 | C45: =matrice2!K49 -> 4.62 | D45: =matrice2!C49 -> Crema di Majio delattosato - barattolo da 180 gr | AI45: =matrice2!N49 -> prodotto a prezzo fisso | AJ45: =#REF! ->  | AK45: =#REF! ->  | AL45: =#REF! ->  | AM45: =#REF! -> 
A46: 0 | B46: 0 | C46: =matrice2!K50 -> 0 | D46: =matrice2!C50 -> 0 | AI46: =matrice2!N50 -> prodotto a prezzo fisso | AJ46: =#REF! ->  | AK46: =#REF! ->  | AL46: =#REF! ->  | AM46: =#REF! -> 
A47: 0 | B47: 0 | C47: =matrice2!K51 -> 0 | D47: =matrice2!C51 -> 0 | AI47: =matrice2!N51 -> prodotto a prezzo fisso | AJ47: =#REF! ->  | AK47: =#REF! ->  | AL47: =#REF! ->  | AM47: =#REF! -> 
A48: 0 | B48: 0 | C48: =matrice2!K52 -> 0 | D48: =matrice2!C52 -> 0 | AI48: =matrice2!N52 -> prodotto a prezzo fisso | AJ48: =#REF! ->  | AK48: =#REF! ->  | AL48: =#REF! ->  | AM48: =#REF! -> 
A49: 0 | B49: 0 | C49: =matrice2!K53 -> 0 | D49: =matrice2!C53 -> 0 | AI49: =matrice2!N53 -> prodotto a prezzo fisso | AJ49: =#REF! ->  | AK49: =#REF! ->  | AL49: =#REF! ->  | AM49: =#REF! -> 
A50: 0 | B50: 0 | C50: =matrice2!K54 -> 0 | D50: =matrice2!C54 -> 0 | AI50: =matrice2!N54 -> prodotto a prezzo fisso | AJ50: =#REF! ->  | AK50: =#REF! ->  | AL50: =#REF! ->  | AM50: =#REF! -> 
A51: 0 | B51: 0 | C51: =matrice2!K55 -> 0 | D51: =matrice2!C55 -> FORMAGGI DI PECORA A LATTE CRUDO CON CAGLIO VEGETALE | AI51: =matrice2!N55 -> 0 | AJ51: =#REF! ->  | AK51: =#REF! ->  | AL51: =#REF! ->  | AM51: =#REF! -> 
A52: 0 | B52: 0 | C52: =matrice2!K56 -> 4.914 | D52: =matrice2!C56 -> Cardo di Martignano | AI52: =matrice2!N56 -> prodotto a peso - prezzo indicativo | AJ52: =#REF! ->  | AK52: =#REF! ->  | AL52: =#REF! ->  | AM52: =#REF! -> 
A53: 0 | B53: 0 | C53: =matrice2!K57 -> 6.92952 | D53: =matrice2!C57 -> Caciofiore di Columella | AI53: =matrice2!N57 -> prodotto a peso - prezzo indicativo | AJ53: =#REF! ->  | AK53: =#REF! ->  | AL53: =#REF! ->  | AM53: =#REF! -> 
A54: 0 | B54: 0 | C54: =matrice2!K58 -> 0 | D54: =matrice2!C58 -> 0 | AI54: =matrice2!N58 -> prodotto a prezzo fisso | AJ54: =#REF! ->  | AK54: =#REF! ->  | AL54: =#REF! ->  | AM54: =#REF! -> 
A55: 0 | B55: 0 | C55: =matrice2!K59 -> 0 | D55: =matrice2!C59 -> 0 | AI55: =matrice2!N59 -> prodotto a prezzo fisso | AJ55: =#REF! ->  | AK55: =#REF! ->  | AL55: =#REF! ->  | AM55: =#REF! -> 
A56: 0 | B56: 0 | C56: =matrice2!K60 -> 0 | D56: =matrice2!C60 -> 0 | AI56: =matrice2!N60 -> prodotto a prezzo fisso | AJ56: =#REF! ->  | AK56: =#REF! ->  | AL56: =#REF! ->  | AM56: =#REF! -> 
A57: 0 | B57: 0 | C57: =matrice2!K61 -> 0 | D57: =matrice2!C61 -> 0 | AI57: =matrice2!N61 -> prodotto a prezzo fisso | AJ57: =#REF! ->  | AK57: =#REF! ->  | AL57: =#REF! ->  | AM57: =#REF! -> 
A58: 0 | B58: 0 | C58: =matrice2!K62 -> 0 | D58: =matrice2!C62 -> 0 | AI58: =matrice2!N62 -> prodotto a prezzo fisso | AJ58: =#REF! ->  | AK58: =#REF! ->  | AL58: =#REF! ->  | AM58: =#REF! -> 
A59: 0 | B59: 0 | C59: =matrice2!K63 -> 0 | D59: =matrice2!C63 -> CARNI OVINE | AI59: =matrice2!N63 -> 0 | AJ59: =#REF! ->  | AK59: =#REF! ->  | AL59: =#REF! ->  | AM59: =#REF! -> 
A60: 0 | B60: 0 | C60: =matrice2!K64 -> 90.552 | D60: =matrice2!C64 -> Abbacchio romano IGP - intero (7-9 kg) - ordinare con una settimana di anticipo | AI60: =matrice2!N64 -> prodotto a peso - prezzo indicativo | AJ60: =#REF! ->  | AK60: =#REF! ->  | AL60: =#REF! ->  | AM60: =#REF! -> 
A61: 0 | B61: 0 | C61: =matrice2!K65 -> 45.045 | D61: =matrice2!C65 -> Abbacchio romano IGP - mezzo (3-4 kg) - ordinare con una settimana di anticipo | AI61: =matrice2!N65 -> prodotto a peso - prezzo indicativo | AJ61: =#REF! ->  | AK61: =#REF! ->  | AL61: =#REF! ->  | AM61: =#REF! -> 
A62: 0 | B62: 0 | C62: =matrice2!K66 -> 13.167 | D62: =matrice2!C66 -> Arrosticini - 1 kg (circa 50) | AI62: =matrice2!N66 -> prodotto a peso - prezzo indicativo | AJ62: =#REF! ->  | AK62: =#REF! ->  | AL62: =#REF! ->  | AM62: =#REF! -> 
A63: 0 | B63: 0 | C63: =matrice2!K67 -> 6.5835 | D63: =matrice2!C67 -> Arrosticini - 500 gr (circa 25) | AI63: =matrice2!N67 -> prodotto a peso - prezzo indicativo | AJ63: =#REF! ->  | AK63: =#REF! ->  | AL63: =#REF! ->  | AM63: =#REF! -> 
A64: 0 | B64: 0 | C64: =matrice2!K68 -> 17.325 | D64: =matrice2!C68 -> Castrato - Coscio con osso (circa 1,5 kg) | AI64: =matrice2!N68 -> prodotto a peso - prezzo indicativo | AJ64: =#REF! ->  | AK64: =#REF! ->  | AL64: =#REF! ->  | AM64: =#REF! -> 
A65: 0 | B65: 0 | C65: =matrice2!K69 -> 231 | D65: =matrice2!C69 -> Castrato intero | AI65: =matrice2!N69 -> prodotto a peso - prezzo indicativo | AJ65: =#REF! ->  | AK65: =#REF! ->  | AL65: =#REF! ->  | AM65: =#REF! -> 
A66: 0 | B66: 0 | C66: =matrice2!K70 -> 13.2 | D66: =matrice2!C70 -> Coscio di Abbacchio romano IGP (circa 1 kg) - ordinare con una settimana di anticipo | AI66: =matrice2!N70 -> prodotto a peso - prezzo indicativo | AJ66: =#REF! ->  | AK66: =#REF! ->  | AL66: =#REF! ->  | AM66: =#REF! -> 
A67: 0 | B67: 0 | C67: =matrice2!K71 -> 2.49018 | D67: =matrice2!C71 -> Hamburger di castrato (220 gr) | AI67: =matrice2!N71 -> prodotto a peso - prezzo indicativo | AJ67: =#REF! ->  | AK67: =#REF! ->  | AL67: =#REF! ->  | AM67: =#REF! -> 
A68: 0 | B68: 0 | C68: =matrice2!K72 -> 1.65286 | D68: =matrice2!C72 -> Macinato di pecora 300gr. | AI68: =matrice2!N72 -> prodotto a peso - prezzo indicativo | AJ68: =#REF! ->  | AK68: =#REF! ->  | AL68: =#REF! ->  | AM68: =#REF! -> 
A69: 0 | B69: 0 | C69: =matrice2!K73 -> 115.5 | D69: =matrice2!C73 -> Pecora Intera | AI69: =matrice2!N73 -> prodotto a peso - prezzo indicativo | AJ69: =#REF! ->  | AK69: =#REF! ->  | AL69: =#REF! ->  | AM69: =#REF! -> 
A70: =SUM(E70:AH70) -> 0 | B70: =C70*A70 -> 0 | C70: =matrice2!K74 -> 0 | D70: =matrice2!C74 -> 0 | AI70: =matrice2!N74 -> prodotto a prezzo fisso | AJ70: =#REF! ->  | AK70: =#REF! ->  | AL70: =#REF! ->  | AM70: =#REF! -> 
A71: 0 | B71: 0 | C71: =matrice2!K75 -> 0 | D71: =matrice2!C75 -> 0 | AI71: =matrice2!N75 -> prodotto a prezzo fisso | AJ71: =#REF! ->  | AK71: =#REF! ->  | AL71: =#REF! ->  | AM71: =#REF! -> 
A72: 0 | B72: 0 | C72: =matrice2!K76 -> 0 | D72: =matrice2!C76 -> 0 | AI72: =matrice2!N76 -> prodotto a prezzo fisso | AJ72: =#REF! ->  | AK72: =#REF! ->  | AL72: =#REF! ->  | AM72: =#REF! -> 
A73: 0 | B73: 0 | C73: =matrice2!K77 -> 0 | D73: =matrice2!C77 -> 0 | AI73: =matrice2!N77 -> prodotto a prezzo fisso | AJ73: =#REF! ->  | AK73: =#REF! ->  | AL73: =#REF! ->  | AM73: =#REF! -> 
A74: 0 | B74: 0 | C74: =matrice2!K78 -> 0 | D74: =matrice2!C78 -> 0 | AI74: =matrice2!N78 -> prodotto a prezzo fisso | AJ74: =#REF! ->  | AK74: =#REF! ->  | AL74: =#REF! ->  | AM74: =#REF! -> 
A75: 0 | B75: 0 | C75: =matrice2!K79 -> 0 | D75: =matrice2!C79 -> CARNI SUINE FRESCHE: MAIALE ALLEVATO ALLO STATO BRADO | AI75: =matrice2!N79 -> 0 | AJ75: =#REF! ->  | AK75: =#REF! ->  | AL75: =#REF! ->  | AM75: =#REF! -> 
A76: 0 | B76: 0 | C76: =matrice2!K80 -> 97.02 | D76: =matrice2!C80 -> Maialino allevato allo stato brado - intero (8-10 kg) - ordinare con una settimana di anticipo | AI76: =matrice2!N80 -> prodotto a peso - prezzo indicativo | AJ76: =#REF! ->  | AK76: =#REF! ->  | AL76: =#REF! ->  | AM76: =#REF! -> 
A77: 0 | B77: 0 | C77: =matrice2!K81 -> 58.41 | D77: =matrice2!C81 -> Maialino allevato allo stato brado - mezzo sezionato (4-5 kg) - ordinare con una settimana di anticipo | AI77: =matrice2!N81 -> prodotto a peso - prezzo indicativo | AJ77: =#REF! ->  | AK77: =#REF! ->  | AL77: =#REF! ->  | AM77: =#REF! -> 
A78: 0 | B78: 0 | C78: =matrice2!K82 -> 105.6 | D78: =matrice2!C82 -> Maialino disossato condito (6 kg) - ordinare con una settimana di anticipo | AI78: =matrice2!N82 -> prodotto a peso - prezzo indicativo | AJ78: =#REF! ->  | AK78: =#REF! ->  | AL78: =#REF! ->  | AM78: =#REF! -> 
A79: 0 | B79: 0 | C79: =matrice2!K83 -> 123.2 | D79: =matrice2!C83 -> Maialino fatto a porchetta (8 kg) - ordinare con una settimana di anticipo | AI79: =matrice2!N83 -> prodotto a peso - prezzo indicativo | AJ79: =#REF! ->  | AK79: =#REF! ->  | AL79: =#REF! ->  | AM79: =#REF! -> 
A80: 0 | B80: 0 | C80: =matrice2!K84 -> 592.9 | D80: =matrice2!C84 -> Maiale intero | AI80: =matrice2!N84 -> prodotto a peso - prezzo indicativo | AJ80: =#REF! ->  | AK80: =#REF! ->  | AL80: =#REF! ->  | AM80: =#REF! -> 
A81: 0 | B81: 0 | C81: =matrice2!K85 -> 330 | D81: =matrice2!C85 -> Mezzo maiale | AI81: =matrice2!N85 -> prodotto a peso - prezzo indicativo | AJ81: =#REF! ->  | AK81: =#REF! ->  | AL81: =#REF! ->  | AM81: =#REF! -> 
A82: 0 | B82: 0 | C82: =matrice2!K86 -> 0 | D82: =matrice2!C86 -> 0 | AI82: =matrice2!N86 -> prodotto a prezzo fisso | AJ82: =#REF! ->  | AK82: =#REF! ->  | AL82: =#REF! ->  | AM82: =#REF! -> 
A83: 0 | B83: 0 | C83: =matrice2!K87 -> 35.2 | D83: =matrice2!C87 -> capocollo intero con osso | AI83: =matrice2!N87 -> prodotto a prezzo fisso | AJ83: =#REF! ->  | AK83: =#REF! ->  | AL83: =#REF! ->  | AM83: =#REF! -> 
A84: 0 | B84: 0 | C84: =matrice2!K88 -> 31.02 | D84: =matrice2!C88 -> capocollo intero senza osso | AI84: =matrice2!N88 -> prodotto a prezzo fisso | AJ84: =#REF! ->  | AK84: =#REF! ->  | AL84: =#REF! ->  | AM84: =#REF! -> 
A85: 0 | B85: 0 | C85: =matrice2!K89 -> 16.5 | D85: =matrice2!C89 -> carre intero | AI85: =matrice2!N89 -> prodotto a peso - prezzo indicativo | AJ85: =#REF! ->  | AK85: =#REF! ->  | AL85: =#REF! ->  | AM85: =#REF! -> 
A86: 0 | B86: 0 | C86: =matrice2!K90 -> 52.8 | D86: =matrice2!C90 -> Lombo intero | AI86: =matrice2!N90 -> prodotto a prezzo fisso | AJ86: =#REF! ->  | AK86: =#REF! ->  | AL86: =#REF! ->  | AM86: =#REF! -> 
A87: 0 | B87: 0 | C87: =matrice2!K91 -> 41.8 | D87: =matrice2!C91 -> Lombo intero maiale piccolo | AI87: =matrice2!N91 -> prodotto a prezzo fisso | AJ87: =#REF! ->  | AK87: =#REF! ->  | AL87: =#REF! ->  | AM87: =#REF! -> 
A88: 0 | B88: 0 | C88: =matrice2!K92 -> 31.35 | D88: =matrice2!C92 -> Prosciutto intero maiale piccolo | AI88: =matrice2!N92 -> prodotto a prezzo fisso | AJ88: =#REF! ->  | AK88: =#REF! ->  | AL88: =#REF! ->  | AM88: =#REF! -> 
A89: 0 | B89: 0 | C89: =matrice2!K93 -> 115.5 | D89: =matrice2!C93 -> Prosciutto intero maiale con osso | AI89: =matrice2!N93 -> prodotto a prezzo fisso | AJ89: =#REF! ->  | AK89: =#REF! ->  | AL89: =#REF! ->  | AM89: =#REF! -> 
A90: 0 | B90: 0 | C90: =matrice2!K94 -> 90.09 | D90: =matrice2!C94 -> Prosciutto intero maiale senza osso | AI90: =matrice2!N94 -> prodotto a prezzo fisso | AJ90: =#REF! ->  | AK90: =#REF! ->  | AL90: =#REF! ->  | AM90: =#REF! -> 
A91: 0 | B91: 0 | C91: =matrice2!K95 -> 77 | D91: =matrice2!C95 -> Spalla intera maiale con osso | AI91: =matrice2!N95 -> prodotto a prezzo fisso | AJ91: =#REF! ->  | AK91: =#REF! ->  | AL91: =#REF! ->  | AM91: =#REF! -> 
A92: 0 | B92: 0 | C92: =matrice2!K96 -> 37.488 | D92: =matrice2!C96 -> arista intera | AI92: =matrice2!N96 -> prodotto a peso - prezzo indicativo | AJ92: =#REF! ->  | AK92: =#REF! ->  | AL92: =#REF! ->  | AM92: =#REF! -> 
A93: 0 | B93: 0 | C93: =matrice2!K97 -> 104.5 | D93: =matrice2!C97 -> Spalla intera maiale senza osso | AI93: =matrice2!N97 -> prodotto a prezzo fisso | AJ93: =#REF! ->  | AK93: =#REF! ->  | AL93: =#REF! ->  | AM93: =#REF! -> 
A94: 0 | B94: 0 | C94: =matrice2!K98 -> 0 | D94: =matrice2!C98 -> 0 | AI94: =matrice2!N98 -> prodotto a peso - prezzo indicativo | AJ94: =#REF! ->  | AK94: =#REF! ->  | AL94: =#REF! ->  | AM94: =#REF! -> 
A95: 0 | B95: 0 | C95: =matrice2!K99 -> 10.725 | D95: =matrice2!C99 -> Salsicce - vaschetta da 1,3 kg | AI95: =matrice2!N99 -> prodotto a peso - prezzo indicativo | AJ95: =#REF! ->  | AK95: =#REF! ->  | AL95: =#REF! ->  | AM95: =#REF! -> 
A96: 0 | B96: 0 | C96: =matrice2!K100 -> 8.25 | D96: =matrice2!C100 -> Salsicce - vaschetta da 1 kg | AI96: =matrice2!N100 -> prodotto a peso - prezzo indicativo | AJ96: =#REF! ->  | AK96: =#REF! ->  | AL96: =#REF! ->  | AM96: =#REF! -> 
A97: 0 | B97: 0 | C97: =matrice2!K101 -> 4.125 | D97: =matrice2!C101 -> Salsicce - vaschetta da 500 gr | AI97: =matrice2!N101 -> prodotto a peso - prezzo indicativo | AJ97: =#REF! ->  | AK97: =#REF! ->  | AL97: =#REF! ->  | AM97: =#REF! -> 
A98: 0 | B98: 0 | C98: =matrice2!K102 -> 3.3 | D98: =matrice2!C102 -> Salsicce - vaschetta da 400 gr | AI98: =matrice2!N102 -> prodotto a peso - prezzo indicativo | AJ98: =#REF! ->  | AK98: =#REF! ->  | AL98: =#REF! ->  | AM98: =#REF! -> 
A99: 0 | B99: 0 | C99: =matrice2!K103 -> 3.85 | D99: =matrice2!C103 -> Carne macinata (500 gr.) | AI99: =matrice2!N103 -> prodotto a prezzo fisso | AJ99: =#REF! ->  | AK99: =#REF! ->  | AL99: =#REF! ->  | AM99: =#REF! -> 
A100: 0 | B100: 0 | C100: =matrice2!K104 -> 0 | D100: =matrice2!C104 -> Braciole di lombo (con osso) - 1,6 kg | AI100: =matrice2!N104 -> prodotto a prezzo fisso | AJ100: =#REF! ->  | AK100: =#REF! ->  | AL100: =#REF! ->  | AM100: =#REF! -> 
A101: 0 | B101: 0 | C101: =matrice2!K105 -> 10.857 | D101: =matrice2!C105 -> Braciole di lombo (con osso) - 1 kg | AI101: =matrice2!N105 -> prodotto a peso - prezzo indicativo | AJ101: =#REF! ->  | AK101: =#REF! ->  | AL101: =#REF! ->  | AM101: =#REF! -> 
A102: 0 | B102: 0 | C102: =matrice2!K106 -> 7.6769 | D102: =matrice2!C106 -> Braciole di lombo (con osso) - vaschetta da 700 gr | AI102: =matrice2!N106 -> prodotto a peso - prezzo indicativo | AJ102: =#REF! ->  | AK102: =#REF! ->  | AL102: =#REF! ->  | AM102: =#REF! -> 
A103: 0 | B103: 0 | C103: =matrice2!K107 -> 5.4285 | D103: =matrice2!C107 -> Braciole di lombo (con osso) - vaschetta da 500 gr | AI103: =matrice2!N107 -> prodotto a peso - prezzo indicativo | AJ103: =#REF! ->  | AK103: =#REF! ->  | AL103: =#REF! ->  | AM103: =#REF! -> 
A104: 0 | B104: 0 | C104: =matrice2!K108 -> 4.3428 | D104: =matrice2!C108 -> Braciole di lombo (con osso) - vaschetta da 400 gr | AI104: =matrice2!N108 -> prodotto a peso - prezzo indicativo | AJ104: =#REF! ->  | AK104: =#REF! ->  | AL104: =#REF! ->  | AM104: =#REF! -> 
A105: 0 | B105: 0 | C105: =matrice2!K109 -> 2.1714 | D105: =matrice2!C109 -> Braciole di lombo (con osso) - vaschetta da 200 gr | AI105: =matrice2!N109 -> prodotto a peso - prezzo indicativo | AJ105: =#REF! ->  | AK105: =#REF! ->  | AL105: =#REF! ->  | AM105: =#REF! -> 
A106: 0 | B106: 0 | C106: =matrice2!K110 -> 0 | D106: =matrice2!C110 -> Braciole di collo (senza osso) - a peso | AI106: =matrice2!N110 -> 0 | AJ106: =#REF! ->  | AK106: =#REF! ->  | AL106: =#REF! ->  | AM106: =#REF! -> 
A107: 0 | B107: 0 | C107: =matrice2!K111 -> 11.319 | D107: =matrice2!C111 -> Braciole di collo (senza osso) - 1 kg | AI107: =matrice2!N111 -> prodotto a peso - prezzo indicativo | AJ107: =#REF! ->  | AK107: =#REF! ->  | AL107: =#REF! ->  | AM107: =#REF! -> 
A108: 0 | B108: 0 | C108: =matrice2!K112 -> 5.6595 | D108: =matrice2!C112 -> Braciole di collo (senza osso) - 500 gr | AI108: =matrice2!N112 -> prodotto a peso - prezzo indicativo | AJ108: =#REF! ->  | AK108: =#REF! ->  | AL108: =#REF! ->  | AM108: =#REF! -> 
A109: 0 | B109: 0 | C109: =matrice2!K113 -> 0 | D109: =matrice2!C113 -> 0 | AI109: =matrice2!N113 -> prodotto a prezzo fisso | AJ109: =#REF! ->  | AK109: =#REF! ->  | AL109: =#REF! ->  | AM109: =#REF! -> 
A110: 0 | B110: 0 | C110: =matrice2!K114 -> 0 | D110: =matrice2!C114 -> 0 | AI110: =matrice2!N114 -> prodotto a prezzo fisso | AJ110: =#REF! ->  | AK110: =#REF! ->  | AL110: =#REF! ->  | AM110: =#REF! -> 
A111: 0 | B111: 0 | C111: =matrice2!K115 -> 5.775 | D111: =matrice2!C115 -> Pancetta fresca a kg | AI111: =matrice2!N115 -> prodotto a peso - prezzo indicativo | AJ111: =#REF! ->  | AK111: =#REF! ->  | AL111: =#REF! ->  | AM111: =#REF! -> 
A112: 0 | B112: 0 | C112: =matrice2!K116 -> 4.0425 | D112: =matrice2!C116 -> Spuntature - 700 gr | AI112: =matrice2!N116 -> prodotto a peso - prezzo indicativo | AJ112: =#REF! ->  | AK112: =#REF! ->  | AL112: =#REF! ->  | AM112: =#REF! -> 
A113: 0 | B113: 0 | C113: =matrice2!K117 -> 4.0425 | D113: =matrice2!C117 -> Pancetta fresca - 700 gr | AI113: =matrice2!N117 -> prodotto a peso - prezzo indicativo | AJ113: =#REF! ->  | AK113: =#REF! ->  | AL113: =#REF! ->  | AM113: =#REF! -> 
A114: 0 | B114: 0 | C114: =matrice2!K118 -> 17.325 | D114: =matrice2!C118 -> Pancetta fresca intera | AI114: =matrice2!N118 -> prodotto a peso - prezzo indicativo | AJ114: =#REF! ->  | AK114: =#REF! ->  | AL114: =#REF! ->  | AM114: =#REF! -> 
A115: 0 | B115: 0 | C115: =matrice2!K119 -> 1.0395 | D115: =matrice2!C119 -> Cotiche - 300 gr | AI115: =matrice2!N119 -> prodotto a peso - prezzo indicativo | AJ115: =#REF! ->  | AK115: =#REF! ->  | AL115: =#REF! ->  | AM115: =#REF! -> 
A116: 0 | B116: 0 | C116: =matrice2!K120 -> 0 | D116: =matrice2!C120 -> 0 | AI116: =matrice2!N120 -> prodotto a prezzo fisso | AJ116: =#REF! ->  | AK116: =#REF! ->  | AL116: =#REF! ->  | AM116: =#REF! -> 
A117: 0 | B117: 0 | C117: =matrice2!K121 -> 8.668 | D117: =matrice2!C121 -> Wurstel -1 kg | AI117: =matrice2!N121 -> prodotto a peso - prezzo indicativo | AJ117: =#REF! ->  | AK117: =#REF! ->  | AL117: =#REF! ->  | AM117: =#REF! -> 
A118: 0 | B118: 0 | C118: =matrice2!K122 -> 5.2008 | D118: =matrice2!C122 -> Wurstel - 600 gr | AI118: =matrice2!N122 -> prodotto a peso - prezzo indicativo | AJ118: =#REF! ->  | AK118: =#REF! ->  | AL118: =#REF! ->  | AM118: =#REF! -> 
A119: 0 | B119: 0 | C119: =matrice2!K123 -> 3.4672 | D119: =matrice2!C123 -> Wurstel - 400 gr | AI119: =matrice2!N123 -> prodotto a peso - prezzo indicativo | AJ119: =#REF! ->  | AK119: =#REF! ->  | AL119: =#REF! ->  | AM119: =#REF! -> 
A120: 0 | B120: 0 | C120: =matrice2!K124 -> 1.7336 | D120: =matrice2!C124 -> Wurstel - 200 gr | AI120: =matrice2!N124 -> prodotto a peso - prezzo indicativo | AJ120: =#REF! ->  | AK120: =#REF! ->  | AL120: =#REF! ->  | AM120: =#REF! -> 
A121: 0 | B121: 0 | C121: =matrice2!K125 -> 4.158 | D121: =matrice2!C125 -> Guanciale fresco | AI121: =matrice2!N125 -> prodotto a peso - prezzo indicativo | AJ121: =#REF! ->  | AK121: =#REF! ->  | AL121: =#REF! ->  | AM121: =#REF! -> 
A122: 0 | B122: 0 | C122: =matrice2!K126 -> 0 | D122: =matrice2!C126 -> 0 | AI122: =matrice2!N126 -> prodotto a prezzo fisso | AJ122: =#REF! ->  | AK122: =#REF! ->  | AL122: =#REF! ->  | AM122: =#REF! -> 
A123: 0 | B123: 0 | C123: =matrice2!K127 -> 0 | D123: =matrice2!C127 -> 0 | AI123: =matrice2!N127 -> prodotto a prezzo fisso | AJ123: =#REF! ->  | AK123: =#REF! ->  | AL123: =#REF! ->  | AM123: =#REF! -> 
A124: 0 | B124: 0 | C124: =matrice2!K128 -> 0 | D124: =matrice2!C128 -> 0 | AI124: =matrice2!N128 -> prodotto a prezzo fisso | AJ124: =#REF! ->  | AK124: =#REF! ->  | AL124: =#REF! ->  | AM124: =#REF! -> 
A125: 0 | B125: 0 | C125: =matrice2!K129 -> 2.49018 | D125: =matrice2!C129 -> Hamburger - vaschetta da 220 gr | AI125: =matrice2!N129 -> prodotto a peso - prezzo indicativo | AJ125: =#REF! ->  | AK125: =#REF! ->  | AL125: =#REF! ->  | AM125: =#REF! -> 
A126: 0 | B126: 0 | C126: =matrice2!K130 -> 1.69785 | D126: =matrice2!C130 -> Hamburger - singolo da 150 gr | AI126: =matrice2!N130 -> prodotto a peso - prezzo indicativo | AJ126: =#REF! ->  | AK126: =#REF! ->  | AL126: =#REF! ->  | AM126: =#REF! -> 
A127: 0 | B127: 0 | C127: =matrice2!K131 -> 0 | D127: =matrice2!C131 -> 0 | AI127: =matrice2!N131 -> prodotto a prezzo fisso | AJ127: =#REF! ->  | AK127: =#REF! ->  | AL127: =#REF! ->  | AM127: =#REF! -> 
A128: 0 | B128: 0 | C128: =matrice2!K132 -> 2.772 | D128: =matrice2!C132 -> Stinco (400 gr) | AI128: =matrice2!N132 -> 0 | AJ128: =#REF! ->  | AK128: =#REF! ->  | AL128: =#REF! ->  | AM128: =#REF! -> 
A129: 0 | B129: 0 | C129: =matrice2!K133 -> 5.489 | D129: =matrice2!C133 -> Spezzatino di maiale (500 gr) | AI129: =matrice2!N133 -> prodotto a peso - prezzo indicativo | AJ129: =#REF! ->  | AK129: =#REF! ->  | AL129: =#REF! ->  | AM129: =#REF! -> 
A130: 0 | B130: 0 | C130: =matrice2!K134 -> 0 | D130: =matrice2!C134 -> 0 | AI130: =matrice2!N134 -> prodotto a prezzo fisso | AJ130: =#REF! ->  | AK130: =#REF! ->  | AL130: =#REF! ->  | AM130: =#REF! -> 
A131: 0 | B131: 0 | C131: =matrice2!K135 -> 3.9028 | D131: =matrice2!C135 -> Vaschetta mista - 200 gr braciole + 200 gr salsicce | AI131: =matrice2!N135 -> prodotto a peso - prezzo indicativo | AJ131: =#REF! ->  | AK131: =#REF! ->  | AL131: =#REF! ->  | AM131: =#REF! -> 
A132: 0 | B132: 0 | C132: =matrice2!K136 -> 5.8542 | D132: =matrice2!C136 -> Vaschetta mista - 300 gr braciole + 300 gr salsicce | AI132: =matrice2!N136 -> prodotto a peso - prezzo indicativo | AJ132: =#REF! ->  | AK132: =#REF! ->  | AL132: =#REF! ->  | AM132: =#REF! -> 
A133: 0 | B133: 0 | C133: =matrice2!K137 -> 10.7327 | D133: =matrice2!C137 -> Vaschetta mista - 700 gr braciole + 400 gr salsicce | AI133: =matrice2!N137 -> prodotto a peso - prezzo indicativo | AJ133: =#REF! ->  | AK133: =#REF! ->  | AL133: =#REF! ->  | AM133: =#REF! -> 
A134: =SUM(E134:AH134) -> 0 | B134: =C134*A134 -> 0 | C134: =matrice2!K138 -> 0 | D134: =matrice2!C138 -> 0 | AI134: =matrice2!N138 -> prodotto a prezzo fisso | AJ134: =#REF! ->  | AK134: =#REF! ->  | AL134: =#REF! ->  | AM134: =#REF! -> 
A135: 0 | B135: 0 | C135: =matrice2!K139 -> 0 | D135: =matrice2!C139 -> 0 | AI135: =matrice2!N139 -> prodotto a prezzo fisso | AJ135: =#REF! ->  | AK135: =#REF! ->  | AL135: =#REF! ->  | AM135: =#REF! -> 
A136: 0 | B136: 0 | C136: =matrice2!K140 -> 0 | D136: =matrice2!C140 -> 0 | AI136: =matrice2!N140 -> prodotto a prezzo fisso | AJ136: =#REF! ->  | AK136: =#REF! ->  | AL136: =#REF! ->  | AM136: =#REF! -> 
A137: 0 | B137: 0 | C137: =matrice2!K141 -> 0 | D137: =matrice2!C141 -> 0 | AI137: =matrice2!N141 -> prodotto a prezzo fisso | AJ137: =#REF! ->  | AK137: =#REF! ->  | AL137: =#REF! ->  | AM137: =#REF! -> 
A138: 0 | B138: 0 | C138: =matrice2!K142 -> 0 | D138: =matrice2!C142 -> 0 | AI138: =matrice2!N142 -> prodotto a prezzo fisso | AJ138: =#REF! ->  | AK138: =#REF! ->  | AL138: =#REF! ->  | AM138: =#REF! -> 
A139: 0 | B139: 0 | C139: =matrice2!K143 -> 0 | D139: =matrice2!C143 -> 0 | AI139: =matrice2!N143 -> prodotto a prezzo fisso | AJ139: =#REF! ->  | AK139: =#REF! ->  | AL139: =#REF! ->  | AM139: =#REF! -> 
A140: 0 | B140: 0 | C140: =matrice2!K144 -> 0 | D140: =matrice2!C144 -> 0 | AI140: =matrice2!N144 -> prodotto a prezzo fisso | AJ140: =#REF! ->  | AK140: =#REF! ->  | AL140: =#REF! ->  | AM140: =#REF! -> 
A141: 0 | B141: 0 | C141: =matrice2!K145 -> 0 | D141: =matrice2!C145 -> CARNI SUINE INSACCATE: MAIALE ALLEVATO ALLO STATO BRADO | AI141: =matrice2!N145 -> 0 | AJ141: =#REF! ->  | AK141: =#REF! ->  | AL141: =#REF! ->  | AM141: =#REF! -> 
A142: 0 | B142: 0 | C142: =matrice2!K146 -> 4.3428 | D142: =matrice2!C146 -> Coppa di testa - trancio da 400 gr | AI142: =matrice2!N146 -> prodotto a peso - prezzo indicativo | AJ142: =#REF! ->  | AK142: =#REF! ->  | AL142: =#REF! ->  | AM142: =#REF! -> 
A143: 0 | B143: 0 | C143: =matrice2!K147 -> 4.3428 | D143: =matrice2!C147 -> Coppa di testa intera | AI143: =matrice2!N147 -> prodotto a peso - prezzo indicativo | AJ143: =#REF! ->  | AK143: =#REF! ->  | AL143: =#REF! ->  | AM143: =#REF! -> 
A144: 0 | B144: 0 | C144: =matrice2!K148 -> 5.4417 | D144: =matrice2!C148 -> Corallina - TRANCIO (300 gr) | AI144: =matrice2!N148 -> prodotto a peso - prezzo indicativo | AJ144: =#REF! ->  | AK144: =#REF! ->  | AL144: =#REF! ->  | AM144: =#REF! -> 
A145: 0 | B145: 0 | C145: =matrice2!K149 -> 12.6973 | D145: =matrice2!C149 -> Corallina intera (700 gr) | AI145: =matrice2!N149 -> prodotto a peso - prezzo indicativo | AJ145: =#REF! ->  | AK145: =#REF! ->  | AL145: =#REF! ->  | AM145: =#REF! -> 
A146: 0 | B146: 0 | C146: =matrice2!K150 -> 8.085 | D146: =matrice2!C150 -> Cotechino (700 gr) | AI146: =matrice2!N150 -> prodotto a peso - prezzo indicativo | AJ146: =#REF! ->  | AK146: =#REF! ->  | AL146: =#REF! ->  | AM146: =#REF! -> 
A147: 0 | B147: 0 | C147: =matrice2!K151 -> 29.568 | D147: =matrice2!C151 -> Fiore di prosciutto | AI147: =matrice2!N151 -> prodotto a peso - prezzo indicativo | AJ147: =#REF! ->  | AK147: =#REF! ->  | AL147: =#REF! ->  | AM147: =#REF! -> 
A148: 0 | B148: 0 | C148: =matrice2!K152 -> 0 | D148: =matrice2!C152 -> guanciale | AI148: =matrice2!N152 -> prodotto a peso - prezzo indicativo | AJ148: =#REF! ->  | AK148: =#REF! ->  | AL148: =#REF! ->  | AM148: =#REF! -> 
A149: 0 | B149: 0 | C149: =matrice2!K153 -> 5.1975 | D149: =matrice2!C153 -> Lardo stagionato | AI149: =matrice2!N153 -> prodotto a peso - prezzo indicativo | AJ149: =#REF! ->  | AK149: =#REF! ->  | AL149: =#REF! ->  | AM149: =#REF! -> 
A150: 0 | B150: 0 | C150: =matrice2!K154 -> 24.9832 | D150: =matrice2!C154 -> Lonza | AI150: =matrice2!N154 -> prodotto a peso - prezzo indicativo | AJ150: =#REF! ->  | AK150: =#REF! ->  | AL150: =#REF! ->  | AM150: =#REF! -> 
A151: 0 | B151: 0 | C151: =matrice2!K155 -> 4.851 | D151: =matrice2!C155 -> Mortadella (350 gr) | AI151: =matrice2!N155 -> prodotto a peso - prezzo indicativo | AJ151: =#REF! ->  | AK151: =#REF! ->  | AL151: =#REF! ->  | AM151: =#REF! -> 
A152: 0 | B152: 0 | C152: =matrice2!K156 -> 2.31 | D152: =matrice2!C156 -> Mortadella affettata (100 gr) | AI152: =matrice2!N156 -> prodotto a prezzo fisso | AJ152: =#REF! ->  | AK152: =#REF! ->  | AL152: =#REF! ->  | AM152: =#REF! -> 
A153: 0 | B153: 0 | C153: =matrice2!K157 -> 2.5696 | D153: =matrice2!C157 -> pancetta arr.affettata (100 gr) | AI153: =matrice2!N157 -> prodotto a prezzo fisso | AJ153: =#REF! ->  | AK153: =#REF! ->  | AL153: =#REF! ->  | AM153: =#REF! -> 
A154: 0 | B154: 0 | C154: =matrice2!K158 -> 0 | D154: =matrice2!C158 -> pancetta arrotolata (350 gr) | AI154: =matrice2!N158 -> prodotto a peso - prezzo indicativo | AJ154: =#REF! ->  | AK154: =#REF! ->  | AL154: =#REF! ->  | AM154: =#REF! -> 
A155: 0 | B155: 0 | C155: =matrice2!K159 -> 0 | D155: =matrice2!C159 -> pancetta tesa (350 gr) | AI155: =matrice2!N159 -> prodotto a peso - prezzo indicativo | AJ155: =#REF! ->  | AK155: =#REF! ->  | AL155: =#REF! ->  | AM155: =#REF! -> 
A156: 0 | B156: 0 | C156: =matrice2!K160 -> 2.6246 | D156: =matrice2!C160 -> pancetta tesa affettata fina (100 gr) | AI156: =matrice2!N160 -> prodotto a prezzo fisso | AJ156: =#REF! ->  | AK156: =#REF! ->  | AL156: =#REF! ->  | AM156: =#REF! -> 
A157: 0 | B157: 0 | C157: =matrice2!K161 -> 0 | D157: =matrice2!C161 -> pancetta tesa affettata spessa(0,5 cm) ( (200 gr) | AI157: =matrice2!N161 -> prodotto a peso - prezzo indicativo | AJ157: =#REF! ->  | AK157: =#REF! ->  | AL157: =#REF! ->  | AM157: =#REF! -> 
A158: 0 | B158: 0 | C158: =matrice2!K162 -> 7.799 | D158: =matrice2!C162 -> Panciotto (500 gr) | AI158: =matrice2!N162 -> prodotto a peso - prezzo indicativo | AJ158: =#REF! ->  | AK158: =#REF! ->  | AL158: =#REF! ->  | AM158: =#REF! -> 
A159: 0 | B159: 0 | C159: =matrice2!K163 -> 9.87525 | D159: =matrice2!C163 -> Prosciutto cotto (a peso) | AI159: =matrice2!N163 -> prodotto a peso - prezzo indicativo | AJ159: =#REF! ->  | AK159: =#REF! ->  | AL159: =#REF! ->  | AM159: =#REF! -> 
A160: 0 | B160: 0 | C160: =matrice2!K164 -> 2.8534 | D160: =matrice2!C164 -> Prosciutto cotto affettato (100 gr) | AI160: =matrice2!N164 -> prodotto a peso - prezzo indicativo | AJ160: =#REF! ->  | AK160: =#REF! ->  | AL160: =#REF! ->  | AM160: =#REF! -> 
A161: 0 | B161: 0 | C161: =matrice2!K165 -> 9.87525 | D161: =matrice2!C165 -> Prosciutto cotto trancio (350 gr) | AI161: =matrice2!N165 -> prodotto a peso - prezzo indicativo | AJ161: =#REF! ->  | AK161: =#REF! ->  | AL161: =#REF! ->  | AM161: =#REF! -> 
A162: 0 | B162: 0 | C162: =matrice2!K166 -> 1.914 | D162: =matrice2!C166 -> Salame di fegato (120 gr) | AI162: =matrice2!N166 -> prodotto a peso - prezzo indicativo | AJ162: =#REF! ->  | AK162: =#REF! ->  | AL162: =#REF! ->  | AM162: =#REF! -> 
A163: 0 | B163: 0 | C163: =matrice2!K167 -> 2.3925 | D163: =matrice2!C167 -> Salame dolce (150 gr) | AI163: =matrice2!N167 -> prodotto a peso - prezzo indicativo | AJ163: =#REF! ->  | AK163: =#REF! ->  | AL163: =#REF! ->  | AM163: =#REF! -> 
A164: 0 | B164: 0 | C164: =matrice2!K168 -> 5.1975 | D164: =matrice2!C168 -> Salame Martignano | AI164: =matrice2!N168 -> prodotto a peso - prezzo indicativo | AJ164: =#REF! ->  | AK164: =#REF! ->  | AL164: =#REF! ->  | AM164: =#REF! -> 
A165: 0 | B165: 0 | C165: =matrice2!K169 -> 2.51295 | D165: =matrice2!C169 -> Salame piccante (150 gr) | AI165: =matrice2!N169 -> prodotto a peso - prezzo indicativo | AJ165: =#REF! ->  | AK165: =#REF! ->  | AL165: =#REF! ->  | AM165: =#REF! -> 
A166: 0 | B166: 0 | C166: =matrice2!K170 -> 0 | D166: =matrice2!C170 -> 0 | AI166: =matrice2!N170 -> prodotto a prezzo fisso | AJ166: =#REF! ->  | AK166: =#REF! ->  | AL166: =#REF! ->  | AM166: =#REF! -> 
A167: 0 | B167: 0 | C167: =matrice2!K171 -> 0 | D167: =matrice2!C171 -> 0 | AI167: =matrice2!N171 -> prodotto a prezzo fisso | AJ167: =#REF! ->  | AK167: =#REF! ->  | AL167: =#REF! ->  | AM167: =#REF! -> 
A168: 0 | B168: 0 | C168: =matrice2!K172 -> 0 | D168: =matrice2!C172 -> 0 | AI168: =matrice2!N172 -> prodotto a prezzo fisso | AJ168: =#REF! ->  | AK168: =#REF! ->  | AL168: =#REF! ->  | AM168: =#REF! -> 
A169: 0 | B169: 0 | C169: =matrice2!K173 -> 0 | D169: =matrice2!C173 -> 0 | AI169: =matrice2!N173 -> prodotto a prezzo fisso | AJ169: =#REF! ->  | AK169: =#REF! ->  | AL169: =#REF! ->  | AM169: =#REF! -> 
A170: 0 | B170: 0 | C170: =matrice2!K174 -> 0 | D170: =matrice2!C174 -> 0 | AI170: =matrice2!N174 -> prodotto a prezzo fisso | AJ170: =#REF! ->  | AK170: =#REF! ->  | AL170: =#REF! ->  | AM170: =#REF! -> 
A171: 0 | B171: 0 | C171: =matrice2!K175 -> 0 | D171: =matrice2!C175 -> 0 | AI171: =matrice2!N175 -> prodotto a prezzo fisso | AJ171: =#REF! ->  | AK171: =#REF! ->  | AL171: =#REF! ->  | AM171: =#REF! -> 
A172: 0 | B172: 0 | C172: =matrice2!K176 -> 0 | D172: =matrice2!C176 -> 0 | AI172: =matrice2!N176 -> prodotto a prezzo fisso | AJ172: =#REF! ->  | AK172: =#REF! ->  | AL172: =#REF! ->  | AM172: =#REF! -> 
A173: 0 | B173: 0 | C173: =matrice2!K177 -> 11 | D173: =matrice2!C177 -> 0 | AI173: =matrice2!N177 -> prodotto a prezzo fisso | AJ173: =#REF! ->  | AK173: =#REF! ->  | AL173: =#REF! ->  | AM173: =#REF! -> 
A174: 0 | B174: 0 | C174: =matrice2!K178 -> 0 | D174: =matrice2!C178 -> 0 | AI174: =matrice2!N178 -> prodotto a prezzo fisso | AJ174: =#REF! ->  | AK174: =#REF! ->  | AL174: =#REF! ->  | AM174: =#REF! -> 
A175: 0 | B175: 0 | C175: =matrice2!K179 -> 0 | D175: =matrice2!C179 -> 0 | AI175: =matrice2!N179 -> prodotto a prezzo fisso | AJ175: =#REF! ->  | AK175: =#REF! ->  | AL175: =#REF! ->  | AM175: =#REF! -> 
A176: 0 | B176: 0 | C176: =matrice2!K180 -> 0 | D176: =matrice2!C180 -> 0 | AI176: =matrice2!N180 -> prodotto a prezzo fisso | AJ176: =#REF! ->  | AK176: =#REF! ->  | AL176: =#REF! ->  | AM176: =#REF! -> 
A177: 0 | B177: 0 | C177: =matrice2!K181 -> 0 | D177: =matrice2!C181 -> 0 | AI177: =matrice2!N181 -> prodotto a prezzo fisso | AJ177: =#REF! ->  | AK177: =#REF! ->  | AL177: =#REF! ->  | AM177: =#REF! -> 
A178: 0 | B178: 0 | C178: =matrice2!K182 -> 0 | D178: =matrice2!C182 -> 0 | AI178: =matrice2!N182 -> prodotto a prezzo fisso | AJ178: =#REF! ->  | AK178: =#REF! ->  | AL178: =#REF! ->  | AM178: =#REF! -> 
A179: 0 | B179: 0 | C179: =matrice2!K183 -> 0 | D179: =matrice2!C183 -> 0 | AI179: =matrice2!N183 -> prodotto a prezzo fisso | AJ179: =#REF! ->  | AK179: =#REF! ->  | AL179: =#REF! ->  | AM179: =#REF! -> 
A180: 0 | B180: 0 | C180: =matrice2!K184 -> 0 | D180: =matrice2!C184 -> 0 | AI180: =matrice2!N184 -> prodotto a prezzo fisso | AJ180: =#REF! ->  | AK180: =#REF! ->  | AL180: =#REF! ->  | AM180: =#REF! -> 
A181: 0 | B181: 0 | C181: =matrice2!K185 -> 0 | D181: =matrice2!C185 -> CONFETTURE | AI181: =matrice2!N185 -> 0 | AJ181: =#REF! ->  | AK181: =#REF! ->  | AL181: =#REF! ->  | AM181: =#REF! -> 
A182: 0 | B182: 0 | C182: =matrice2!K186 -> 3.52 | D182: =matrice2!C186 -> Confettura di peperoni - in barattolo da 106 gr | AI182: =matrice2!N186 -> prodotto a prezzo fisso | AJ182: =#REF! ->  | AK182: =#REF! ->  | AL182: =#REF! ->  | AM182: =#REF! -> 
A183: 0 | B183: 0 | C183: =matrice2!K187 -> 0 | D183: =matrice2!C187 -> 0 | AI183: =matrice2!N187 -> prodotto a prezzo fisso | AJ183: =#REF! ->  | AK183: =#REF! ->  | AL183: =#REF! ->  | AM183: =#REF! -> 
A184: 0 | B184: 0 | C184: =matrice2!K188 -> 0 | D184: =matrice2!C188 -> 0 | AI184: =matrice2!N188 -> prodotto a prezzo fisso | AJ184: =#REF! ->  | AK184: =#REF! ->  | AL184: =#REF! ->  | AM184: =#REF! -> 
A185: 0 | B185: 0 | C185: =matrice2!K189 -> 3.85 | D185: =matrice2!C189 -> Confettura albicocche - in barattolo da 320 gr | AI185: =matrice2!N189 -> prodotto a prezzo fisso | AJ185: =#REF! ->  | AK185: =#REF! ->  | AL185: =#REF! ->  | AM185: =#REF! -> 
A186: 0 | B186: 0 | C186: =matrice2!K190 -> 0 | D186: =matrice2!C190 -> 0 | AI186: =matrice2!N190 -> prodotto a prezzo fisso | AJ186: =#REF! ->  | AK186: =#REF! ->  | AL186: =#REF! ->  | AM186: =#REF! -> 
A187: 0 | B187: 0 | C187: =matrice2!K191 -> 0 | D187: =matrice2!C191 -> 0 | AI187: =matrice2!N191 -> prodotto a prezzo fisso | AJ187: =#REF! ->  | AK187: =#REF! ->  | AL187: =#REF! ->  | AM187: =#REF! -> 
A188: 0 | B188: 0 | C188: =matrice2!K192 -> 3.85 | D188: =matrice2!C192 -> Confettura pere e cannella - in barattolo da 320 gr | AI188: =matrice2!N192 -> prodotto a prezzo fisso | AJ188: =#REF! ->  | AK188: =#REF! ->  | AL188: =#REF! ->  | AM188: =#REF! -> 
A189: 0 | B189: 0 | C189: =matrice2!K193 -> 0 | D189: =matrice2!C193 -> 0 | AI189: =matrice2!N193 -> prodotto a prezzo fisso | AJ189: =#REF! ->  | AK189: =#REF! ->  | AL189: =#REF! ->  | AM189: =#REF! -> 
A190: 0 | B190: 0 | C190: =matrice2!K194 -> 0 | D190: =matrice2!C194 -> 0 | AI190: =matrice2!N194 -> prodotto a prezzo fisso | AJ190: =#REF! ->  | AK190: =#REF! ->  | AL190: =#REF! ->  | AM190: =#REF! -> 
A191: 0 | B191: 0 | C191: =matrice2!K195 -> 0 | D191: =matrice2!C195 -> 0 | AI191: =matrice2!N195 -> prodotto a prezzo fisso | AJ191: =#REF! ->  | AK191: =#REF! ->  | AL191: =#REF! ->  | AM191: =#REF! -> 
A192: 0 | B192: 0 | C192: =matrice2!K196 -> 0 | D192: =matrice2!C196 -> 0 | AI192: =matrice2!N196 -> prodotto a prezzo fisso | AJ192: =#REF! ->  | AK192: =#REF! ->  | AL192: =#REF! ->  | AM192: =#REF! -> 
A193: 0 | B193: 0 | C193: =matrice2!K197 -> 0 | D193: =matrice2!C197 -> PANE | AI193: =matrice2!N197 -> 0 | AJ193: =#REF! ->  | AK193: =#REF! ->  | AL193: =#REF! ->  | AM193: =#REF! -> 
A194: 0 | B194: 0 | C194: =matrice2!K198 -> 1.8975 | D194: =matrice2!C198 -> Pane con lievito madre cotto a legna - 500 gr | AI194: =matrice2!N198 -> prodotto a peso - prezzo indicativo | AJ194: =#REF! ->  | AK194: =#REF! ->  | AL194: =#REF! ->  | AM194: =#REF! -> 
A195: 0 | B195: 0 | C195: =matrice2!K199 -> 2.75 | D195: =matrice2!C199 -> Pane con lievito madre cotto a legna - 500 gr - integrale | AI195: =matrice2!N199 -> prodotto a peso - prezzo indicativo | AJ195: =#REF! ->  | AK195: =#REF! ->  | AL195: =#REF! ->  | AM195: =#REF! -> 
A196: 0 | B196: 0 | C196: =matrice2!K200 -> 3.795 | D196: =matrice2!C200 -> Pane con lievito madre cotto a legna - 500 gr - con le noci | AI196: =matrice2!N200 -> prodotto a peso - prezzo indicativo | AJ196: =#REF! ->  | AK196: =#REF! ->  | AL196: =#REF! ->  | AM196: =#REF! -> 
A197: 0 | B197: 0 | C197: =matrice2!K201 -> 3.795 | D197: =matrice2!C201 -> Pane con lievito madre cotto a legna - 500 gr - con pomodorini secchi | AI197: =matrice2!N201 -> prodotto a peso - prezzo indicativo | AJ197: =#REF! ->  | AK197: =#REF! ->  | AL197: =#REF! ->  | AM197: =#REF! -> 
A198: =SUM(E198:AH198) -> 0 | B198: =C198*A198 -> 0 | C198: =matrice2!K202 -> 3.9875 | D198: =matrice2!C202 -> Pane con lievito madre cotto a legna - 500 gr - ai 5 cereali con farina macinata a pietra | AI198: =matrice2!N202 -> prodotto a peso - prezzo indicativo | AJ198: =#REF! ->  | AK198: =#REF! ->  | AL198: =#REF! ->  | AM198: =#REF! -> 
A199: =SUM(E199:AH199) -> 0 | B199: 0 | C199: =matrice2!K203 -> 0 | D199: =matrice2!C203 -> 0 | AI199: =matrice2!N203 -> prodotto a prezzo fisso | AJ199: =#REF! ->  | AK199: =#REF! ->  | AL199: =#REF! ->  | AM199: =#REF! -> 
A200: =SUM(E200:AH200) -> 0 | B200: 0 | C200: =matrice2!K204 -> 0 | D200: =matrice2!C204 -> 0 | AI200: =matrice2!N204 -> prodotto a prezzo fisso | AJ200: =#REF! ->  | AK200: =#REF! ->  | AL200: =#REF! ->  | AM200: =#REF! -> 
... 382 more rows

Sheet spesa a domicilio (hidden)
A1: LISTINO PER LA SPESA A DOMICILIO | F1: cod-listino | G1: =#REF! -> 
B2: SPESA MINIMA 30 € - consegna gratuita per spese oltre i 75 € - 3 € di consegna per spese fra i 50 € e i 75 € - 5 € di consegna per spese fino ai 50 € - 5% di sconto superati i 100 € di spesa
A3: www.casaledimartignano.it - labottega@martignano.it - 334.888.31.55
A4: inserisci qui il tuo nome e cognome | B4: nome | C4: =IF(E4<100,"se raggiungi i 100 € di spesa hai diritto al 5% di sconto","HAI OTTENUTO LO SCONTO DEL 5%") ->  | D4: totale spesa (importo indicativo) escluso sconto | E4: =SUM(E10:E310) -> 
A5: inserisci qui l'indirizzo di consegna | B5: indirizzo | D5: sconto del 5% (superati i 100 €) | E5: =IF(E4>100,E4*0.05,0) -> 
A6: inserisci qui un tuo recapito telefonico | B6: telefono | C6: l'importo è indicativo perché dipende dal peso reale dei prodotti ricevuti | D6: spenderai circa | E6: =IF(E4-E5<30,"spesa minima 30 €",E4-E5) -> 
A7: inserisci qui il tuo indirizzo e-mail | B7: e-mail | C7: =IF(E7=0,"CONSEGNA GRATUITA!","consegna a pagamento - per la consegna gratuita devi superare i 75 € di spesa") ->  | D7: costi di consegna | E7: =IF(E4>75,0,IF(E4>50,3,IF(E4>30,5,"spesa minima 30 €"))) -> 
A8: ELENCO DEI PRODOTTI IN VENDITA | B8: € a porzione (per i prodotti a peso il prezzo è indicativo) | C8: NOTE | D8: inserire il n° di porzioni desiderate per ogni articolo (non si possono indicare sotto-porzioni) | E8: DETTAGLIO COSTI (importi indicativi) | F8: =#REF! ->  | G8: =#REF! ->  | H8: =#REF! ->  | I8: produttore
A9: =#REF! -> 
A10: =#REF! ->  | B10: =#REF! ->  | C10: =#REF! ->  | E10: =B10*D10 ->  | F10: =#REF! ->  | G10: =#REF! ->  | H10: =#REF! ->  | I10: =#REF! -> 
A11: =#REF! ->  | B11: =#REF! ->  | C11: =#REF! ->  | F11: =#REF! ->  | G11: =#REF! ->  | H11: =#REF! ->  | I11: =#REF! -> 
A12: =#REF! ->  | B12: =#REF! ->  | C12: =#REF! ->  | F12: =#REF! ->  | G12: =#REF! ->  | H12: =#REF! ->  | I12: =#REF! -> 
A13: =#REF! ->  | B13: =#REF! ->  | C13: =#REF! ->  | F13: =#REF! ->  | G13: =#REF! ->  | H13: =#REF! ->  | I13: =#REF! -> 
A14: =#REF! ->  | B14: =#REF! ->  | C14: =#REF! ->  | F14: =#REF! ->  | G14: =#REF! ->  | H14: =#REF! ->  | I14: =#REF! -> 
A15: =#REF! ->  | B15: =#REF! ->  | C15: =#REF! ->  | F15: =#REF! ->  | G15: =#REF! ->  | H15: =#REF! ->  | I15: =#REF! -> 
A16: =#REF! ->  | B16: =#REF! ->  | C16: =#REF! ->  | E16: =B16*D16 ->  | F16: =#REF! ->  | G16: =#REF! ->  | H16: =#REF! ->  | I16: =#REF! -> 
A17: =#REF! ->  | B17: =#REF! ->  | C17: =#REF! ->  | F17: =#REF! ->  | G17: =#REF! ->  | H17: =#REF! ->  | I17: =#REF! -> 
A18: =#REF! ->  | B18: =#REF! ->  | C18: =#REF! ->  | F18: =#REF! ->  | G18: =#REF! ->  | H18: =#REF! ->  | I18: =#REF! -> 
A19: =#REF! ->  | B19: =#REF! ->  | C19: =#REF! ->  | F19: =#REF! ->  | G19: =#REF! ->  | H19: =#REF! ->  | I19: =#REF! -> 
A20: =#REF! ->  | B20: =#REF! ->  | C20: =#REF! ->  | F20: =#REF! ->  | G20: =#REF! ->  | H20: =#REF! ->  | I20: =#REF! -> 
A21: =#REF! -> 
A22: =#REF! ->  | B22: =#REF! ->  | C22: =#REF! ->  | F22: =#REF! ->  | G22: =#REF! ->  | H22: =#REF! ->  | I22: =#REF! -> 
A23: =#REF! ->  | B23: =#REF! ->  | C23: =#REF! ->  | F23: =#REF! ->  | G23: =#REF! ->  | H23: =#REF! ->  | I23: =#REF! -> 
A24: =#REF! ->  | B24: =#REF! ->  | C24: =#REF! ->  | F24: =#REF! ->  | G24: =#REF! ->  | H24: =#REF! ->  | I24: =#REF! -> 
A25: =#REF! ->  | B25: =#REF! ->  | C25: =#REF! ->  | F25: =#REF! ->  | G25: =#REF! ->  | H25: =#REF! ->  | I25: =#REF! -> 
A26: =#REF! ->  | B26: =#REF! ->  | C26: =#REF! ->  | F26: =#REF! ->  | G26: =#REF! ->  | H26: =#REF! ->  | I26: =#REF! -> 
A27: =#REF! ->  | B27: =#REF! ->  | C27: =#REF! ->  | F27: =#REF! ->  | G27: =#REF! ->  | H27: =#REF! ->  | I27: =#REF! -> 
A28: =#REF! ->  | B28: =#REF! ->  | C28: =#REF! ->  | F28: =#REF! ->  | G28: =#REF! ->  | H28: =#REF! ->  | I28: =#REF! -> 
A29: =#REF! ->  | B29: =#REF! ->  | C29: =#REF! ->  | F29: =#REF! ->  | G29: =#REF! ->  | H29: =#REF! ->  | I29: =#REF! -> 
A30: =#REF! ->  | B30: =#REF! ->  | C30: =#REF! ->  | F30: =#REF! ->  | G30: =#REF! ->  | H30: =#REF! ->  | I30: =#REF! -> 
A31: =#REF! ->  | B31: =#REF! ->  | C31: =#REF! ->  | F31: =#REF! ->  | G31: =#REF! ->  | H31: =#REF! ->  | I31: =#REF! -> 
A32: =#REF! ->  | B32: =#REF! ->  | C32: =#REF! ->  | F32: =#REF! ->  | G32: =#REF! ->  | H32: =#REF! ->  | I32: =#REF! -> 
A33: =#REF! ->  | B33: =#REF! ->  | C33: =#REF! ->  | F33: =#REF! ->  | G33: =#REF! ->  | H33: =#REF! ->  | I33: =#REF! -> 
A34: =#REF! ->  | B34: =#REF! ->  | C34: =#REF! ->  | F34: =#REF! ->  | G34: =#REF! ->  | H34: =#REF! ->  | I34: =#REF! -> 
A35: =#REF! ->  | B35: =#REF! ->  | C35: =#REF! ->  | F35: =#REF! ->  | G35: =#REF! ->  | H35: =#REF! ->  | I35: =#REF! -> 
A36: =#REF! ->  | B36: =#REF! ->  | C36: =#REF! ->  | F36: =#REF! ->  | G36: =#REF! ->  | H36: =#REF! ->  | I36: =#REF! -> 
A37: =#REF! ->  | B37: =#REF! ->  | C37: =#REF! ->  | F37: =#REF! ->  | G37: =#REF! ->  | H37: =#REF! ->  | I37: =#REF! -> 
A38: =#REF! ->  | B38: =#REF! ->  | C38: =#REF! ->  | F38: =#REF! ->  | G38: =#REF! ->  | H38: =#REF! ->  | I38: =#REF! -> 
A39: =#REF! ->  | B39: =#REF! ->  | C39: =#REF! ->  | F39: =#REF! ->  | G39: =#REF! ->  | H39: =#REF! ->  | I39: =#REF! -> 
A40: =#REF! ->  | B40: =#REF! ->  | C40: =#REF! ->  | F40: =#REF! ->  | G40: =#REF! ->  | H40: =#REF! ->  | I40: =#REF! -> 
A41: =#REF! ->  | B41: =#REF! ->  | C41: =#REF! ->  | F41: =#REF! ->  | G41: =#REF! ->  | H41: =#REF! ->  | I41: =#REF! -> 
A42: =#REF! ->  | B42: =#REF! ->  | C42: =#REF! ->  | F42: =#REF! ->  | G42: =#REF! ->  | H42: =#REF! ->  | I42: =#REF! -> 
A43: =#REF! ->  | B43: =#REF! ->  | C43: =#REF! ->  | F43: =#REF! ->  | G43: =#REF! ->  | H43: =#REF! ->  | I43: =#REF! -> 
A44: =#REF! ->  | B44: =#REF! ->  | C44: =#REF! ->  | F44: =#REF! ->  | G44: =#REF! ->  | H44: =#REF! ->  | I44: =#REF! -> 
A45: =#REF! ->  | B45: =#REF! ->  | C45: =#REF! ->  | F45: =#REF! ->  | G45: =#REF! ->  | H45: =#REF! ->  | I45: =#REF! -> 
A46: =#REF! ->  | B46: =#REF! ->  | C46: =#REF! ->  | F46: =#REF! ->  | G46: =#REF! ->  | H46: =#REF! ->  | I46: =#REF! -> 
A47: =#REF! ->  | B47: =#REF! ->  | C47: =#REF! ->  | F47: =#REF! ->  | G47: =#REF! ->  | H47: =#REF! ->  | I47: =#REF! -> 
A48: =#REF! -> 
A49: =#REF! ->  | B49: =#REF! ->  | C49: =#REF! ->  | F49: =#REF! ->  | G49: =#REF! ->  | H49: =#REF! ->  | I49: =#REF! -> 
A50: =#REF! ->  | B50: =#REF! ->  | C50: =#REF! ->  | F50: =#REF! ->  | G50: =#REF! ->  | H50: =#REF! ->  | I50: =#REF! -> 
A51: =#REF! ->  | B51: =#REF! ->  | C51: =#REF! ->  | F51: =#REF! ->  | G51: =#REF! ->  | H51: =#REF! ->  | I51: =#REF! -> 
A52: =#REF! ->  | B52: =#REF! ->  | C52: =#REF! ->  | F52: =#REF! ->  | G52: =#REF! ->  | H52: =#REF! ->  | I52: =#REF! -> 
A53: =#REF! ->  | B53: =#REF! ->  | C53: =#REF! ->  | F53: =#REF! ->  | G53: =#REF! ->  | H53: =#REF! ->  | I53: =#REF! -> 
A54: =#REF! ->  | B54: =#REF! ->  | C54: =#REF! ->  | F54: =#REF! ->  | G54: =#REF! ->  | H54: =#REF! ->  | I54: =#REF! -> 
A55: =#REF! ->  | B55: =#REF! ->  | C55: =#REF! ->  | F55: =#REF! ->  | G55: =#REF! ->  | H55: =#REF! ->  | I55: =#REF! -> 
A56: =#REF! -> 
A57: =#REF! ->  | B57: =#REF! ->  | C57: =#REF! ->  | F57: =#REF! ->  | G57: =#REF! ->  | H57: =#REF! ->  | I57: =#REF! -> 
A58: =#REF! ->  | B58: =#REF! ->  | C58: =#REF! ->  | F58: =#REF! ->  | G58: =#REF! ->  | H58: =#REF! ->  | I58: =#REF! -> 
A59: =#REF! ->  | B59: =#REF! ->  | C59: =#REF! ->  | F59: =#REF! ->  | G59: =#REF! ->  | H59: =#REF! ->  | I59: =#REF! -> 
A60: =#REF! ->  | B60: =#REF! ->  | C60: =#REF! ->  | F60: =#REF! ->  | G60: =#REF! ->  | H60: =#REF! ->  | I60: =#REF! -> 
A61: =#REF! ->  | B61: =#REF! ->  | C61: =#REF! ->  | F61: =#REF! ->  | G61: =#REF! ->  | H61: =#REF! ->  | I61: =#REF! -> 
A62: =#REF! ->  | B62: =#REF! ->  | C62: =#REF! ->  | F62: =#REF! ->  | G62: =#REF! ->  | H62: =#REF! ->  | I62: =#REF! -> 
A63: =#REF! ->  | B63: =#REF! ->  | C63: =#REF! ->  | F63: =#REF! ->  | G63: =#REF! ->  | H63: =#REF! ->  | I63: =#REF! -> 
A64: =#REF! -> 
A65: =#REF! ->  | B65: =#REF! ->  | C65: =#REF! ->  | F65: =#REF! ->  | G65: =#REF! ->  | H65: =#REF! ->  | I65: =#REF! -> 
A66: =#REF! ->  | B66: =#REF! ->  | C66: =#REF! ->  | F66: =#REF! ->  | G66: =#REF! ->  | H66: =#REF! ->  | I66: =#REF! -> 
A67: =#REF! ->  | B67: =#REF! ->  | C67: =#REF! ->  | F67: =#REF! ->  | G67: =#REF! ->  | H67: =#REF! ->  | I67: =#REF! -> 
A68: =#REF! ->  | B68: =#REF! ->  | C68: =#REF! ->  | F68: =#REF! ->  | G68: =#REF! ->  | H68: =#REF! ->  | I68: =#REF! -> 
A69: =#REF! ->  | B69: =#REF! ->  | C69: =#REF! ->  | F69: =#REF! ->  | G69: =#REF! ->  | H69: =#REF! ->  | I69: =#REF! -> 
A70: =#REF! ->  | B70: =#REF! ->  | C70: =#REF! ->  | F70: =#REF! ->  | G70: =#REF! ->  | H70: =#REF! ->  | I70: =#REF! -> 
A71: =#REF! ->  | B71: =#REF! ->  | C71: =#REF! ->  | F71: =#REF! ->  | G71: =#REF! ->  | H71: =#REF! ->  | I71: =#REF! -> 
A72: =#REF! ->  | B72: =#REF! ->  | C72: =#REF! ->  | F72: =#REF! ->  | G72: =#REF! ->  | H72: =#REF! ->  | I72: =#REF! -> 
A73: =#REF! ->  | B73: =#REF! ->  | C73: =#REF! ->  | F73: =#REF! ->  | G73: =#REF! ->  | H73: =#REF! ->  | I73: =#REF! -> 
A74: =#REF! ->  | B74: =#REF! ->  | C74: =#REF! ->  | F74: =#REF! ->  | G74: =#REF! ->  | H74: =#REF! ->  | I74: =#REF! -> 
A75: =#REF! ->  | B75: =#REF! ->  | C75: =#REF! ->  | F75: =#REF! ->  | G75: =#REF! ->  | H75: =#REF! ->  | I75: =#REF! -> 
A76: =#REF! ->  | B76: =#REF! ->  | C76: =#REF! ->  | F76: =#REF! ->  | G76: =#REF! ->  | H76: =#REF! ->  | I76: =#REF! -> 
A77: =#REF! ->  | B77: =#REF! ->  | C77: =#REF! ->  | F77: =#REF! ->  | G77: =#REF! ->  | H77: =#REF! ->  | I77: =#REF! -> 
A78: =#REF! ->  | B78: =#REF! ->  | C78: =#REF! ->  | F78: =#REF! ->  | G78: =#REF! ->  | H78: =#REF! ->  | I78: =#REF! -> 
A79: =#REF! ->  | B79: =#REF! ->  | C79: =#REF! ->  | F79: =#REF! ->  | G79: =#REF! ->  | H79: =#REF! ->  | I79: =#REF! -> 
A80: =#REF! -> 
A81: =#REF! ->  | B81: =#REF! ->  | C81: =#REF! ->  | E81: =B81*D81 ->  | F81: =#REF! ->  | G81: =#REF! ->  | H81: =#REF! ->  | I81: =#REF! -> 
A82: =#REF! ->  | B82: =#REF! ->  | C82: =#REF! ->  | F82: =#REF! ->  | G82: =#REF! ->  | H82: =#REF! ->  | I82: =#REF! -> 
A83: =#REF! ->  | B83: =#REF! ->  | C83: =#REF! ->  | F83: =#REF! ->  | G83: =#REF! ->  | H83: =#REF! ->  | I83: =#REF! -> 
A84: =#REF! ->  | B84: =#REF! ->  | C84: =#REF! ->  | F84: =#REF! ->  | G84: =#REF! ->  | H84: =#REF! ->  | I84: =#REF! -> 
A85: =#REF! ->  | B85: =#REF! ->  | C85: =#REF! ->  | F85: =#REF! ->  | G85: =#REF! ->  | H85: =#REF! ->  | I85: =#REF! -> 
A86: =#REF! ->  | B86: =#REF! ->  | C86: =#REF! ->  | F86: =#REF! ->  | G86: =#REF! ->  | H86: =#REF! ->  | I86: =#REF! -> 
A87: =#REF! ->  | B87: =#REF! ->  | C87: =#REF! ->  | F87: =#REF! ->  | G87: =#REF! ->  | H87: =#REF! ->  | I87: =#REF! -> 
A88: =#REF! ->  | B88: =#REF! ->  | C88: =#REF! ->  | F88: =#REF! ->  | G88: =#REF! ->  | H88: =#REF! ->  | I88: =#REF! -> 
A89: =#REF! ->  | B89: =#REF! ->  | C89: =#REF! ->  | F89: =#REF! ->  | G89: =#REF! ->  | H89: =#REF! ->  | I89: =#REF! -> 
A90: =#REF! ->  | B90: =#REF! ->  | C90: =#REF! ->  | F90: =#REF! ->  | G90: =#REF! ->  | H90: =#REF! ->  | I90: =#REF! -> 
A91: =#REF! ->  | B91: =#REF! ->  | C91: =#REF! ->  | F91: =#REF! ->  | G91: =#REF! ->  | H91: =#REF! ->  | I91: =#REF! -> 
A92: =#REF! ->  | B92: =#REF! ->  | C92: =#REF! ->  | F92: =#REF! ->  | G92: =#REF! ->  | H92: =#REF! ->  | I92: =#REF! -> 
A93: =#REF! ->  | B93: =#REF! ->  | C93: =#REF! ->  | F93: =#REF! ->  | G93: =#REF! ->  | H93: =#REF! ->  | I93: =#REF! -> 
A94: =#REF! ->  | B94: =#REF! ->  | C94: =#REF! ->  | F94: =#REF! ->  | G94: =#REF! ->  | H94: =#REF! ->  | I94: =#REF! -> 
A95: =#REF! ->  | B95: =#REF! ->  | C95: =#REF! ->  | F95: =#REF! ->  | G95: =#REF! ->  | H95: =#REF! ->  | I95: =#REF! -> 
A96: =#REF! ->  | B96: =#REF! ->  | C96: =#REF! ->  | F96: =#REF! ->  | G96: =#REF! ->  | H96: =#REF! ->  | I96: =#REF! -> 
A97: =#REF! ->  | B97: =#REF! ->  | C97: =#REF! ->  | F97: =#REF! ->  | G97: =#REF! ->  | H97: =#REF! ->  | I97: =#REF! -> 
A98: =#REF! ->  | B98: =#REF! ->  | C98: =#REF! ->  | F98: =#REF! ->  | G98: =#REF! ->  | H98: =#REF! ->  | I98: =#REF! -> 
A99: =#REF! ->  | B99: =#REF! ->  | C99: =#REF! ->  | F99: =#REF! ->  | G99: =#REF! ->  | H99: =#REF! ->  | I99: =#REF! -> 
A100: =#REF! ->  | B100: =#REF! ->  | C100: =#REF! ->  | F100: =#REF! ->  | G100: =#REF! ->  | H100: =#REF! ->  | I100: =#REF! -> 
A101: =#REF! ->  | B101: =#REF! ->  | C101: =#REF! ->  | F101: =#REF! ->  | G101: =#REF! ->  | H101: =#REF! ->  | I101: =#REF! -> 
A102: =#REF! ->  | B102: =#REF! ->  | C102: =#REF! ->  | F102: =#REF! ->  | G102: =#REF! ->  | H102: =#REF! ->  | I102: =#REF! -> 
A103: =#REF! ->  | B103: =#REF! ->  | C103: =#REF! ->  | F103: =#REF! ->  | G103: =#REF! ->  | H103: =#REF! ->  | I103: =#REF! -> 
A104: =#REF! ->  | B104: =#REF! ->  | C104: =#REF! ->  | F104: =#REF! ->  | G104: =#REF! ->  | H104: =#REF! ->  | I104: =#REF! -> 
A105: =#REF! ->  | B105: =#REF! ->  | C105: =#REF! ->  | F105: =#REF! ->  | G105: =#REF! ->  | H105: =#REF! ->  | I105: =#REF! -> 
A106: =#REF! ->  | B106: =#REF! ->  | C106: =#REF! ->  | F106: =#REF! ->  | G106: =#REF! ->  | H106: =#REF! ->  | I106: =#REF! -> 
A107: =#REF! ->  | B107: =#REF! ->  | C107: =#REF! ->  | F107: =#REF! ->  | G107: =#REF! ->  | H107: =#REF! ->  | I107: =#REF! -> 
A108: =#REF! ->  | B108: =#REF! ->  | C108: =#REF! ->  | F108: =#REF! ->  | G108: =#REF! ->  | H108: =#REF! ->  | I108: =#REF! -> 
A109: =#REF! ->  | B109: =#REF! ->  | C109: =#REF! ->  | F109: =#REF! ->  | G109: =#REF! ->  | H109: =#REF! ->  | I109: =#REF! -> 
A110: =#REF! ->  | B110: =#REF! ->  | C110: =#REF! ->  | F110: =#REF! ->  | G110: =#REF! ->  | H110: =#REF! ->  | I110: =#REF! -> 
A111: =#REF! ->  | B111: =#REF! ->  | C111: =#REF! ->  | F111: =#REF! ->  | G111: =#REF! ->  | H111: =#REF! ->  | I111: =#REF! -> 
A112: =#REF! ->  | B112: =#REF! ->  | C112: =#REF! ->  | F112: =#REF! ->  | G112: =#REF! ->  | H112: =#REF! ->  | I112: =#REF! -> 
A113: =#REF! ->  | B113: =#REF! ->  | C113: =#REF! ->  | F113: =#REF! ->  | G113: =#REF! ->  | H113: =#REF! ->  | I113: =#REF! -> 
A114: =#REF! ->  | B114: =#REF! ->  | C114: =#REF! ->  | F114: =#REF! ->  | G114: =#REF! ->  | H114: =#REF! ->  | I114: =#REF! -> 
A115: =#REF! ->  | B115: =#REF! ->  | C115: =#REF! ->  | F115: =#REF! ->  | G115: =#REF! ->  | H115: =#REF! ->  | I115: =#REF! -> 
A116: =#REF! ->  | B116: =#REF! ->  | C116: =#REF! ->  | F116: =#REF! ->  | G116: =#REF! ->  | H116: =#REF! ->  | I116: =#REF! -> 
A117: =#REF! ->  | B117: =#REF! ->  | C117: =#REF! ->  | F117: =#REF! ->  | G117: =#REF! ->  | H117: =#REF! ->  | I117: =#REF! -> 
A118: =#REF! ->  | B118: =#REF! ->  | C118: =#REF! ->  | F118: =#REF! ->  | G118: =#REF! ->  | H118: =#REF! ->  | I118: =#REF! -> 
A119: =#REF! ->  | B119: =#REF! ->  | C119: =#REF! ->  | F119: =#REF! ->  | G119: =#REF! ->  | H119: =#REF! ->  | I119: =#REF! -> 
A120: =#REF! ->  | B120: =#REF! ->  | C120: =#REF! ->  | F120: =#REF! ->  | G120: =#REF! ->  | H120: =#REF! ->  | I120: =#REF! -> 
A121: =#REF! ->  | B121: =#REF! ->  | C121: =#REF! ->  | F121: =#REF! ->  | G121: =#REF! ->  | H121: =#REF! ->  | I121: =#REF! -> 
A122: =#REF! ->  | B122: =#REF! ->  | C122: =#REF! ->  | F122: =#REF! ->  | G122: =#REF! ->  | H122: =#REF! ->  | I122: =#REF! -> 
A123: =#REF! ->  | B123: =#REF! ->  | C123: =#REF! ->  | F123: =#REF! ->  | G123: =#REF! ->  | H123: =#REF! ->  | I123: =#REF! -> 
A124: =#REF! ->  | B124: =#REF! ->  | C124: =#REF! ->  | F124: =#REF! ->  | G124: =#REF! ->  | H124: =#REF! ->  | I124: =#REF! -> 
A125: =#REF! ->  | B125: =#REF! ->  | C125: =#REF! ->  | F125: =#REF! ->  | G125: =#REF! ->  | H125: =#REF! ->  | I125: =#REF! -> 
A126: =#REF! ->  | B126: =#REF! ->  | C126: =#REF! ->  | F126: =#REF! ->  | G126: =#REF! ->  | H126: =#REF! ->  | I126: =#REF! -> 
A127: =#REF! ->  | B127: =#REF! ->  | C127: =#REF! ->  | F127: =#REF! ->  | G127: =#REF! ->  | H127: =#REF! ->  | I127: =#REF! -> 
A128: =#REF! ->  | B128: =#REF! ->  | C128: =#REF! ->  | F128: =#REF! ->  | G128: =#REF! ->  | H128: =#REF! ->  | I128: =#REF! -> 
A129: =#REF! ->  | B129: =#REF! ->  | C129: =#REF! ->  | F129: =#REF! ->  | G129: =#REF! ->  | H129: =#REF! ->  | I129: =#REF! -> 
A130: =#REF! ->  | B130: =#REF! ->  | C130: =#REF! ->  | F130: =#REF! ->  | G130: =#REF! ->  | H130: =#REF! ->  | I130: =#REF! -> 
A131: =#REF! ->  | B131: =#REF! ->  | C131: =#REF! ->  | F131: =#REF! ->  | G131: =#REF! ->  | H131: =#REF! ->  | I131: =#REF! -> 
A132: =#REF! ->  | B132: =#REF! ->  | C132: =#REF! ->  | F132: =#REF! ->  | G132: =#REF! ->  | H132: =#REF! ->  | I132: =#REF! -> 
A133: =#REF! ->  | B133: =#REF! ->  | C133: =#REF! ->  | F133: =#REF! ->  | G133: =#REF! ->  | H133: =#REF! ->  | I133: =#REF! -> 
A134: =#REF! ->  | B134: =#REF! ->  | C134: =#REF! ->  | F134: =#REF! ->  | G134: =#REF! ->  | H134: =#REF! ->  | I134: =#REF! -> 
A135: =#REF! ->  | B135: =#REF! ->  | C135: =#REF! ->  | F135: =#REF! ->  | G135: =#REF! ->  | H135: =#REF! ->  | I135: =#REF! -> 
A136: =#REF! ->  | B136: =#REF! ->  | C136: =#REF! ->  | F136: =#REF! ->  | G136: =#REF! ->  | H136: =#REF! ->  | I136: =#REF! -> 
A137: =#REF! ->  | B137: =#REF! ->  | C137: =#REF! ->  | F137: =#REF! ->  | G137: =#REF! ->  | H137: =#REF! ->  | I137: =#REF! -> 
A138: =#REF! ->  | B138: =#REF! ->  | C138: =#REF! ->  | F138: =#REF! ->  | G138: =#REF! ->  | H138: =#REF! ->  | I138: =#REF! -> 
A139: =#REF! ->  | B139: =#REF! ->  | C139: =#REF! ->  | F139: =#REF! ->  | G139: =#REF! ->  | H139: =#REF! ->  | I139: =#REF! -> 
A140: =#REF! ->  | B140: =#REF! ->  | C140: =#REF! ->  | F140: =#REF! ->  | G140: =#REF! ->  | H140: =#REF! ->  | I140: =#REF! -> 
A141: =#REF! ->  | B141: =#REF! ->  | C141: =#REF! ->  | F141: =#REF! ->  | G141: =#REF! ->  | H141: =#REF! ->  | I141: =#REF! -> 
A142: =#REF! ->  | B142: =#REF! ->  | C142: =#REF! ->  | F142: =#REF! ->  | G142: =#REF! ->  | H142: =#REF! ->  | I142: =#REF! -> 
A143: =#REF! ->  | B143: =#REF! ->  | C143: =#REF! ->  | F143: =#REF! ->  | G143: =#REF! ->  | H143: =#REF! ->  | I143: =#REF! -> 
A144: =#REF! ->  | B144: =#REF! ->  | C144: =#REF! ->  | E144: =B144*D144 ->  | F144: =#REF! ->  | G144: =#REF! ->  | H144: =#REF! ->  | I144: =#REF! -> 
A145: =#REF! -> 
A146: =#REF! ->  | B146: =#REF! ->  | C146: =#REF! ->  | F146: =#REF! ->  | G146: =#REF! ->  | H146: =#REF! ->  | I146: =#REF! -> 
A147: =#REF! ->  | B147: =#REF! ->  | C147: =#REF! ->  | F147: =#REF! ->  | G147: =#REF! ->  | H147: =#REF! ->  | I147: =#REF! -> 
A148: =#REF! ->  | B148: =#REF! ->  | C148: =#REF! ->  | F148: =#REF! ->  | G148: =#REF! ->  | H148: =#REF! ->  | I148: =#REF! -> 
A149: =#REF! ->  | B149: =#REF! ->  | C149: =#REF! ->  | F149: =#REF! ->  | G149: =#REF! ->  | H149: =#REF! ->  | I149: =#REF! -> 
A150: =#REF! ->  | B150: =#REF! ->  | C150: =#REF! ->  | F150: =#REF! ->  | G150: =#REF! ->  | H150: =#REF! ->  | I150: =#REF! -> 
A151: =#REF! ->  | B151: =#REF! ->  | C151: =#REF! ->  | F151: =#REF! ->  | G151: =#REF! ->  | H151: =#REF! ->  | I151: =#REF! -> 
A152: =#REF! ->  | B152: =#REF! ->  | C152: =#REF! ->  | F152: =#REF! ->  | G152: =#REF! ->  | H152: =#REF! ->  | I152: =#REF! -> 
A153: =#REF! ->  | B153: =#REF! ->  | C153: =#REF! ->  | F153: =#REF! ->  | G153: =#REF! ->  | H153: =#REF! ->  | I153: =#REF! -> 
A154: =#REF! ->  | B154: =#REF! ->  | C154: =#REF! ->  | F154: =#REF! ->  | G154: =#REF! ->  | H154: =#REF! ->  | I154: =#REF! -> 
A155: =#REF! ->  | B155: =#REF! ->  | C155: =#REF! ->  | F155: =#REF! ->  | G155: =#REF! ->  | H155: =#REF! ->  | I155: =#REF! -> 
A156: =#REF! ->  | B156: =#REF! ->  | C156: =#REF! ->  | F156: =#REF! ->  | G156: =#REF! ->  | H156: =#REF! ->  | I156: =#REF! -> 
A157: =#REF! ->  | B157: =#REF! ->  | C157: =#REF! ->  | F157: =#REF! ->  | G157: =#REF! ->  | H157: =#REF! ->  | I157: =#REF! -> 
A158: =#REF! ->  | B158: =#REF! ->  | C158: =#REF! ->  | F158: =#REF! ->  | G158: =#REF! ->  | H158: =#REF! ->  | I158: =#REF! -> 
A159: =#REF! ->  | B159: =#REF! ->  | C159: =#REF! ->  | F159: =#REF! ->  | G159: =#REF! ->  | H159: =#REF! ->  | I159: =#REF! -> 
A160: =#REF! ->  | B160: =#REF! ->  | C160: =#REF! ->  | F160: =#REF! ->  | G160: =#REF! ->  | H160: =#REF! ->  | I160: =#REF! -> 
A161: =#REF! ->  | B161: =#REF! ->  | C161: =#REF! ->  | F161: =#REF! ->  | G161: =#REF! ->  | H161: =#REF! ->  | I161: =#REF! -> 
A162: =#REF! ->  | B162: =#REF! ->  | C162: =#REF! ->  | F162: =#REF! ->  | G162: =#REF! ->  | H162: =#REF! ->  | I162: =#REF! -> 
A163: =#REF! ->  | B163: =#REF! ->  | C163: =#REF! ->  | F163: =#REF! ->  | G163: =#REF! ->  | H163: =#REF! ->  | I163: =#REF! -> 
A164: =#REF! ->  | B164: =#REF! ->  | C164: =#REF! ->  | F164: =#REF! ->  | G164: =#REF! ->  | H164: =#REF! ->  | I164: =#REF! -> 
A165: =#REF! ->  | B165: =#REF! ->  | C165: =#REF! ->  | F165: =#REF! ->  | G165: =#REF! ->  | H165: =#REF! ->  | I165: =#REF! -> 
A166: =#REF! ->  | B166: =#REF! ->  | C166: =#REF! ->  | F166: =#REF! ->  | G166: =#REF! ->  | H166: =#REF! ->  | I166: =#REF! -> 
A167: =#REF! ->  | B167: =#REF! ->  | C167: =#REF! ->  | F167: =#REF! ->  | G167: =#REF! ->  | H167: =#REF! ->  | I167: =#REF! -> 
A168: =#REF! ->  | B168: =#REF! ->  | C168: =#REF! ->  | F168: =#REF! ->  | G168: =#REF! ->  | H168: =#REF! ->  | I168: =#REF! -> 
A169: =#REF! ->  | B169: =#REF! ->  | C169: =#REF! ->  | F169: =#REF! ->  | G169: =#REF! ->  | H169: =#REF! ->  | I169: =#REF! -> 
A170: =#REF! ->  | B170: =#REF! ->  | C170: =#REF! ->  | F170: =#REF! ->  | G170: =#REF! ->  | H170: =#REF! ->  | I170: =#REF! -> 
A171: =#REF! ->  | B171: =#REF! ->  | C171: =#REF! ->  | F171: =#REF! ->  | G171: =#REF! ->  | H171: =#REF! ->  | I171: =#REF! -> 
A172: =#REF! ->  | B172: =#REF! ->  | C172: =#REF! ->  | F172: =#REF! ->  | G172: =#REF! ->  | H172: =#REF! ->  | I172: =#REF! -> 
A173: =#REF! ->  | B173: =#REF! ->  | C173: =#REF! ->  | F173: =#REF! ->  | G173: =#REF! ->  | H173: =#REF! ->  | I173: =#REF! -> 
A174: =#REF! ->  | B174: =#REF! ->  | C174: =#REF! ->  | F174: =#REF! ->  | G174: =#REF! ->  | H174: =#REF! ->  | I174: =#REF! -> 
A175: =#REF! ->  | B175: =#REF! ->  | C175: =#REF! ->  | F175: =#REF! ->  | G175: =#REF! ->  | H175: =#REF! ->  | I175: =#REF! -> 
A176: =#REF! ->  | B176: =#REF! ->  | C176: =#REF! ->  | F176: =#REF! ->  | G176: =#REF! ->  | H176: =#REF! ->  | I176: =#REF! -> 
A177: =#REF! ->  | B177: =#REF! ->  | C177: =#REF! ->  | F177: =#REF! ->  | G177: =#REF! ->  | H177: =#REF! ->  | I177: =#REF! -> 
A178: =#REF! ->  | B178: =#REF! ->  | C178: =#REF! ->  | F178: =#REF! ->  | G178: =#REF! ->  | H178: =#REF! ->  | I178: =#REF! -> 
A179: =#REF! ->  | B179: =#REF! ->  | C179: =#REF! ->  | F179: =#REF! ->  | G179: =#REF! ->  | H179: =#REF! ->  | I179: =#REF! -> 
A180: =#REF! ->  | B180: =#REF! ->  | C180: =#REF! ->  | F180: =#REF! ->  | G180: =#REF! ->  | H180: =#REF! ->  | I180: =#REF! -> 
A181: =#REF! ->  | B181: =#REF! ->  | C181: =#REF! ->  | F181: =#REF! ->  | G181: =#REF! ->  | H181: =#REF! ->  | I181: =#REF! -> 
A182: =#REF! ->  | B182: =#REF! ->  | C182: =#REF! ->  | F182: =#REF! ->  | G182: =#REF! ->  | H182: =#REF! ->  | I182: =#REF! -> 
A183: =#REF! ->  | B183: =#REF! ->  | C183: =#REF! ->  | F183: =#REF! ->  | G183: =#REF! ->  | H183: =#REF! ->  | I183: =#REF! -> 
A184: =#REF! ->  | B184: =#REF! ->  | C184: =#REF! ->  | F184: =#REF! ->  | G184: =#REF! ->  | H184: =#REF! ->  | I184: =#REF! -> 
A185: =#REF! ->  | B185: =#REF! ->  | C185: =#REF! ->  | F185: =#REF! ->  | G185: =#REF! ->  | H185: =#REF! ->  | I185: =#REF! -> 
A186: =#REF! -> 
A187: =#REF! ->  | B187: =#REF! ->  | C187: =#REF! ->  | F187: =#REF! ->  | G187: =#REF! ->  | H187: =#REF! ->  | I187: =#REF! -> 
A188: =#REF! ->  | B188: =#REF! ->  | C188: =#REF! ->  | F188: =#REF! ->  | G188: =#REF! ->  | H188: =#REF! ->  | I188: =#REF! -> 
A189: =#REF! ->  | B189: =#REF! ->  | C189: =#REF! ->  | F189: =#REF! ->  | G189: =#REF! ->  | H189: =#REF! ->  | I189: =#REF! -> 
A190: =#REF! ->  | B190: =#REF! ->  | C190: =#REF! ->  | F190: =#REF! ->  | G190: =#REF! ->  | H190: =#REF! ->  | I190: =#REF! -> 
A191: =#REF! ->  | B191: =#REF! ->  | C191: =#REF! ->  | F191: =#REF! ->  | G191: =#REF! ->  | H191: =#REF! ->  | I191: =#REF! -> 
A192: =#REF! ->  | B192: =#REF! ->  | C192: =#REF! ->  | F192: =#REF! ->  | G192: =#REF! ->  | H192: =#REF! ->  | I192: =#REF! -> 
A193: =#REF! ->  | B193: =#REF! ->  | C193: =#REF! ->  | F193: =#REF! ->  | G193: =#REF! ->  | H193: =#REF! ->  | I193: =#REF! -> 
A194: =#REF! ->  | B194: =#REF! ->  | C194: =#REF! ->  | F194: =#REF! ->  | G194: =#REF! ->  | H194: =#REF! ->  | I194: =#REF! -> 
A195: =#REF! ->  | B195: =#REF! ->  | C195: =#REF! ->  | F195: =#REF! ->  | G195: =#REF! ->  | H195: =#REF! ->  | I195: =#REF! -> 
A196: =#REF! ->  | B196: =#REF! ->  | C196: =#REF! ->  | F196: =#REF! ->  | G196: =#REF! ->  | H196: =#REF! ->  | I196: =#REF! -> 
A197: =#REF! ->  | B197: =#REF! ->  | C197: =#REF! ->  | F197: =#REF! ->  | G197: =#REF! ->  | H197: =#REF! ->  | I197: =#REF! -> 
A198: =#REF! -> 
A199: =#REF! ->  | B199: =#REF! ->  | C199: =#REF! ->  | F199: =#REF! ->  | G199: =#REF! ->  | H199: =#REF! ->  | I199: =#REF! -> 
A200: =#REF! ->  | B200: =#REF! ->  | C200: =#REF! ->  | F200: =#REF! ->  | G200: =#REF! ->  | H200: =#REF! ->  | I200: =#REF! -> 
... 110 more rows

Sheet listino per PDF (hidden)
A1: ELENCO DEI PRODOTTI (CONTATTACI PER RICEVERE IL LISTINO SETTIMANALE CON I PRODOTTI IN VENDITA - IL LISTINO VARIA IN RELAZIONE ALLE PRODUZIONI!)
A2: =#REF! ->  | B2: € a porzione - prezzo è indicativo | C2: NOTE | D2: =#REF! ->  | E2: =#REF! ->  | F2: =#REF! ->  | G2: produttore | H2: prezzo al kg IVA inclusa
A3: =#REF! -> 
A4: =#REF! ->  | B4: =#REF! ->  | C4: =#REF! ->  | D4: =#REF! ->  | E4: =#REF! ->  | F4: =#REF! ->  | G4: =#REF! ->  | H4: =#REF! -> 
A5: =#REF! ->  | B5: =#REF! ->  | C5: =#REF! ->  | D5: =#REF! ->  | E5: =#REF! ->  | F5: =#REF! ->  | G5: =#REF! ->  | H5: =#REF! -> 
A6: =#REF! ->  | B6: =#REF! ->  | C6: =#REF! ->  | D6: =#REF! ->  | E6: =#REF! ->  | F6: =#REF! ->  | G6: =#REF! ->  | H6: =#REF! -> 
A7: =#REF! ->  | B7: =#REF! ->  | C7: =#REF! ->  | D7: =#REF! ->  | E7: =#REF! ->  | F7: =#REF! ->  | G7: =#REF! ->  | H7: =#REF! -> 
A8: =#REF! ->  | B8: =#REF! ->  | C8: =#REF! ->  | D8: =#REF! ->  | E8: =#REF! ->  | F8: =#REF! ->  | G8: =#REF! ->  | H8: =#REF! -> 
A9: =#REF! ->  | B9: =#REF! ->  | C9: =#REF! ->  | D9: =#REF! ->  | E9: =#REF! ->  | F9: =#REF! ->  | G9: =#REF! ->  | H9: =#REF! -> 
A10: =#REF! ->  | B10: =#REF! ->  | C10: =#REF! ->  | D10: =#REF! ->  | E10: =#REF! ->  | F10: =#REF! ->  | G10: =#REF! ->  | H10: =#REF! -> 
A11: =#REF! ->  | B11: =#REF! ->  | C11: =#REF! ->  | D11: =#REF! ->  | E11: =#REF! ->  | F11: =#REF! ->  | G11: =#REF! ->  | H11: =#REF! -> 
A12: =#REF! ->  | B12: =#REF! ->  | C12: =#REF! ->  | D12: =#REF! ->  | E12: =#REF! ->  | F12: =#REF! ->  | G12: =#REF! ->  | H12: =#REF! -> 
A13: =#REF! ->  | B13: =#REF! ->  | C13: =#REF! ->  | D13: =#REF! ->  | E13: =#REF! ->  | F13: =#REF! ->  | G13: =#REF! ->  | H13: =#REF! -> 
A14: =#REF! ->  | B14: =#REF! ->  | C14: =#REF! ->  | D14: =#REF! ->  | E14: =#REF! ->  | F14: =#REF! ->  | G14: =#REF! ->  | H14: =#REF! -> 
A15: =#REF! -> 
A16: =#REF! ->  | B16: =#REF! ->  | C16: =#REF! ->  | D16: =#REF! ->  | E16: =#REF! ->  | F16: =#REF! ->  | G16: =#REF! ->  | H16: =#REF! -> 
A17: =#REF! ->  | B17: =#REF! ->  | C17: =#REF! ->  | D17: =#REF! ->  | E17: =#REF! ->  | F17: =#REF! ->  | G17: =#REF! ->  | H17: =#REF! -> 
A18: =#REF! ->  | B18: =#REF! ->  | C18: =#REF! ->  | D18: =#REF! ->  | E18: =#REF! ->  | F18: =#REF! ->  | G18: =#REF! ->  | H18: =#REF! -> 
A19: =#REF! ->  | B19: =#REF! ->  | C19: =#REF! ->  | D19: =#REF! ->  | E19: =#REF! ->  | F19: =#REF! ->  | G19: =#REF! ->  | H19: =#REF! -> 
A20: =#REF! ->  | B20: =#REF! ->  | C20: =#REF! ->  | D20: =#REF! ->  | E20: =#REF! ->  | F20: =#REF! ->  | G20: =#REF! ->  | H20: =#REF! -> 
A21: =#REF! ->  | B21: =#REF! ->  | C21: =#REF! ->  | D21: =#REF! ->  | E21: =#REF! ->  | F21: =#REF! ->  | G21: =#REF! ->  | H21: =#REF! -> 
A22: =#REF! ->  | B22: =#REF! ->  | C22: =#REF! ->  | D22: =#REF! ->  | E22: =#REF! ->  | F22: =#REF! ->  | G22: =#REF! ->  | H22: =#REF! -> 
A23: =#REF! ->  | B23: =#REF! ->  | C23: =#REF! ->  | D23: =#REF! ->  | E23: =#REF! ->  | F23: =#REF! ->  | G23: =#REF! ->  | H23: =#REF! -> 
A24: =#REF! ->  | B24: =#REF! ->  | C24: =#REF! ->  | D24: =#REF! ->  | E24: =#REF! ->  | F24: =#REF! ->  | G24: =#REF! ->  | H24: =#REF! -> 
A25: =#REF! ->  | B25: =#REF! ->  | C25: =#REF! ->  | D25: =#REF! ->  | E25: =#REF! ->  | F25: =#REF! ->  | G25: =#REF! ->  | H25: =#REF! -> 
A26: =#REF! ->  | B26: =#REF! ->  | C26: =#REF! ->  | D26: =#REF! ->  | E26: =#REF! ->  | F26: =#REF! ->  | G26: =#REF! ->  | H26: =#REF! -> 
A27: =#REF! ->  | B27: =#REF! ->  | C27: =#REF! ->  | D27: =#REF! ->  | E27: =#REF! ->  | F27: =#REF! ->  | G27: =#REF! ->  | H27: =#REF! -> 
A28: =#REF! ->  | B28: =#REF! ->  | C28: =#REF! ->  | D28: =#REF! ->  | E28: =#REF! ->  | F28: =#REF! ->  | G28: =#REF! ->  | H28: =#REF! -> 
A29: =#REF! ->  | B29: =#REF! ->  | C29: =#REF! ->  | D29: =#REF! ->  | E29: =#REF! ->  | F29: =#REF! ->  | G29: =#REF! ->  | H29: =#REF! -> 
A30: =#REF! ->  | B30: =#REF! ->  | C30: =#REF! ->  | D30: =#REF! ->  | E30: =#REF! ->  | F30: =#REF! ->  | G30: =#REF! ->  | H30: =#REF! -> 
A31: =#REF! ->  | B31: =#REF! ->  | C31: =#REF! ->  | D31: =#REF! ->  | E31: =#REF! ->  | F31: =#REF! ->  | G31: =#REF! ->  | H31: =#REF! -> 
A32: =#REF! ->  | B32: =#REF! ->  | C32: =#REF! ->  | D32: =#REF! ->  | E32: =#REF! ->  | F32: =#REF! ->  | G32: =#REF! ->  | H32: =#REF! -> 
A33: =#REF! ->  | B33: =#REF! ->  | C33: =#REF! ->  | D33: =#REF! ->  | E33: =#REF! ->  | F33: =#REF! ->  | G33: =#REF! ->  | H33: =#REF! -> 
A34: =#REF! ->  | B34: =#REF! ->  | C34: =#REF! ->  | D34: =#REF! ->  | E34: =#REF! ->  | F34: =#REF! ->  | G34: =#REF! ->  | H34: =#REF! -> 
A35: =#REF! ->  | B35: =#REF! ->  | C35: =#REF! ->  | D35: =#REF! ->  | E35: =#REF! ->  | F35: =#REF! ->  | G35: =#REF! ->  | H35: =#REF! -> 
A36: =#REF! ->  | B36: =#REF! ->  | C36: =#REF! ->  | D36: =#REF! ->  | E36: =#REF! ->  | F36: =#REF! ->  | G36: =#REF! ->  | H36: =#REF! -> 
A37: =#REF! ->  | B37: =#REF! ->  | C37: =#REF! ->  | D37: =#REF! ->  | E37: =#REF! ->  | F37: =#REF! ->  | G37: =#REF! ->  | H37: =#REF! -> 
A38: =#REF! ->  | B38: =#REF! ->  | C38: =#REF! ->  | D38: =#REF! ->  | E38: =#REF! ->  | F38: =#REF! ->  | G38: =#REF! ->  | H38: =#REF! -> 
A39: =#REF! ->  | B39: =#REF! ->  | C39: =#REF! ->  | D39: =#REF! ->  | E39: =#REF! ->  | F39: =#REF! ->  | G39: =#REF! ->  | H39: =#REF! -> 
A40: =#REF! ->  | B40: =#REF! ->  | C40: =#REF! ->  | D40: =#REF! ->  | E40: =#REF! ->  | F40: =#REF! ->  | G40: =#REF! ->  | H40: =#REF! -> 
A41: =#REF! ->  | B41: =#REF! ->  | C41: =#REF! ->  | D41: =#REF! ->  | E41: =#REF! ->  | F41: =#REF! ->  | G41: =#REF! ->  | H41: =#REF! -> 
A42: =#REF! -> 
A43: =#REF! ->  | B43: =#REF! ->  | C43: =#REF! ->  | D43: =#REF! ->  | E43: =#REF! ->  | F43: =#REF! ->  | G43: =#REF! ->  | H43: =#REF! -> 
A44: =#REF! ->  | B44: =#REF! ->  | C44: =#REF! ->  | D44: =#REF! ->  | E44: =#REF! ->  | F44: =#REF! ->  | G44: =#REF! ->  | H44: =#REF! -> 
A45: =#REF! ->  | B45: =#REF! ->  | C45: =#REF! ->  | D45: =#REF! ->  | E45: =#REF! ->  | F45: =#REF! ->  | G45: =#REF! ->  | H45: =#REF! -> 
A46: =#REF! ->  | B46: =#REF! ->  | C46: =#REF! ->  | D46: =#REF! ->  | E46: =#REF! ->  | F46: =#REF! ->  | G46: =#REF! ->  | H46: =#REF! -> 
A47: =#REF! ->  | B47: =#REF! ->  | C47: =#REF! ->  | D47: =#REF! ->  | E47: =#REF! ->  | F47: =#REF! ->  | G47: =#REF! ->  | H47: =#REF! -> 
A48: =#REF! ->  | B48: =#REF! ->  | C48: =#REF! ->  | D48: =#REF! ->  | E48: =#REF! ->  | F48: =#REF! ->  | G48: =#REF! ->  | H48: =#REF! -> 
A49: =#REF! ->  | B49: =#REF! ->  | C49: =#REF! ->  | D49: =#REF! ->  | E49: =#REF! ->  | F49: =#REF! ->  | G49: =#REF! ->  | H49: =#REF! -> 
A50: =#REF! -> 
A51: =#REF! ->  | B51: =#REF! ->  | C51: =#REF! ->  | D51: =#REF! ->  | E51: =#REF! ->  | F51: =#REF! ->  | G51: =#REF! ->  | H51: =#REF! -> 
A52: =#REF! ->  | B52: =#REF! ->  | C52: =#REF! ->  | D52: =#REF! ->  | E52: =#REF! ->  | F52: =#REF! ->  | G52: =#REF! ->  | H52: =#REF! -> 
A53: =#REF! ->  | B53: =#REF! ->  | C53: =#REF! ->  | D53: =#REF! ->  | E53: =#REF! ->  | F53: =#REF! ->  | G53: =#REF! ->  | H53: =#REF! -> 
A54: =#REF! ->  | B54: =#REF! ->  | C54: =#REF! ->  | D54: =#REF! ->  | E54: =#REF! ->  | F54: =#REF! ->  | G54: =#REF! ->  | H54: =#REF! -> 
A55: =#REF! ->  | B55: =#REF! ->  | C55: =#REF! ->  | D55: =#REF! ->  | E55: =#REF! ->  | F55: =#REF! ->  | G55: =#REF! ->  | H55: =#REF! -> 
A56: =#REF! ->  | B56: =#REF! ->  | C56: =#REF! ->  | D56: =#REF! ->  | E56: =#REF! ->  | F56: =#REF! ->  | G56: =#REF! ->  | H56: =#REF! -> 
A57: =#REF! ->  | B57: =#REF! ->  | C57: =#REF! ->  | D57: =#REF! ->  | E57: =#REF! ->  | F57: =#REF! ->  | G57: =#REF! ->  | H57: =#REF! -> 
A58: =#REF! -> 
A59: =#REF! ->  | B59: =#REF! ->  | C59: =#REF! ->  | D59: =#REF! ->  | E59: =#REF! ->  | F59: =#REF! ->  | G59: =#REF! ->  | H59: =#REF! -> 
A60: =#REF! ->  | B60: =#REF! ->  | C60: =#REF! ->  | D60: =#REF! ->  | E60: =#REF! ->  | F60: =#REF! ->  | G60: =#REF! ->  | H60: =#REF! -> 
A61: =#REF! ->  | B61: =#REF! ->  | C61: =#REF! ->  | D61: =#REF! ->  | E61: =#REF! ->  | F61: =#REF! ->  | G61: =#REF! ->  | H61: =#REF! -> 
A62: =#REF! ->  | B62: =#REF! ->  | C62: =#REF! ->  | D62: =#REF! ->  | E62: =#REF! ->  | F62: =#REF! ->  | G62: =#REF! ->  | H62: =#REF! -> 
A63: =#REF! ->  | B63: =#REF! ->  | C63: =#REF! ->  | D63: =#REF! ->  | E63: =#REF! ->  | F63: =#REF! ->  | G63: =#REF! ->  | H63: =#REF! -> 
A64: =#REF! ->  | B64: =#REF! ->  | C64: =#REF! ->  | D64: =#REF! ->  | E64: =#REF! ->  | F64: =#REF! ->  | G64: =#REF! ->  | H64: =#REF! -> 
A65: =#REF! ->  | B65: =#REF! ->  | C65: =#REF! ->  | D65: =#REF! ->  | E65: =#REF! ->  | F65: =#REF! ->  | G65: =#REF! ->  | H65: =#REF! -> 
A66: =#REF! ->  | B66: =#REF! ->  | C66: =#REF! ->  | D66: =#REF! ->  | E66: =#REF! ->  | F66: =#REF! ->  | G66: =#REF! ->  | H66: =#REF! -> 
A67: =#REF! ->  | B67: =#REF! ->  | C67: =#REF! ->  | D67: =#REF! ->  | E67: =#REF! ->  | F67: =#REF! ->  | G67: =#REF! ->  | H67: =#REF! -> 
A68: =#REF! ->  | B68: =#REF! ->  | C68: =#REF! ->  | D68: =#REF! ->  | E68: =#REF! ->  | F68: =#REF! ->  | G68: =#REF! ->  | H68: =#REF! -> 
A69: =#REF! ->  | B69: =#REF! ->  | C69: =#REF! ->  | D69: =#REF! ->  | E69: =#REF! ->  | F69: =#REF! ->  | G69: =#REF! ->  | H69: =#REF! -> 
A70: =#REF! ->  | B70: =#REF! ->  | C70: =#REF! ->  | D70: =#REF! ->  | E70: =#REF! ->  | F70: =#REF! ->  | G70: =#REF! ->  | H70: =#REF! -> 
A71: =#REF! ->  | B71: =#REF! ->  | C71: =#REF! ->  | D71: =#REF! ->  | E71: =#REF! ->  | F71: =#REF! ->  | G71: =#REF! ->  | H71: =#REF! -> 
A72: =#REF! ->  | B72: =#REF! ->  | C72: =#REF! ->  | D72: =#REF! ->  | E72: =#REF! ->  | F72: =#REF! ->  | G72: =#REF! ->  | H72: =#REF! -> 
A73: =#REF! ->  | B73: =#REF! ->  | C73: =#REF! ->  | D73: =#REF! ->  | E73: =#REF! ->  | F73: =#REF! ->  | G73: =#REF! ->  | H73: =#REF! -> 
A74: =#REF! -> 
A75: =#REF! ->  | B75: =#REF! ->  | C75: =#REF! ->  | D75: =#REF! ->  | E75: =#REF! ->  | F75: =#REF! ->  | G75: =#REF! ->  | H75: =#REF! -> 
A76: =#REF! ->  | B76: =#REF! ->  | C76: =#REF! ->  | D76: =#REF! ->  | E76: =#REF! ->  | F76: =#REF! ->  | G76: =#REF! ->  | H76: =#REF! -> 
A77: =#REF! ->  | B77: =#REF! ->  | C77: =#REF! ->  | D77: =#REF! ->  | E77: =#REF! ->  | F77: =#REF! ->  | G77: =#REF! ->  | H77: =#REF! -> 
A78: =#REF! ->  | B78: =#REF! ->  | C78: =#REF! ->  | D78: =#REF! ->  | E78: =#REF! ->  | F78: =#REF! ->  | G78: =#REF! ->  | H78: =#REF! -> 
A79: =#REF! ->  | B79: =#REF! ->  | C79: =#REF! ->  | D79: =#REF! ->  | E79: =#REF! ->  | F79: =#REF! ->  | G79: =#REF! ->  | H79: =#REF! -> 
A80: =#REF! ->  | B80: =#REF! ->  | C80: =#REF! ->  | D80: =#REF! ->  | E80: =#REF! ->  | F80: =#REF! ->  | G80: =#REF! ->  | H80: =#REF! -> 
A81: =#REF! ->  | B81: =#REF! ->  | C81: =#REF! ->  | D81: =#REF! ->  | E81: =#REF! ->  | F81: =#REF! ->  | G81: =#REF! ->  | H81: =#REF! -> 
A82: =#REF! ->  | B82: =#REF! ->  | C82: =#REF! ->  | D82: =#REF! ->  | E82: =#REF! ->  | F82: =#REF! ->  | G82: =#REF! ->  | H82: =#REF! -> 
A83: =#REF! ->  | B83: =#REF! ->  | C83: =#REF! ->  | D83: =#REF! ->  | E83: =#REF! ->  | F83: =#REF! ->  | G83: =#REF! ->  | H83: =#REF! -> 
A84: =#REF! ->  | B84: =#REF! ->  | C84: =#REF! ->  | D84: =#REF! ->  | E84: =#REF! ->  | F84: =#REF! ->  | G84: =#REF! ->  | H84: =#REF! -> 
A85: =#REF! ->  | B85: =#REF! ->  | C85: =#REF! ->  | D85: =#REF! ->  | E85: =#REF! ->  | F85: =#REF! ->  | G85: =#REF! ->  | H85: =#REF! -> 
A86: =#REF! ->  | B86: =#REF! ->  | C86: =#REF! ->  | D86: =#REF! ->  | E86: =#REF! ->  | F86: =#REF! ->  | G86: =#REF! ->  | H86: =#REF! -> 
A87: =#REF! ->  | B87: =#REF! ->  | C87: =#REF! ->  | D87: =#REF! ->  | E87: =#REF! ->  | F87: =#REF! ->  | G87: =#REF! ->  | H87: =#REF! -> 
A88: =#REF! ->  | B88: =#REF! ->  | C88: =#REF! ->  | D88: =#REF! ->  | E88: =#REF! ->  | F88: =#REF! ->  | G88: =#REF! ->  | H88: =#REF! -> 
A89: =#REF! ->  | B89: =#REF! ->  | C89: =#REF! ->  | D89: =#REF! ->  | E89: =#REF! ->  | F89: =#REF! ->  | G89: =#REF! ->  | H89: =#REF! -> 
A90: =#REF! ->  | B90: =#REF! ->  | C90: =#REF! ->  | D90: =#REF! ->  | E90: =#REF! ->  | F90: =#REF! ->  | G90: =#REF! ->  | H90: =#REF! -> 
A91: =#REF! ->  | B91: =#REF! ->  | C91: =#REF! ->  | D91: =#REF! ->  | E91: =#REF! ->  | F91: =#REF! ->  | G91: =#REF! ->  | H91: =#REF! -> 
A92: =#REF! ->  | B92: =#REF! ->  | C92: =#REF! ->  | D92: =#REF! ->  | E92: =#REF! ->  | F92: =#REF! ->  | G92: =#REF! ->  | H92: =#REF! -> 
A93: =#REF! ->  | B93: =#REF! ->  | C93: =#REF! ->  | D93: =#REF! ->  | E93: =#REF! ->  | F93: =#REF! ->  | G93: =#REF! ->  | H93: =#REF! -> 
A94: =#REF! ->  | B94: =#REF! ->  | C94: =#REF! ->  | D94: =#REF! ->  | E94: =#REF! ->  | F94: =#REF! ->  | G94: =#REF! ->  | H94: =#REF! -> 
A95: =#REF! ->  | B95: =#REF! ->  | C95: =#REF! ->  | D95: =#REF! ->  | E95: =#REF! ->  | F95: =#REF! ->  | G95: =#REF! ->  | H95: =#REF! -> 
A96: =#REF! ->  | B96: =#REF! ->  | C96: =#REF! ->  | D96: =#REF! ->  | E96: =#REF! ->  | F96: =#REF! ->  | G96: =#REF! ->  | H96: =#REF! -> 
A97: =#REF! ->  | B97: =#REF! ->  | C97: =#REF! ->  | D97: =#REF! ->  | E97: =#REF! ->  | F97: =#REF! ->  | G97: =#REF! ->  | H97: =#REF! -> 
A98: =#REF! ->  | B98: =#REF! ->  | C98: =#REF! ->  | D98: =#REF! ->  | E98: =#REF! ->  | F98: =#REF! ->  | G98: =#REF! ->  | H98: =#REF! -> 
A99: =#REF! ->  | B99: =#REF! ->  | C99: =#REF! ->  | D99: =#REF! ->  | E99: =#REF! ->  | F99: =#REF! ->  | G99: =#REF! ->  | H99: =#REF! -> 
A100: =#REF! ->  | B100: =#REF! ->  | C100: =#REF! ->  | D100: =#REF! ->  | E100: =#REF! ->  | F100: =#REF! ->  | G100: =#REF! ->  | H100: =#REF! -> 
A101: =#REF! ->  | B101: =#REF! ->  | C101: =#REF! ->  | D101: =#REF! ->  | E101: =#REF! ->  | F101: =#REF! ->  | G101: =#REF! ->  | H101: =#REF! -> 
A102: =#REF! ->  | B102: =#REF! ->  | C102: =#REF! ->  | D102: =#REF! ->  | E102: =#REF! ->  | F102: =#REF! ->  | G102: =#REF! ->  | H102: =#REF! -> 
A103: =#REF! ->  | B103: =#REF! ->  | C103: =#REF! ->  | D103: =#REF! ->  | E103: =#REF! ->  | F103: =#REF! ->  | G103: =#REF! ->  | H103: =#REF! -> 
A104: =#REF! ->  | B104: =#REF! ->  | C104: =#REF! ->  | D104: =#REF! ->  | E104: =#REF! ->  | F104: =#REF! ->  | G104: =#REF! ->  | H104: =#REF! -> 
A105: =#REF! ->  | B105: =#REF! ->  | C105: =#REF! ->  | D105: =#REF! ->  | E105: =#REF! ->  | F105: =#REF! ->  | G105: =#REF! ->  | H105: =#REF! -> 
A106: =#REF! ->  | B106: =#REF! ->  | C106: =#REF! ->  | D106: =#REF! ->  | E106: =#REF! ->  | F106: =#REF! ->  | G106: =#REF! ->  | H106: =#REF! -> 
A107: =#REF! ->  | B107: =#REF! ->  | C107: =#REF! ->  | D107: =#REF! ->  | E107: =#REF! ->  | F107: =#REF! ->  | G107: =#REF! ->  | H107: =#REF! -> 
A108: =#REF! ->  | B108: =#REF! ->  | C108: =#REF! ->  | D108: =#REF! ->  | E108: =#REF! ->  | F108: =#REF! ->  | G108: =#REF! ->  | H108: =#REF! -> 
A109: =#REF! ->  | B109: =#REF! ->  | C109: =#REF! ->  | D109: =#REF! ->  | E109: =#REF! ->  | F109: =#REF! ->  | G109: =#REF! ->  | H109: =#REF! -> 
A110: =#REF! ->  | B110: =#REF! ->  | C110: =#REF! ->  | D110: =#REF! ->  | E110: =#REF! ->  | F110: =#REF! ->  | G110: =#REF! ->  | H110: =#REF! -> 
A111: =#REF! ->  | B111: =#REF! ->  | C111: =#REF! ->  | D111: =#REF! ->  | E111: =#REF! ->  | F111: =#REF! ->  | G111: =#REF! ->  | H111: =#REF! -> 
A112: =#REF! ->  | B112: =#REF! ->  | C112: =#REF! ->  | D112: =#REF! ->  | E112: =#REF! ->  | F112: =#REF! ->  | G112: =#REF! ->  | H112: =#REF! -> 
A113: =#REF! ->  | B113: =#REF! ->  | C113: =#REF! ->  | D113: =#REF! ->  | E113: =#REF! ->  | F113: =#REF! ->  | G113: =#REF! ->  | H113: =#REF! -> 
A114: =#REF! ->  | B114: =#REF! ->  | C114: =#REF! ->  | D114: =#REF! ->  | E114: =#REF! ->  | F114: =#REF! ->  | G114: =#REF! ->  | H114: =#REF! -> 
A115: =#REF! ->  | B115: =#REF! ->  | C115: =#REF! ->  | D115: =#REF! ->  | E115: =#REF! ->  | F115: =#REF! ->  | G115: =#REF! ->  | H115: =#REF! -> 
A116: =#REF! ->  | B116: =#REF! ->  | C116: =#REF! ->  | D116: =#REF! ->  | E116: =#REF! ->  | F116: =#REF! ->  | G116: =#REF! ->  | H116: =#REF! -> 
A117: =#REF! ->  | B117: =#REF! ->  | C117: =#REF! ->  | D117: =#REF! ->  | E117: =#REF! ->  | F117: =#REF! ->  | G117: =#REF! ->  | H117: =#REF! -> 
A118: =#REF! ->  | B118: =#REF! ->  | C118: =#REF! ->  | D118: =#REF! ->  | E118: =#REF! ->  | F118: =#REF! ->  | G118: =#REF! ->  | H118: =#REF! -> 
A119: =#REF! ->  | B119: =#REF! ->  | C119: =#REF! ->  | D119: =#REF! ->  | E119: =#REF! ->  | F119: =#REF! ->  | G119: =#REF! ->  | H119: =#REF! -> 
A120: =#REF! ->  | B120: =#REF! ->  | C120: =#REF! ->  | D120: =#REF! ->  | E120: =#REF! ->  | F120: =#REF! ->  | G120: =#REF! ->  | H120: =#REF! -> 
A121: =#REF! ->  | B121: =#REF! ->  | C121: =#REF! ->  | D121: =#REF! ->  | E121: =#REF! ->  | F121: =#REF! ->  | G121: =#REF! ->  | H121: =#REF! -> 
A122: =#REF! ->  | B122: =#REF! ->  | C122: =#REF! ->  | D122: =#REF! ->  | E122: =#REF! ->  | F122: =#REF! ->  | G122: =#REF! ->  | H122: =#REF! -> 
A123: =#REF! ->  | B123: =#REF! ->  | C123: =#REF! ->  | D123: =#REF! ->  | E123: =#REF! ->  | F123: =#REF! ->  | G123: =#REF! ->  | H123: =#REF! -> 
A124: =#REF! ->  | B124: =#REF! ->  | C124: =#REF! ->  | D124: =#REF! ->  | E124: =#REF! ->  | F124: =#REF! ->  | G124: =#REF! ->  | H124: =#REF! -> 
A125: =#REF! ->  | B125: =#REF! ->  | C125: =#REF! ->  | D125: =#REF! ->  | E125: =#REF! ->  | F125: =#REF! ->  | G125: =#REF! ->  | H125: =#REF! -> 
A126: =#REF! ->  | B126: =#REF! ->  | C126: =#REF! ->  | D126: =#REF! ->  | E126: =#REF! ->  | F126: =#REF! ->  | G126: =#REF! ->  | H126: =#REF! -> 
A127: =#REF! ->  | B127: =#REF! ->  | C127: =#REF! ->  | D127: =#REF! ->  | E127: =#REF! ->  | F127: =#REF! ->  | G127: =#REF! ->  | H127: =#REF! -> 
A128: =#REF! ->  | B128: =#REF! ->  | C128: =#REF! ->  | D128: =#REF! ->  | E128: =#REF! ->  | F128: =#REF! ->  | G128: =#REF! ->  | H128: =#REF! -> 
A129: =#REF! ->  | B129: =#REF! ->  | C129: =#REF! ->  | D129: =#REF! ->  | E129: =#REF! ->  | F129: =#REF! ->  | G129: =#REF! ->  | H129: =#REF! -> 
A130: =#REF! ->  | B130: =#REF! ->  | C130: =#REF! ->  | D130: =#REF! ->  | E130: =#REF! ->  | F130: =#REF! ->  | G130: =#REF! ->  | H130: =#REF! -> 
A131: =#REF! ->  | B131: =#REF! ->  | C131: =#REF! ->  | D131: =#REF! ->  | E131: =#REF! ->  | F131: =#REF! ->  | G131: =#REF! ->  | H131: =#REF! -> 
A132: =#REF! ->  | B132: =#REF! ->  | C132: =#REF! ->  | D132: =#REF! ->  | E132: =#REF! ->  | F132: =#REF! ->  | G132: =#REF! ->  | H132: =#REF! -> 
A133: =#REF! ->  | B133: =#REF! ->  | C133: =#REF! ->  | D133: =#REF! ->  | E133: =#REF! ->  | F133: =#REF! ->  | G133: =#REF! ->  | H133: =#REF! -> 
A134: =#REF! ->  | B134: =#REF! ->  | C134: =#REF! ->  | D134: =#REF! ->  | E134: =#REF! ->  | F134: =#REF! ->  | G134: =#REF! ->  | H134: =#REF! -> 
A135: =#REF! ->  | B135: =#REF! ->  | C135: =#REF! ->  | D135: =#REF! ->  | E135: =#REF! ->  | F135: =#REF! ->  | G135: =#REF! ->  | H135: =#REF! -> 
A136: =#REF! ->  | B136: =#REF! ->  | C136: =#REF! ->  | D136: =#REF! ->  | E136: =#REF! ->  | F136: =#REF! ->  | G136: =#REF! ->  | H136: =#REF! -> 
A137: =#REF! ->  | B137: =#REF! ->  | C137: =#REF! ->  | D137: =#REF! ->  | E137: =#REF! ->  | F137: =#REF! ->  | G137: =#REF! ->  | H137: =#REF! -> 
A138: =#REF! ->  | B138: =#REF! ->  | C138: =#REF! ->  | D138: =#REF! ->  | E138: =#REF! ->  | F138: =#REF! ->  | G138: =#REF! ->  | H138: =#REF! -> 
A139: =#REF! -> 
A140: =#REF! ->  | B140: =#REF! ->  | C140: =#REF! ->  | D140: =#REF! ->  | E140: =#REF! ->  | F140: =#REF! ->  | G140: =#REF! ->  | H140: =#REF! -> 
A141: =#REF! ->  | B141: =#REF! ->  | C141: =#REF! ->  | D141: =#REF! ->  | E141: =#REF! ->  | F141: =#REF! ->  | G141: =#REF! ->  | H141: =#REF! -> 
A142: =#REF! ->  | B142: =#REF! ->  | C142: =#REF! ->  | D142: =#REF! ->  | E142: =#REF! ->  | F142: =#REF! ->  | G142: =#REF! ->  | H142: =#REF! -> 
A143: =#REF! ->  | B143: =#REF! ->  | C143: =#REF! ->  | D143: =#REF! ->  | E143: =#REF! ->  | F143: =#REF! ->  | G143: =#REF! ->  | H143: =#REF! -> 
A144: =#REF! ->  | B144: =#REF! ->  | C144: =#REF! ->  | D144: =#REF! ->  | E144: =#REF! ->  | F144: =#REF! ->  | G144: =#REF! ->  | H144: =#REF! -> 
A145: =#REF! ->  | B145: =#REF! ->  | C145: =#REF! ->  | D145: =#REF! ->  | E145: =#REF! ->  | F145: =#REF! ->  | G145: =#REF! ->  | H145: =#REF! -> 
A146: =#REF! ->  | B146: =#REF! ->  | C146: =#REF! ->  | D146: =#REF! ->  | E146: =#REF! ->  | F146: =#REF! ->  | G146: =#REF! ->  | H146: =#REF! -> 
A147: =#REF! ->  | B147: =#REF! ->  | C147: =#REF! ->  | D147: =#REF! ->  | E147: =#REF! ->  | F147: =#REF! ->  | G147: =#REF! ->  | H147: =#REF! -> 
A148: =#REF! ->  | B148: =#REF! ->  | C148: =#REF! ->  | D148: =#REF! ->  | E148: =#REF! ->  | F148: =#REF! ->  | G148: =#REF! ->  | H148: =#REF! -> 
A149: =#REF! ->  | B149: =#REF! ->  | C149: =#REF! ->  | D149: =#REF! ->  | E149: =#REF! ->  | F149: =#REF! ->  | G149: =#REF! ->  | H149: =#REF! -> 
A150: =#REF! ->  | B150: =#REF! ->  | C150: =#REF! ->  | D150: =#REF! ->  | E150: =#REF! ->  | F150: =#REF! ->  | G150: =#REF! ->  | H150: =#REF! -> 
A151: =#REF! ->  | B151: =#REF! ->  | C151: =#REF! ->  | D151: =#REF! ->  | E151: =#REF! ->  | F151: =#REF! ->  | G151: =#REF! ->  | H151: =#REF! -> 
A152: =#REF! ->  | B152: =#REF! ->  | C152: =#REF! ->  | D152: =#REF! ->  | E152: =#REF! ->  | F152: =#REF! ->  | G152: =#REF! ->  | H152: =#REF! -> 
A153: =#REF! ->  | B153: =#REF! ->  | C153: =#REF! ->  | D153: =#REF! ->  | E153: =#REF! ->  | F153: =#REF! ->  | G153: =#REF! ->  | H153: =#REF! -> 
A154: =#REF! ->  | B154: =#REF! ->  | C154: =#REF! ->  | D154: =#REF! ->  | E154: =#REF! ->  | F154: =#REF! ->  | G154: =#REF! ->  | H154: =#REF! -> 
A155: =#REF! ->  | B155: =#REF! ->  | C155: =#REF! ->  | D155: =#REF! ->  | E155: =#REF! ->  | F155: =#REF! ->  | G155: =#REF! ->  | H155: =#REF! -> 
A156: =#REF! ->  | B156: =#REF! ->  | C156: =#REF! ->  | D156: =#REF! ->  | E156: =#REF! ->  | F156: =#REF! ->  | G156: =#REF! ->  | H156: =#REF! -> 
A157: =#REF! ->  | B157: =#REF! ->  | C157: =#REF! ->  | D157: =#REF! ->  | E157: =#REF! ->  | F157: =#REF! ->  | G157: =#REF! ->  | H157: =#REF! -> 
A158: =#REF! ->  | B158: =#REF! ->  | C158: =#REF! ->  | D158: =#REF! ->  | E158: =#REF! ->  | F158: =#REF! ->  | G158: =#REF! ->  | H158: =#REF! -> 
A159: =#REF! ->  | B159: =#REF! ->  | C159: =#REF! ->  | D159: =#REF! ->  | E159: =#REF! ->  | F159: =#REF! ->  | G159: =#REF! ->  | H159: =#REF! -> 
A160: =#REF! ->  | B160: =#REF! ->  | C160: =#REF! ->  | D160: =#REF! ->  | E160: =#REF! ->  | F160: =#REF! ->  | G160: =#REF! ->  | H160: =#REF! -> 
A161: =#REF! ->  | B161: =#REF! ->  | C161: =#REF! ->  | D161: =#REF! ->  | E161: =#REF! ->  | F161: =#REF! ->  | G161: =#REF! ->  | H161: =#REF! -> 
A162: =#REF! ->  | B162: =#REF! ->  | C162: =#REF! ->  | D162: =#REF! ->  | E162: =#REF! ->  | F162: =#REF! ->  | G162: =#REF! ->  | H162: =#REF! -> 
A163: =#REF! ->  | B163: =#REF! ->  | C163: =#REF! ->  | D163: =#REF! ->  | E163: =#REF! ->  | F163: =#REF! ->  | G163: =#REF! ->  | H163: =#REF! -> 
A164: =#REF! ->  | B164: =#REF! ->  | C164: =#REF! ->  | D164: =#REF! ->  | E164: =#REF! ->  | F164: =#REF! ->  | G164: =#REF! ->  | H164: =#REF! -> 
A165: =#REF! ->  | B165: =#REF! ->  | C165: =#REF! ->  | D165: =#REF! ->  | E165: =#REF! ->  | F165: =#REF! ->  | G165: =#REF! ->  | H165: =#REF! -> 
A166: =#REF! ->  | B166: =#REF! ->  | C166: =#REF! ->  | D166: =#REF! ->  | E166: =#REF! ->  | F166: =#REF! ->  | G166: =#REF! ->  | H166: =#REF! -> 
A167: =#REF! ->  | B167: =#REF! ->  | C167: =#REF! ->  | D167: =#REF! ->  | E167: =#REF! ->  | F167: =#REF! ->  | G167: =#REF! ->  | H167: =#REF! -> 
A168: =#REF! ->  | B168: =#REF! ->  | C168: =#REF! ->  | D168: =#REF! ->  | E168: =#REF! ->  | F168: =#REF! ->  | G168: =#REF! ->  | H168: =#REF! -> 
A169: =#REF! ->  | B169: =#REF! ->  | C169: =#REF! ->  | D169: =#REF! ->  | E169: =#REF! ->  | F169: =#REF! ->  | G169: =#REF! ->  | H169: =#REF! -> 
A170: =#REF! ->  | B170: =#REF! ->  | C170: =#REF! ->  | D170: =#REF! ->  | E170: =#REF! ->  | F170: =#REF! ->  | G170: =#REF! ->  | H170: =#REF! -> 
A171: =#REF! ->  | B171: =#REF! ->  | C171: =#REF! ->  | D171: =#REF! ->  | E171: =#REF! ->  | F171: =#REF! ->  | G171: =#REF! ->  | H171: =#REF! -> 
A172: =#REF! ->  | B172: =#REF! ->  | C172: =#REF! ->  | D172: =#REF! ->  | E172: =#REF! ->  | F172: =#REF! ->  | G172: =#REF! ->  | H172: =#REF! -> 
A173: =#REF! ->  | B173: =#REF! ->  | C173: =#REF! ->  | D173: =#REF! ->  | E173: =#REF! ->  | F173: =#REF! ->  | G173: =#REF! ->  | H173: =#REF! -> 
A174: =#REF! ->  | B174: =#REF! ->  | C174: =#REF! ->  | D174: =#REF! ->  | E174: =#REF! ->  | F174: =#REF! ->  | G174: =#REF! ->  | H174: =#REF! -> 
A175: =#REF! ->  | B175: =#REF! ->  | C175: =#REF! ->  | D175: =#REF! ->  | E175: =#REF! ->  | F175: =#REF! ->  | G175: =#REF! ->  | H175: =#REF! -> 
A176: =#REF! ->  | B176: =#REF! ->  | C176: =#REF! ->  | D176: =#REF! ->  | E176: =#REF! ->  | F176: =#REF! ->  | G176: =#REF! ->  | H176: =#REF! -> 
A177: =#REF! ->  | B177: =#REF! ->  | C177: =#REF! ->  | D177: =#REF! ->  | E177: =#REF! ->  | F177: =#REF! ->  | G177: =#REF! ->  | H177: =#REF! -> 
A178: =#REF! ->  | B178: =#REF! ->  | C178: =#REF! ->  | D178: =#REF! ->  | E178: =#REF! ->  | F178: =#REF! ->  | G178: =#REF! ->  | H178: =#REF! -> 
A179: =#REF! ->  | B179: =#REF! ->  | C179: =#REF! ->  | D179: =#REF! ->  | E179: =#REF! ->  | F179: =#REF! ->  | G179: =#REF! ->  | H179: =#REF! -> 
A180: =#REF! -> 
A181: =#REF! ->  | B181: =#REF! ->  | C181: =#REF! ->  | D181: =#REF! ->  | E181: =#REF! ->  | F181: =#REF! ->  | G181: =#REF! ->  | H181: =#REF! -> 
A182: =#REF! ->  | B182: =#REF! ->  | C182: =#REF! ->  | D182: =#REF! ->  | E182: =#REF! ->  | F182: =#REF! ->  | G182: =#REF! ->  | H182: =#REF! -> 
A183: =#REF! ->  | B183: =#REF! ->  | C183: =#REF! ->  | D183: =#REF! ->  | E183: =#REF! ->  | F183: =#REF! ->  | G183: =#REF! ->  | H183: =#REF! -> 
A184: =#REF! ->  | B184: =#REF! ->  | C184: =#REF! ->  | D184: =#REF! ->  | E184: =#REF! ->  | F184: =#REF! ->  | G184: =#REF! ->  | H184: =#REF! -> 
A185: =#REF! ->  | B185: =#REF! ->  | C185: =#REF! ->  | D185: =#REF! ->  | E185: =#REF! ->  | F185: =#REF! ->  | G185: =#REF! ->  | H185: =#REF! -> 
A186: =#REF! ->  | B186: =#REF! ->  | C186: =#REF! ->  | D186: =#REF! ->  | E186: =#REF! ->  | F186: =#REF! ->  | G186: =#REF! ->  | H186: =#REF! -> 
A187: =#REF! ->  | B187: =#REF! ->  | C187: =#REF! ->  | D187: =#REF! ->  | E187: =#REF! ->  | F187: =#REF! ->  | G187: =#REF! ->  | H187: =#REF! -> 
A188: =#REF! ->  | B188: =#REF! ->  | C188: =#REF! ->  | D188: =#REF! ->  | E188: =#REF! ->  | F188: =#REF! ->  | G188: =#REF! ->  | H188: =#REF! -> 
A189: =#REF! ->  | B189: =#REF! ->  | C189: =#REF! ->  | D189: =#REF! ->  | E189: =#REF! ->  | F189: =#REF! ->  | G189: =#REF! ->  | H189: =#REF! -> 
A190: =#REF! ->  | B190: =#REF! ->  | C190: =#REF! ->  | D190: =#REF! ->  | E190: =#REF! ->  | F190: =#REF! ->  | G190: =#REF! ->  | H190: =#REF! -> 
A191: =#REF! ->  | B191: =#REF! ->  | C191: =#REF! ->  | D191: =#REF! ->  | E191: =#REF! ->  | F191: =#REF! ->  | G191: =#REF! ->  | H191: =#REF! -> 
A192: =#REF! -> 
A193: =#REF! ->  | B193: =#REF! ->  | C193: =#REF! ->  | D193: =#REF! ->  | E193: =#REF! ->  | F193: =#REF! ->  | G193: =#REF! ->  | H193: =#REF! -> 
A194: =#REF! ->  | B194: =#REF! ->  | C194: =#REF! ->  | D194: =#REF! ->  | E194: =#REF! ->  | F194: =#REF! ->  | G194: =#REF! ->  | H194: =#REF! -> 
A195: =#REF! ->  | B195: =#REF! ->  | C195: =#REF! ->  | D195: =#REF! ->  | E195: =#REF! ->  | F195: =#REF! ->  | G195: =#REF! ->  | H195: =#REF! -> 
A196: =#REF! ->  | B196: =#REF! ->  | C196: =#REF! ->  | D196: =#REF! ->  | E196: =#REF! ->  | F196: =#REF! ->  | G196: =#REF! ->  | H196: =#REF! -> 
A197: =#REF! ->  | B197: =#REF! ->  | C197: =#REF! ->  | D197: =#REF! ->  | E197: =#REF! ->  | F197: =#REF! ->  | G197: =#REF! ->  | H197: =#REF! -> 
A198: =#REF! ->  | B198: =#REF! ->  | C198: =#REF! ->  | D198: =#REF! ->  | E198: =#REF! ->  | F198: =#REF! ->  | G198: =#REF! ->  | H198: =#REF! -> 
A199: =#REF! ->  | B199: =#REF! ->  | C199: =#REF! ->  | D199: =#REF! ->  | E199: =#REF! ->  | F199: =#REF! ->  | G199: =#REF! ->  | H199: =#REF! -> 
A200: =#REF! ->  | B200: =#REF! ->  | C200: =#REF! ->  | D200: =#REF! ->  | E200: =#REF! ->  | F200: =#REF! ->  | G200: =#REF! ->  | H200: =#REF! -> 
... 104 more rows

Sheet Foglio1
